Workbook

Sheet Matriz de busqueda de los cod (hidden)
A1: Codigo | C1: Clave
A2: 3070101 | B2: Instalación Monofásica (Toma corriente doble, consumo hasta 2KW/110V) valor de 1 a 6 dias | C2: =CONCATENATE(A2:A414," ",B2:B417) -> 3070101 Instalación Monofásica (Toma corriente doble, consumo hasta 2KW/110V) valor de 1 a 6 dias
A3: 3070101 | B3: Instalación Monofásica (Toma corriente doble, consumo hasta 2KW/110V) valor de 7 dias en adelante | C3: =CONCATENATE(A3:A414," ",B3:B417) -> 3070101 Instalación Monofásica (Toma corriente doble, consumo hasta 2KW/110V) valor de 7 dias en adelante
A4: 3070103 | B4: Instalación kilovatio adicional monofásico (Debe contar con punto principal, MAX 2KW por punto) | C4: =CONCATENATE(A4:A414," ",B4:B417) -> 3070103 Instalación kilovatio adicional monofásico (Debe contar con punto principal, MAX 2KW por punto)
A5: 3070102 | B5: Instalación trifásica (Regleta plastica, consumo hasta 4KW/208V) | C5: =CONCATENATE(A5:A415," ",B5:B418) -> 3070102 Instalación trifásica (Regleta plastica, consumo hasta 4KW/208V)
A6: 3070104 | B6: Instalación kilovatio adicional trifásico (Debe contar con punto principal) | C6: =CONCATENATE(A6:A416," ",B6:B419) -> 3070104 Instalación kilovatio adicional trifásico (Debe contar con punto principal)
A7: 3071372 | B7: De 21 a 50 kilovatios adicionales trifásicos (Valor por KW) (Debe contar con punto principal) | C7: =CONCATENATE(A7:A417," ",B7:B420) -> 3071372 De 21 a 50 kilovatios adicionales trifásicos (Valor por KW) (Debe contar con punto principal)
A8: 3071373 | B8: De 51 a 100 kilovatios adicionales trifásicos (Valor por KW) (Debe contar con punto principal) | C8: =CONCATENATE(A8:A418," ",B8:B421) -> 3071373 De 51 a 100 kilovatios adicionales trifásicos (Valor por KW) (Debe contar con punto principal)
A9: 3071374 | B9: Mas de100 kilovatios adicionales trifásicos (Valor por KW) (Debe contar con punto principal) | C9: =CONCATENATE(A9:A419," ",B9:B422) -> 3071374 Mas de100 kilovatios adicionales trifásicos (Valor por KW) (Debe contar con punto principal)
A10: 3070402 | B10: Lampara de pared ajustable (150W/110V) | C10: =CONCATENATE(A10:A420," ",B10:B423) -> 3070402 Lampara de pared ajustable (150W/110V)
A11: 3070405 | B11: Reflector Led (50W- mltV) | C11: =CONCATENATE(A11:A421," ",B11:B424) -> 3070405 Reflector Led (50W- mltV)
A12: 3070403 | B12: Extensión – tomacorriente doble con polo a tierra (1500W/110V) MAX 6mts | C12: =CONCATENATE(A12:A422," ",B12:B425) -> 3070403 Extensión – tomacorriente doble con polo a tierra (1500W/110V) MAX 6mts
A13: 3071345 | B13: Lavaplatos 90XL* 60XH* 90 (No incluye agua y desague) valor de 1 a 6 dias | C13: =CONCATENATE(A13:A423," ",B13:B426) -> 3071345 Lavaplatos 90XL* 60XH* 90 (No incluye agua y desague) valor de 1 a 6 dias
A14: 3071345 | B14: Lavaplatos 90XL* 60XH* 90 (No incluye agua y desague) valor de 7 dias en adelante | C14: =CONCATENATE(A14:A424," ",B14:B427) -> 3071345 Lavaplatos 90XL* 60XH* 90 (No incluye agua y desague) valor de 7 dias en adelante
A15: 3070301 | B15: Punto de Agua en 1/2" (incluye consumo) valor de 1 a 6 dias | C15: =CONCATENATE(A15:A425," ",B15:B428) -> 3070301 Punto de Agua en 1/2" (incluye consumo) valor de 1 a 6 dias
A16: 3070301 | B16: Punto de Agua en 1/2" (incluye consumo) valor de 7 dias en adelante | C16: =CONCATENATE(A16:A426," ",B16:B429) -> 3070301 Punto de Agua en 1/2" (incluye consumo) valor de 7 dias en adelante
A17: 3070302 | B17: Desagüe en 1 1/2" Por toda la feria (Ubicación asignada por Corferias en su stand) valor de 1 a 6 dias | C17: =CONCATENATE(A17:A427," ",B17:B430) -> 3070302 Desagüe en 1 1/2" Por toda la feria (Ubicación asignada por Corferias en su stand) valor de 1 a 6 dias
A18: 3070302 | B18: Desagüe en 1 1/2" Por toda la feria (Ubicación asignada por Corferias en su stand) valor de 7 dias en adelante | C18: =CONCATENATE(A18:A428," ",B18:B431) -> 3070302 Desagüe en 1 1/2" Por toda la feria (Ubicación asignada por Corferias en su stand) valor de 7 dias en adelante
A19: 3071341 | B19: Aire comprimido para punto con presión máx. de 100 PSI, y caudal máx. 35CFM. valor de 1 a 6 dias | C19: =CONCATENATE(A19:A429," ",B19:B432) -> 3071341 Aire comprimido para punto con presión máx. de 100 PSI, y caudal máx. 35CFM. valor de 1 a 6 dias
A20: 3071341 | B20: Aire comprimido para punto con presión máx. de 100 PSI, y caudal máx. 35CFM. valor de 7 dias en adelante | C20: =CONCATENATE(A20:A430," ",B20:B433) -> 3071341 Aire comprimido para punto con presión máx. de 100 PSI, y caudal máx. 35CFM. valor de 7 dias en adelante
A21: 3070307 | B21: Punto de Agua en 1/2" (Incluye consumo) + Desagüe en 1 1/2" + Lavaplatos valor de 1 a 6 dias | C21: =CONCATENATE(A21:A431," ",B21:B434) -> 3070307 Punto de Agua en 1/2" (Incluye consumo) + Desagüe en 1 1/2" + Lavaplatos valor de 1 a 6 dias
A22: 3070307 | B22: Punto de Agua en 1/2" (Incluye consumo) + Desagüe en 1 1/2" + Lavaplatos valor de 7 dias en adelante | C22: =CONCATENATE(A22:A432," ",B22:B435) -> 3070307 Punto de Agua en 1/2" (Incluye consumo) + Desagüe en 1 1/2" + Lavaplatos valor de 7 dias en adelante
A23: 3071321 | B23: Instalación de UN (1) punto de gas propano por UN (1) Equipo (Incluye materiales y mano de obra) (No incluye consumo de gas, este será liquidado a través de un medidor una vez finalice la feria y/o evento) | C23: =CONCATENATE(A23:A433," ",B23:B436) -> 3071321 Instalación de UN (1) punto de gas propano por UN (1) Equipo (Incluye materiales y mano de obra) (No incluye consumo de gas, este será liquidado a través de un medidor una vez finalice la feria y/o evento)
A24: 3070601 | B24: Panel adicional sistema cfe 100cm x 240cm | C24: =CONCATENATE(A24:A434," ",B24:B437) -> 3070601 Panel adicional sistema cfe 100cm x 240cm
A25: 3070801 | B25: Puerta sistema cfe 90cm x 240cm | C25: =CONCATENATE(A25:A435," ",B25:B438) -> 3070801 Puerta sistema cfe 90cm x 240cm
A26: 3070803 | B26: Bodega estándar con puerta 150cm x 150cm (Sistema Corferias) | C26: =CONCATENATE(A26:A436," ",B26:B439) -> 3070803 Bodega estándar con puerta 150cm x 150cm (Sistema Corferias)
A27: 3071418 | B27: Servicio de Internet Cableado "PARA UN EQUIPO - DURANTE UN DÍA" | C27: =CONCATENATE(A27:A453," ",B27:B456) -> 3071418 Servicio de Internet Cableado "PARA UN EQUIPO - DURANTE UN DÍA"
A28: 3071419 | B28: Clave de acceso para la red WiFi "PARA UN EQUIPO - DURANTE UN DÍA" | C28: =CONCATENATE(A28:A454," ",B28:B457) -> 3071419 Clave de acceso para la red WiFi "PARA UN EQUIPO - DURANTE UN DÍA"
A29: 3071417 | B29: Servicio de Internet Cableado "PARA UN EQUIPO - DURANTE TODA LA FERIA" valor de 3 dias | C29: =CONCATENATE(A29:A455," ",B29:B458) -> 3071417 Servicio de Internet Cableado "PARA UN EQUIPO - DURANTE TODA LA FERIA" valor de 3 dias
A30: 3071417 | B30: Servicio de Internet Cableado "PARA UN EQUIPO - DURANTE TODA LA FERIA" valor de 4 a 6 dias | C30: =CONCATENATE(A30:A456," ",B30:B459) -> 3071417 Servicio de Internet Cableado "PARA UN EQUIPO - DURANTE TODA LA FERIA" valor de 4 a 6 dias
A31: 3071417 | B31: Servicio de Internet Cableado "PARA UN EQUIPO - DURANTE TODA LA FERIA" valor a partir de 7 dias | C31: =CONCATENATE(A31:A457," ",B31:B460) -> 3071417 Servicio de Internet Cableado "PARA UN EQUIPO - DURANTE TODA LA FERIA" valor a partir de 7 dias
A32: 3071420 | B32: Clave de acceso para la Red WiFi "PARA UN EQUIPO - DURANTE TODA LA FERIA" valor de 3 dias | C32: =CONCATENATE(A32:A458," ",B32:B461) -> 3071420 Clave de acceso para la Red WiFi "PARA UN EQUIPO - DURANTE TODA LA FERIA" valor de 3 dias
A33: 3071420 | B33: Clave de acceso para la Red WiFi "PARA UN EQUIPO - DURANTE TODA LA FERIA" valor de 4 a 6 dias | C33: =CONCATENATE(A33:A459," ",B33:B462) -> 3071420 Clave de acceso para la Red WiFi "PARA UN EQUIPO - DURANTE TODA LA FERIA" valor de 4 a 6 dias
A34: 3071420 | B34: Clave de acceso para la Red WiFi "PARA UN EQUIPO - DURANTE TODA LA FERIA" valor a partir de 7 dias | C34: =CONCATENATE(A34:A460," ",B34:B463) -> 3071420 Clave de acceso para la Red WiFi "PARA UN EQUIPO - DURANTE TODA LA FERIA" valor a partir de 7 dias
A35: 3071423 | B35: Conexión para Datafono + Clave de acceso WIFI (Para un equipo durante toda la feria) valor de 3 dias | C35: =CONCATENATE(A35:A461," ",B35:B464) -> 3071423 Conexión para Datafono + Clave de acceso WIFI (Para un equipo durante toda la feria) valor de 3 dias
A36: 3071423 | B36: Conexión para Datafono + Clave de acceso WIFI (Para un equipo durante toda la feria) valor de 4 a 6 dias | C36: =CONCATENATE(A36:A462," ",B36:B465) -> 3071423 Conexión para Datafono + Clave de acceso WIFI (Para un equipo durante toda la feria) valor de 4 a 6 dias
A37: 3071423 | B37: Conexión para Datafono + Clave de acceso WIFI (Para un equipo durante toda la feria) valor a partir de 7 dias | C37: =CONCATENATE(A37:A463," ",B37:B466) -> 3071423 Conexión para Datafono + Clave de acceso WIFI (Para un equipo durante toda la feria) valor a partir de 7 dias
A38: 3071424 | B38: Conexión para Datafono + Servicio de Internet Cableado (Para un equipo durante toda la feria) valor de 3 dias | C38: =CONCATENATE(A38:A464," ",B38:B467) -> 3071424 Conexión para Datafono + Servicio de Internet Cableado (Para un equipo durante toda la feria) valor de 3 dias
A39: 3071424 | B39: Conexión para Datafono + Servicio de Internet Cableado (Para un equipo durante toda la feria) valor de 4 a 6 dias | C39: =CONCATENATE(A39:A465," ",B39:B468) -> 3071424 Conexión para Datafono + Servicio de Internet Cableado (Para un equipo durante toda la feria) valor de 4 a 6 dias
A40: 3071424 | B40: Conexión para Datafono + Servicio de Internet Cableado (Para un equipo durante toda la feria) valor a partir de 7 dias | C40: =CONCATENATE(A40:A466," ",B40:B469) -> 3071424 Conexión para Datafono + Servicio de Internet Cableado (Para un equipo durante toda la feria) valor a partir de 7 dias
A41: 3071425 | B41: Servicio de Internet Cableado + Clave de acceso WIFI (Para un equipo durante toda la feria) valor de 3 dias | C41: =CONCATENATE(A41:A467," ",B41:B470) -> 3071425 Servicio de Internet Cableado + Clave de acceso WIFI (Para un equipo durante toda la feria) valor de 3 dias
A42: 3071425 | B42: Servicio de Internet Cableado + Clave de acceso WIFI (Para un equipo durante toda la feria) valor de 4 a 6 dias | C42: =CONCATENATE(A42:A468," ",B42:B471) -> 3071425 Servicio de Internet Cableado + Clave de acceso WIFI (Para un equipo durante toda la feria) valor de 4 a 6 dias
A43: 3071425 | B43: Servicio de Internet Cableado + Clave de acceso WIFI (Para un equipo durante toda la feria) valor a partir de 7 dias | C43: =CONCATENATE(A43:A469," ",B43:B472) -> 3071425 Servicio de Internet Cableado + Clave de acceso WIFI (Para un equipo durante toda la feria) valor a partir de 7 dias
A44: 3071437 | B44: Internet Dedicado: Si requiere conexión banda ancha para diferentes servicios o redes locales, contáctese con serviciosplus@corferias.com para brindarle asesoria y cotización. | C44: =CONCATENATE(A44:A470," ",B44:B473) -> 3071437 Internet Dedicado: Si requiere conexión banda ancha para diferentes servicios o redes locales, contáctese con serviciosplus@corferias.com para brindarle asesoria y cotización.
A45: 3071406 | B45: Instalación Punto de Red:Incluye un cable UTP por punto | C45: =CONCATENATE(A45:A471," ",B45:B474) -> 3071406 Instalación Punto de Red:Incluye un cable UTP por punto
A46: 3071407 | B46: Switch VALOR POR FERIA | C46: =CONCATENATE(A46:A472," ",B46:B475) -> 3071407 Switch VALOR POR FERIA
A47: 3071402 | B47: Servicio de VLAN: Servicio virtual de red. VALOR POR FERIA | C47: =CONCATENATE(A47:A473," ",B47:B476) -> 3071402 Servicio de VLAN: Servicio virtual de red. VALOR POR FERIA
A48: 3071430 | B48: Extension LAN VALOR POR FERIA (Incluye punto de red y aplica para extender el servicio de internet contratado con terceros) | C48: =CONCATENATE(A48:A474," ",B48:B477) -> 3071430 Extension LAN VALOR POR FERIA (Incluye punto de red y aplica para extender el servicio de internet contratado con terceros)
A49: 3071442 | B49: Soporte técnico permanente (Por espacio de 8 horas) de un técnico. VALOR DÍARIO | C49: =CONCATENATE(A49:A475," ",B49:B478) -> 3071442 Soporte técnico permanente (Por espacio de 8 horas) de un técnico. VALOR DÍARIO
A50: 3070202 | B50: Servicio Telefónico Urbano con Aparato (Incluye consumo local ilimitado) | C50: =CONCATENATE(A50:A476," ",B50:B479) -> 3070202 Servicio Telefónico Urbano con Aparato (Incluye consumo local ilimitado)
A51: 3070203 | B51: Servicio Telefónico Larga Distancia con aparato | C51: =CONCATENATE(A51:A477," ",B51:B480) -> 3070203 Servicio Telefónico Larga Distancia con aparato
A52: 3070201 | B52: Línea Externa no conmutada (Previa solicitud a Etb, Claro, EPM, Colomsat u otro operador) | C52: =CONCATENATE(A52:A478," ",B52:B481) -> 3070201 Línea Externa no conmutada (Previa solicitud a Etb, Claro, EPM, Colomsat u otro operador)
A53: 3070207 | B53: Conexión cableada para Datafono:(No incluye Datafono) | C53: =CONCATENATE(A53:A479," ",B53:B482) -> 3070207 Conexión cableada para Datafono:(No incluye Datafono)
A54: 3071107 | B54: Archivador Regina (70cm x 37cm x50cm) | C54: =CONCATENATE(A54:A480," ",B54:B483) -> 3071107 Archivador Regina (70cm x 37cm x50cm)
A55: 3070954 | B55: Counter Mónaco (Melaminico) (100cm x 100cm x 30cm) | C55: =CONCATENATE(A55:A481," ",B55:B484) -> 3070954 Counter Mónaco (Melaminico) (100cm x 100cm x 30cm)
A56: 3070954 | B56: Counter Mónaco (Miel) (100cm x 100cm x 30cm) | C56: =CONCATENATE(A56:A482," ",B56:B485) -> 3070954 Counter Mónaco (Miel) (100cm x 100cm x 30cm)
A57: 3070954 | B57: Counter Mónaco (Roble Gris) (100cm x 100cm x 30cm) | C57: =CONCATENATE(A57:A483," ",B57:B486) -> 3070954 Counter Mónaco (Roble Gris) (100cm x 100cm x 30cm)
A58: 3070954 | B58: Counter Mónaco (Rovere) (100cm x 100cm x 30cm) | C58: =CONCATENATE(A58:A484," ",B58:B487) -> 3070954 Counter Mónaco (Rovere) (100cm x 100cm x 30cm)
A59: 3070714 | B59: Cubo de exhibición (40cm x 40cm x 25cm) | C59: =CONCATENATE(A59:A485," ",B59:B488) -> 3070714 Cubo de exhibición (40cm x 40cm x 25cm)
A60: 3070503 | B60: Estantería Polo (Melaminico) (200cm x 93cm x 35cm) | C60: =CONCATENATE(A60:A486," ",B60:B489) -> 3070503 Estantería Polo (Melaminico) (200cm x 93cm x 35cm)
A61: 3070503 | B61: Estantería Polo (Miel) (200cm x 93cm x 35cm) | C61: =CONCATENATE(A61:A487," ",B61:B490) -> 3070503 Estantería Polo (Miel) (200cm x 93cm x 35cm)
A62: 3070503 | B62: Estantería Polo (OSB) (200cm x 93cm x 35cm) | C62: =CONCATENATE(A62:A488," ",B62:B491) -> 3070503 Estantería Polo (OSB) (200cm x 93cm x 35cm)
A63: 3070503 | B63: Estantería Polo (Roble Gris) (200cm x 93cm x 35cm) | C63: =CONCATENATE(A63:A489," ",B63:B492) -> 3070503 Estantería Polo (Roble Gris) (200cm x 93cm x 35cm)
A64: 3070503 | B64: Estantería Polo (Rovere) (200cm x 93cm x 35cm) | C64: =CONCATENATE(A64:A490," ",B64:B493) -> 3070503 Estantería Polo (Rovere) (200cm x 93cm x 35cm)
A65: 3071108 | B65: Estantería Shelf 4E (190cm x 125cm x 41cm) | C65: =CONCATENATE(A65:A491," ",B65:B494) -> 3071108 Estantería Shelf 4E (190cm x 125cm x 41cm)
A66: 3071105 | B66: KIT básico oficina 2 (2 sillas interlocutoras negras, 1 silla ejecutiva cuero, 1 mesa oficina) | C66: =CONCATENATE(A66:A493," ",B66:B496) -> 3071105 KIT básico oficina 2 (2 sillas interlocutoras negras, 1 silla ejecutiva cuero, 1 mesa oficina)
A67: 3070512 | B67: Locker 12 puestos | C67: =CONCATENATE(A67:A494," ",B67:B497) -> 3070512 Locker 12 puestos
A68: 3070512 | B68: Mesa alta Daysa (Melaminico) (100cm x 60cm) | C68: =CONCATENATE(A68:A496," ",B68:B499) -> 3070512 Mesa alta Daysa (Melaminico) (100cm x 60cm)
A69: 3071115 | B69: Mesa alta Daysa (Miel) (100cm x 60cm) | C69: =CONCATENATE(A69:A497," ",B69:B500) -> 3071115 Mesa alta Daysa (Miel) (100cm x 60cm)
A70: 3071115 | B70: Mesa alta Daysa (Roble Gris) (100cm x 60cm) | C70: =CONCATENATE(A70:A498," ",B70:B501) -> 3071115 Mesa alta Daysa (Roble Gris) (100cm x 60cm)
A71: 3071115 | B71: Mesa alta Daysa (Rovere) (100cm x 60cm) | C71: =CONCATENATE(A71:A499," ",B71:B502) -> 3071115 Mesa alta Daysa (Rovere) (100cm x 60cm)
A72: 3071039 | B72: Mesa alta Daysa + 2 sillas neumaticas altas marsella | C72: =CONCATENATE(A72:A500," ",B72:B503) -> 3071039 Mesa alta Daysa + 2 sillas neumaticas altas marsella
A73: 3071093 | B73: Mesa alta Daysa vidrio (100cm x 60cm) | C73: =CONCATENATE(A73:A501," ",B73:B504) -> 3071093 Mesa alta Daysa vidrio (100cm x 60cm)
A74: 3071100 | B74: Mesa Centro Circular doble nivel (melaminico) (50cm x 110cm x 60cm) | C74: =CONCATENATE(A74:A502," ",B74:B505) -> 3071100 Mesa Centro Circular doble nivel (melaminico) (50cm x 110cm x 60cm)
A75: 3071104 | B75: Mesa Centro Cuadrada 2 Niveles (melaminico) (50cm x 60cm x 60) | C75: =CONCATENATE(A75:A503," ",B75:B506) -> 3071104 Mesa Centro Cuadrada 2 Niveles (melaminico) (50cm x 60cm x 60)
A76: 3071068 | B76: Mesa Centro Rectangular doble nivel (melaminico) (50cm x 75cm x 50cm) | C76: =CONCATENATE(A76:A504," ",B76:B507) -> 3071068 Mesa Centro Rectangular doble nivel (melaminico) (50cm x 75cm x 50cm)
A77: 3071098 | B77: Mesa estandar Chia Blanca | C77: =CONCATENATE(A77:A505," ",B77:B508) -> 3071098 Mesa estandar Chia Blanca
A78: 3071098 | B78: Mesa estandar Chia Negra | C78: =CONCATENATE(A78:A506," ",B78:B509) -> 3071098 Mesa estandar Chia Negra
A79: 3071097 | B79: Mesa estandar Daysa (76cm x 60cm) | C79: =CONCATENATE(A79:A507," ",B79:B510) -> 3071097 Mesa estandar Daysa (76cm x 60cm)
A80: 3071116 | B80: Mesa estandar Lotus (70cm x 64cm x 81cm) | C80: =CONCATENATE(A80:A508," ",B80:B511) -> 3071116 Mesa estandar Lotus (70cm x 64cm x 81cm)
A81: 3071054 | B81: Mesa estandar lotus vidrio + 2 sillas tipo huevo | C81: =CONCATENATE(A81:A509," ",B81:B512) -> 3071054 Mesa estandar lotus vidrio + 2 sillas tipo huevo
A82: 30713200 | B82: Mesa Oficina (78cm x 120cm x 50cm) | C82: =CONCATENATE(A82:A510," ",B82:B513) -> 30713200 Mesa Oficina (78cm x 120cm x 50cm)
A83: 3071036 | B83: Mesa plegable plastico + 2 sillas interlocutoras negras | C83: =CONCATENATE(A83:A511," ",B83:B514) -> 3071036 Mesa plegable plastico + 2 sillas interlocutoras negras
A84: 3070936 | B84: Mesón plegable plástico (Gris o blanco) (73cm x 182cm x 76cm) | C84: =CONCATENATE(A84:A512," ",B84:B515) -> 3070936 Mesón plegable plástico (Gris o blanco) (73cm x 182cm x 76cm)
A85: 3071103 | B85: Nevera Estandar 230LT ( 55.6cm X 157.6cm X 67cm) | C85: =CONCATENATE(A85:A513," ",B85:B516) -> 3071103 Nevera Estandar 230LT ( 55.6cm X 157.6cm X 67cm)
A86: 3071103 | B86: Nevera Minibar 121 LT (48.5cm X 85.1cm X 60cm) | C86: =CONCATENATE(A86:A514," ",B86:B517) -> 3071103 Nevera Minibar 121 LT (48.5cm X 85.1cm X 60cm)
A87: 3071302 | B87: Papelera plastica negra | C87: =CONCATENATE(A87:A515," ",B87:B518) -> 3071302 Papelera plastica negra
A88: 3070957 | B88: Pedestal cuadrado (30cm x 30cm x 30cm) | C88: =CONCATENATE(A88:A516," ",B88:B519) -> 3070957 Pedestal cuadrado (30cm x 30cm x 30cm)
A89: 3070956 | B89: Pedestal rectangular 60cm (60cm x 30cm x 30cm) | C89: =CONCATENATE(A89:A517," ",B89:B520) -> 3070956 Pedestal rectangular 60cm (60cm x 30cm x 30cm)
A90: 3070955 | B90: Pedestal rectangular 90cm (90cm x 30cm x 30cm) | C90: =CONCATENATE(A90:A518," ",B90:B521) -> 3070955 Pedestal rectangular 90cm (90cm x 30cm x 30cm)
A91: 3070521 | B91: Perchero básico 1 pedestal (120cm Ancho - Altura) graduable + 5 ganchos | C91: =CONCATENATE(A91:A519," ",B91:B522) -> 3070521 Perchero básico 1 pedestal (120cm Ancho - Altura) graduable + 5 ganchos
A92: 3070521 | B92: Perchero doble 2 pedestal (120cm Ancho-Altura) graduable + 5 ganchos | C92: =CONCATENATE(A92:A520," ",B92:B523) -> 3070521 Perchero doble 2 pedestal (120cm Ancho-Altura) graduable + 5 ganchos
A93: 30713201 | B93: Poltrona Buggy (72cm x 64cm) | C93: =CONCATENATE(A93:A521," ",B93:B524) -> 30713201 Poltrona Buggy (72cm x 64cm)
A94: 3071059 | B94: Poltrona Levis (73cm x 86cm x 73cm) | C94: =CONCATENATE(A94:A522," ",B94:B525) -> 3071059 Poltrona Levis (73cm x 86cm x 73cm)
A95: 3071325 | B95: Poste separador 120cm de alto | C95: =CONCATENATE(A95:A523," ",B95:B526) -> 3071325 Poste separador 120cm de alto
A96: 3071090 | B96: Puff estandar cuadrado (43cm x 43cm x 43cm) | C96: =CONCATENATE(A96:A524," ",B96:B527) -> 3071090 Puff estandar cuadrado (43cm x 43cm x 43cm)
A97: 3071091 | B97: Puff Trunk 2 cuerpos (48cm x 81cm x 40cm) | C97: =CONCATENATE(A97:A525," ",B97:B528) -> 3071091 Puff Trunk 2 cuerpos (48cm x 81cm x 40cm)
A98: 3071114 | B98: Puff Trunk 3 cuerpos (46cm x 120cm x 54cm) | C98: =CONCATENATE(A98:A526," ",B98:B529) -> 3071114 Puff Trunk 3 cuerpos (46cm x 120cm x 54cm)
A99: 3071370 | B99: Revistero plegable (140cm x 25cm x 29cm) | C99: =CONCATENATE(A99:A527," ",B99:B530) -> 3071370 Revistero plegable (140cm x 25cm x 29cm)
B100: Sala de Juntas | C100: =CONCATENATE(A100:A528," ",B100:B531) -> Sala de Juntas
A101: 3071113 | B101: Sala Osaka (1 sofá Toronto, 2 puffs Donna, 1 mesa centro cuadrada 2 niveles) | C101: =CONCATENATE(A101:A529," ",B101:B532) -> 3071113 Sala Osaka (1 sofá Toronto, 2 puffs Donna, 1 mesa centro cuadrada 2 niveles)
A102: 3071095 | B102: Sala VIP (1 sofá Victoria derecho, 1 sofá Victoria izquierdo, 2 poltronas, 1 mesa centro cuadrada 2 niveles) | C102: =CONCATENATE(A102:A530," ",B102:B533) -> 3071095 Sala VIP (1 sofá Victoria derecho, 1 sofá Victoria izquierdo, 2 poltronas, 1 mesa centro cuadrada 2 niveles)
B103: Silla Bombonera Roja | C103: =CONCATENATE(A103:A531," ",B103:B534) -> Silla Bombonera Roja
A104: 3071081 | B104: Silla Ejecutiva Cuero (57cm x 93cm x 52cm) | C104: =CONCATENATE(A104:A532," ",B104:B535) -> 3071081 Silla Ejecutiva Cuero (57cm x 93cm x 52cm)
A105: 3071081 | B105: Silla Ejecutiva Malla | C105: =CONCATENATE(A105:A533," ",B105:B536) -> 3071081 Silla Ejecutiva Malla
A106: 3071061 | B106: Silla estandar Suiza (48cm x 46cm x 45cm) | C106: =CONCATENATE(A106:A534," ",B106:B537) -> 3071061 Silla estandar Suiza (48cm x 46cm x 45cm)
A107: 3071008 | B107: Silla estandar Tipo Huevo (48cm x 46cm x 45cm) | C107: =CONCATENATE(A107:A535," ",B107:B538) -> 3071008 Silla estandar Tipo Huevo (48cm x 46cm x 45cm)
A108: 30713198 | B108: Silla Gerencial (100cm x 49cm x 49cm) | C108: =CONCATENATE(A108:A536," ",B108:B539) -> 30713198 Silla Gerencial (100cm x 49cm x 49cm)
A109: 3071006 | B109: Silla Interlocutora Negra (79cm x 53cm x 42cm) | C109: =CONCATENATE(A109:A537," ",B109:B540) -> 3071006 Silla Interlocutora Negra (79cm x 53cm x 42cm)
A110: 3071077 | B110: Silla Neumática alta Marsella (80cm x 40cm x 40cm) | C110: =CONCATENATE(A110:A538," ",B110:B541) -> 3071077 Silla Neumática alta Marsella (80cm x 40cm x 40cm)
A111: 3071022 | B111: Silla Neumatica alta Versalles (80cm x 40 cm x 40cm | C111: =CONCATENATE(A111:A539," ",B111:B542) -> 3071022 Silla Neumatica alta Versalles (80cm x 40 cm x 40cm
B112: Silla Oslo Blanca | C112: =CONCATENATE(A112:A540," ",B112:B543) -> Silla Oslo Blanca
B113: Silla Tipo Bar Madera | C113: =CONCATENATE(A113:A541," ",B113:B544) -> Silla Tipo Bar Madera
A114: 3071085 | B114: Sofa Otawa 2 cuerpos (85cm x 120cm x 76cm) | C114: =CONCATENATE(A114:A542," ",B114:B545) -> 3071085 Sofa Otawa 2 cuerpos (85cm x 120cm x 76cm)
A115: 3071031 | B115: Sofa Terranova 2 cuerpos (88cm x 173cm x 80cm) | C115: =CONCATENATE(A115:A543," ",B115:B546) -> 3071031 Sofa Terranova 2 cuerpos (88cm x 173cm x 80cm)
A116: 3071083 | B116: Sofa Toronto 3 cuerpos (88cm x 173cm x 80cm) | C116: =CONCATENATE(A116:A578," ",B116:B581) -> 3071083 Sofa Toronto 3 cuerpos (88cm x 173cm x 80cm)
A117: 3071013 | B117: Sofa Victoria derecho (70cm x 100cm x 75cm) | C117: =CONCATENATE(A117:A579," ",B117:B582) -> 3071013 Sofa Victoria derecho (70cm x 100cm x 75cm)
A118: 3071023 | B118: Sofa Victoria izquierdo (70cm x 100cm x 75cm) | C118: =CONCATENATE(A118:A580," ",B118:B583) -> 3071023 Sofa Victoria izquierdo (70cm x 100cm x 75cm)
A119: 3070505 | B119: Tarima 120x120x60, (Previa verificación con área de montaje) | C119: =CONCATENATE(A119:A581," ",B119:B584) -> 3070505 Tarima 120x120x60, (Previa verificación con área de montaje)
A120: 3070535 | B120: Vitrina Isla 2E (200cm x 50cm x 50cm) | C120: =CONCATENATE(A120:A582," ",B120:B585) -> 3070535 Vitrina Isla 2E (200cm x 50cm x 50cm)
A121: 3070517 | B121: Vitrina Mostrador 2E (100cm x 100cm x 40cm) | C121: =CONCATENATE(A121:A583," ",B121:B586) -> 3070517 Vitrina Mostrador 2E (100cm x 100cm x 40cm)
A122: 3070518 | B122: Vitrina Mostrador Tipo 2 1E (92cm x 90 cm x 40cm) | C122: =CONCATENATE(A122:A584," ",B122:B587) -> 3070518 Vitrina Mostrador Tipo 2 1E (92cm x 90 cm x 40cm)
A123: 3071111 | B123: Vitrina Rectangular 2E (200cm x 100cm x 40cm) | C123: =CONCATENATE(A123:A585," ",B123:B588) -> 3071111 Vitrina Rectangular 2E (200cm x 100cm x 40cm)
A124: 3071346 | B124: Base para Tv Led - LCD adaptable (No Incluye Instalacion) Valor evento 1 día | C124: =CONCATENATE(A124:A586," ",B124:B589) -> 3071346 Base para Tv Led - LCD adaptable (No Incluye Instalacion) Valor evento 1 día
A125: 3071346 | B125: Base para Tv Led - LCD adaptable (No Incluye Instalacion) Valor evento 2 dias (Valor dia) | C125: =CONCATENATE(A125:A587," ",B125:B590) -> 3071346 Base para Tv Led - LCD adaptable (No Incluye Instalacion) Valor evento 2 dias (Valor dia)
A126: 3071346 | B126: Base para Tv Led - LCD adaptable (No Incluye Instalacion) Valor de 3 a 6 dias (Valor dia) | C126: =CONCATENATE(A126:A588," ",B126:B591) -> 3071346 Base para Tv Led - LCD adaptable (No Incluye Instalacion) Valor de 3 a 6 dias (Valor dia)
A127: 3071346 | B127: Base para Tv Led - LCD adaptable (No Incluye Instalacion) Valor de 7 a 18 días (Valor feria) | C127: =CONCATENATE(A127:A589," ",B127:B592) -> 3071346 Base para Tv Led - LCD adaptable (No Incluye Instalacion) Valor de 7 a 18 días (Valor feria)
A128: 3071204 | B128: Tv Smart 42" 106cms ( Incluye base para tv / cable de corriente / 1 cable HDMI) IN: HDMI, USB Valor evento 1 día | C128: =CONCATENATE(A128:A590," ",B128:B593) -> 3071204 Tv Smart 42" 106cms ( Incluye base para tv / cable de corriente / 1 cable HDMI) IN: HDMI, USB Valor evento 1 día
A129: 3071204 | B129: Tv Smart 42" 106cms ( Incluye base para tv / cable de corriente / 1 cable HDMI) IN: HDMI, USB Valor evento 2 dias (Valor dia) | C129: =CONCATENATE(A129:A591," ",B129:B594) -> 3071204 Tv Smart 42" 106cms ( Incluye base para tv / cable de corriente / 1 cable HDMI) IN: HDMI, USB Valor evento 2 dias (Valor dia)
A130: 3071204 | B130: Tv Smart 42" 106cms ( Incluye base para tv / cable de corriente / 1 cable HDMI) IN: HDMI, USB Valor de 3 a 6 dias (Valor dia) | C130: =CONCATENATE(A130:A592," ",B130:B595) -> 3071204 Tv Smart 42" 106cms ( Incluye base para tv / cable de corriente / 1 cable HDMI) IN: HDMI, USB Valor de 3 a 6 dias (Valor dia)
A131: 3071204 | B131: Tv Smart 42" 106cms ( Incluye base para tv / cable de corriente / 1 cable HDMI) IN: HDMI, USB Valor de 7 a 18 días (Valor feria) | C131: =CONCATENATE(A131:A593," ",B131:B596) -> 3071204 Tv Smart 42" 106cms ( Incluye base para tv / cable de corriente / 1 cable HDMI) IN: HDMI, USB Valor de 7 a 18 días (Valor feria)
A132: 3071206 | B132: Tv Smart 55" 140cms ( Incluye base para tv / cable de corriente / 1 cable HDMI) IN: HDMI, USB Valor evento 1 día | C132: =CONCATENATE(A132:A586," ",B132:B589) -> 3071206 Tv Smart 55" 140cms ( Incluye base para tv / cable de corriente / 1 cable HDMI) IN: HDMI, USB Valor evento 1 día
A133: 3071206 | B133: Tv Smart 55" 140cms ( Incluye base para tv / cable de corriente / 1 cable HDMI) IN: HDMI, USB Valor evento 2 dias (Valor dia) | C133: =CONCATENATE(A133:A587," ",B133:B590) -> 3071206 Tv Smart 55" 140cms ( Incluye base para tv / cable de corriente / 1 cable HDMI) IN: HDMI, USB Valor evento 2 dias (Valor dia)
A134: 3071206 | B134: Tv Smart 55" 140cms ( Incluye base para tv / cable de corriente / 1 cable HDMI) IN: HDMI, USB Valor de 3 a 6 dias (Valor dia) | C134: =CONCATENATE(A134:A588," ",B134:B591) -> 3071206 Tv Smart 55" 140cms ( Incluye base para tv / cable de corriente / 1 cable HDMI) IN: HDMI, USB Valor de 3 a 6 dias (Valor dia)
A135: 3071206 | B135: Tv Smart 55" 140cms ( Incluye base para tv / cable de corriente / 1 cable HDMI) IN: HDMI, USB Valor de 7 a 18 días (Valor feria) | C135: =CONCATENATE(A135:A589," ",B135:B592) -> 3071206 Tv Smart 55" 140cms ( Incluye base para tv / cable de corriente / 1 cable HDMI) IN: HDMI, USB Valor de 7 a 18 días (Valor feria)
A136: 30713202 | B136: Tv Smart 65" 165cms ( Incluye base para tv / cable de corriente /1 cable HDMI) IN: HDMI, USB Valor evento 1 día | C136: =CONCATENATE(A136:A590," ",B136:B593) -> 30713202 Tv Smart 65" 165cms ( Incluye base para tv / cable de corriente /1 cable HDMI) IN: HDMI, USB Valor evento 1 día
A137: 30713202 | B137: Tv Smart 65" 165cms ( Incluye base para tv / cable de corriente /1 cable HDMI) IN: HDMI, USB Valor evento 2 dias (Valor dia) | C137: =CONCATENATE(A137:A591," ",B137:B594) -> 30713202 Tv Smart 65" 165cms ( Incluye base para tv / cable de corriente /1 cable HDMI) IN: HDMI, USB Valor evento 2 dias (Valor dia)
A138: 30713202 | B138: Tv Smart 65" 165cms ( Incluye base para tv / cable de corriente /1 cable HDMI) IN: HDMI, USB Valor de 3 a 6 dias (Valor dia) | C138: =CONCATENATE(A138:A592," ",B138:B595) -> 30713202 Tv Smart 65" 165cms ( Incluye base para tv / cable de corriente /1 cable HDMI) IN: HDMI, USB Valor de 3 a 6 dias (Valor dia)
A139: 30713202 | B139: Tv Smart 65" 165cms ( Incluye base para tv / cable de corriente /1 cable HDMI) IN: HDMI, USB Valor de 7 a 18 días (Valor feria) | C139: =CONCATENATE(A139:A593," ",B139:B596) -> 30713202 Tv Smart 65" 165cms ( Incluye base para tv / cable de corriente /1 cable HDMI) IN: HDMI, USB Valor de 7 a 18 días (Valor feria)
A140: 3071279 | B140: Tv Smart 70" 177,8cms ( Incluye base para tv / cable de corriente /1 cable HDMI) IN: HDMI, USB Valor evento 1 día | C140: =CONCATENATE(A140:A594," ",B140:B597) -> 3071279 Tv Smart 70" 177,8cms ( Incluye base para tv / cable de corriente /1 cable HDMI) IN: HDMI, USB Valor evento 1 día
A141: 3071279 | B141: Tv Smart 70" 177,8cms ( Incluye base para tv / cable de corriente /1 cable HDMI) IN: HDMI, USB Valor evento 2 dias (Valor dia) | C141: =CONCATENATE(A141:A595," ",B141:B598) -> 3071279 Tv Smart 70" 177,8cms ( Incluye base para tv / cable de corriente /1 cable HDMI) IN: HDMI, USB Valor evento 2 dias (Valor dia)
A142: 3071279 | B142: Tv Smart 70" 177,8cms ( Incluye base para tv / cable de corriente /1 cable HDMI) IN: HDMI, USB Valor de 3 a 6 dias (Valor dia) | C142: =CONCATENATE(A142:A596," ",B142:B599) -> 3071279 Tv Smart 70" 177,8cms ( Incluye base para tv / cable de corriente /1 cable HDMI) IN: HDMI, USB Valor de 3 a 6 dias (Valor dia)
A143: 3071279 | B143: Tv Smart 70" 177,8cms ( Incluye base para tv / cable de corriente /1 cable HDMI) IN: HDMI, USB Valor de 7 a 18 días (Valor feria) | C143: =CONCATENATE(A143:A597," ",B143:B600) -> 3071279 Tv Smart 70" 177,8cms ( Incluye base para tv / cable de corriente /1 cable HDMI) IN: HDMI, USB Valor de 7 a 18 días (Valor feria)
A144: 3071222 | B144: Tv Smart 82" 204cms ( Incluye base para tv / cable de corriente /1 cable HDMI) IN: HDMI, USB Valor evento 1 día | C144: =CONCATENATE(A144:A598," ",B144:B601) -> 3071222 Tv Smart 82" 204cms ( Incluye base para tv / cable de corriente /1 cable HDMI) IN: HDMI, USB Valor evento 1 día
A145: 3071222 | B145: Tv Smart 82" 204cms ( Incluye base para tv / cable de corriente /1 cable HDMI) IN: HDMI, USB Valor evento 2 dias (Valor dia) | C145: =CONCATENATE(A145:A599," ",B145:B602) -> 3071222 Tv Smart 82" 204cms ( Incluye base para tv / cable de corriente /1 cable HDMI) IN: HDMI, USB Valor evento 2 dias (Valor dia)
A146: 3071222 | B146: Tv Smart 82" 204cms ( Incluye base para tv / cable de corriente /1 cable HDMI) IN: HDMI, USB Valor de 3 a 6 dias (Valor dia) | C146: =CONCATENATE(A146:A600," ",B146:B603) -> 3071222 Tv Smart 82" 204cms ( Incluye base para tv / cable de corriente /1 cable HDMI) IN: HDMI, USB Valor de 3 a 6 dias (Valor dia)
A147: 3071222 | B147: Tv Smart 82" 204cms ( Incluye base para tv / cable de corriente /1 cable HDMI) IN: HDMI, USB Valor de 7 a 18 días (Valor feria) | C147: =CONCATENATE(A147:A601," ",B147:B604) -> 3071222 Tv Smart 82" 204cms ( Incluye base para tv / cable de corriente /1 cable HDMI) IN: HDMI, USB Valor de 7 a 18 días (Valor feria)
A148: 3071261 | B148: Monitor tactil 65" 165cms ( Incluye base para monitor / cableado) IN: HDMI Valor evento 1 día | C148: =CONCATENATE(A148:A602," ",B148:B605) -> 3071261 Monitor tactil 65" 165cms ( Incluye base para monitor / cableado) IN: HDMI Valor evento 1 día
A149: 3071261 | B149: Monitor tactil 65" 165cms ( Incluye base para monitor / cableado) IN: HDMI Valor evento 2 dias (Valor dia) | C149: =CONCATENATE(A149:A603," ",B149:B606) -> 3071261 Monitor tactil 65" 165cms ( Incluye base para monitor / cableado) IN: HDMI Valor evento 2 dias (Valor dia)
A150: 3071261 | B150: Monitor tactil 65" 165cms ( Incluye base para monitor / cableado) IN: HDMI Valor de 3 a 6 dias (Valor dia) | C150: =CONCATENATE(A150:A604," ",B150:B607) -> 3071261 Monitor tactil 65" 165cms ( Incluye base para monitor / cableado) IN: HDMI Valor de 3 a 6 dias (Valor dia)
A151: 3071261 | B151: Monitor tactil 65" 165cms ( Incluye base para monitor / cableado) IN: HDMI Valor de 7 a 18 días (Valor feria) | C151: =CONCATENATE(A151:A605," ",B151:B608) -> 3071261 Monitor tactil 65" 165cms ( Incluye base para monitor / cableado) IN: HDMI Valor de 7 a 18 días (Valor feria)
A152: 3071284 | B152: Tablet tactil 7" RAM:1GB / Conectividad: 3G / Sistema Operativo Android 9.0 Valor evento 1 día | C152: =CONCATENATE(A152:A606," ",B152:B609) -> 3071284 Tablet tactil 7" RAM:1GB / Conectividad: 3G / Sistema Operativo Android 9.0 Valor evento 1 día
A153: 3071284 | B153: Tablet tactil 7" RAM:1GB / Conectividad: 3G / Sistema Operativo Android 9.0 Valor evento 2 dias (Valor dia) | C153: =CONCATENATE(A153:A607," ",B153:B610) -> 3071284 Tablet tactil 7" RAM:1GB / Conectividad: 3G / Sistema Operativo Android 9.0 Valor evento 2 dias (Valor dia)
A154: 3071284 | B154: Tablet tactil 7" RAM:1GB / Conectividad: 3G / Sistema Operativo Android 9.0 Valor de 3 a 6 dias (Valor dia) | C154: =CONCATENATE(A154:A608," ",B154:B611) -> 3071284 Tablet tactil 7" RAM:1GB / Conectividad: 3G / Sistema Operativo Android 9.0 Valor de 3 a 6 dias (Valor dia)
A155: 3071284 | B155: Tablet tactil 7" RAM:1GB / Conectividad: 3G / Sistema Operativo Android 9.0 Valor de 7 a 18 días (Valor feria) | C155: =CONCATENATE(A155:A609," ",B155:B612) -> 3071284 Tablet tactil 7" RAM:1GB / Conectividad: 3G / Sistema Operativo Android 9.0 Valor de 7 a 18 días (Valor feria)
A156: 3071260 | B156: Pantalla Led Full Hd Indoor / Medida 3,20mts x 2,96mts / Pitch 3,9 / No incluye estructura para montaje Valor evento 1 día | C156: =CONCATENATE(A156:A610," ",B156:B613) -> 3071260 Pantalla Led Full Hd Indoor / Medida 3,20mts x 2,96mts / Pitch 3,9 / No incluye estructura para montaje Valor evento 1 día
A157: 3071260 | B157: Pantalla Led Full Hd Indoor / Medida 3,20mts x 2,96mts / Pitch 3,9 / No incluye estructura para montaje Valor evento 2 dias (Valor dia) | C157: =CONCATENATE(A157:A611," ",B157:B614) -> 3071260 Pantalla Led Full Hd Indoor / Medida 3,20mts x 2,96mts / Pitch 3,9 / No incluye estructura para montaje Valor evento 2 dias (Valor dia)
A158: 3071260 | B158: Pantalla Led Full Hd Indoor / Medida 3,20mts x 2,96mts / Pitch 3,9 / No incluye estructura para montaje Valor de 3 a 6 dias (Valor dia) | C158: =CONCATENATE(A158:A612," ",B158:B615) -> 3071260 Pantalla Led Full Hd Indoor / Medida 3,20mts x 2,96mts / Pitch 3,9 / No incluye estructura para montaje Valor de 3 a 6 dias (Valor dia)
A159: 3071260 | B159: Pantalla Led Full Hd Indoor / Medida 3,20mts x 2,96mts / Pitch 3,9 / No incluye estructura para montaje Valor de 7 a 18 días (Valor feria) | C159: =CONCATENATE(A159:A613," ",B159:B616) -> 3071260 Pantalla Led Full Hd Indoor / Medida 3,20mts x 2,96mts / Pitch 3,9 / No incluye estructura para montaje Valor de 7 a 18 días (Valor feria)
A160: 3071260 | B160: Pantalla Led Full Hd Indoor / Medida 4,48mts x 3,20mts / Pitch 3,9 / No incluye estructura para montaje Valor evento 1 día | C160: =CONCATENATE(A160:A614," ",B160:B617) -> 3071260 Pantalla Led Full Hd Indoor / Medida 4,48mts x 3,20mts / Pitch 3,9 / No incluye estructura para montaje Valor evento 1 día
A161: 3071260 | B161: Pantalla Led Full Hd Indoor / Medida 4,48mts x 3,20mts / Pitch 3,9 / No incluye estructura para montaje Valor evento 2 dias (Valor dia) | C161: =CONCATENATE(A161:A615," ",B161:B618) -> 3071260 Pantalla Led Full Hd Indoor / Medida 4,48mts x 3,20mts / Pitch 3,9 / No incluye estructura para montaje Valor evento 2 dias (Valor dia)
A162: 3071260 | B162: Pantalla Led Full Hd Indoor / Medida 4,48mts x 3,20mts / Pitch 3,9 / No incluye estructura para montaje Valor de 3 a 6 dias (Valor dia) | C162: =CONCATENATE(A162:A616," ",B162:B619) -> 3071260 Pantalla Led Full Hd Indoor / Medida 4,48mts x 3,20mts / Pitch 3,9 / No incluye estructura para montaje Valor de 3 a 6 dias (Valor dia)
A163: 3071260 | B163: Pantalla Led Full Hd Indoor / Medida 4,48mts x 3,20mts / Pitch 3,9 / No incluye estructura para montaje Valor de 7 a 18 días (Valor feria) | C163: =CONCATENATE(A163:A617," ",B163:B620) -> 3071260 Pantalla Led Full Hd Indoor / Medida 4,48mts x 3,20mts / Pitch 3,9 / No incluye estructura para montaje Valor de 7 a 18 días (Valor feria)
A164: 3071260 | B164: Pantalla Led Full Hd Indoor / Medida 6,4mts x 3,20mts /mts2: 20,48 / Pitch 3,9 / No incluye estructura para montaje Valor evento 1 día | C164: =CONCATENATE(A164:A618," ",B164:B621) -> 3071260 Pantalla Led Full Hd Indoor / Medida 6,4mts x 3,20mts /mts2: 20,48 / Pitch 3,9 / No incluye estructura para montaje Valor evento 1 día
A165: 3071260 | B165: Pantalla Led Full Hd Indoor / Medida 6,4mts x 3,20mts /mts2: 20,48 / Pitch 3,9 / No incluye estructura para montaje Valor evento 2 dias (Valor dia) | C165: =CONCATENATE(A165:A619," ",B165:B622) -> 3071260 Pantalla Led Full Hd Indoor / Medida 6,4mts x 3,20mts /mts2: 20,48 / Pitch 3,9 / No incluye estructura para montaje Valor evento 2 dias (Valor dia)
A166: 3071260 | B166: Pantalla Led Full Hd Indoor / Medida 6,4mts x 3,20mts /mts2: 20,48 / Pitch 3,9 / No incluye estructura para montaje Valor de 3 a 6 dias (Valor dia) | C166: =CONCATENATE(A166:A620," ",B166:B623) -> 3071260 Pantalla Led Full Hd Indoor / Medida 6,4mts x 3,20mts /mts2: 20,48 / Pitch 3,9 / No incluye estructura para montaje Valor de 3 a 6 dias (Valor dia)
A167: 3071260 | B167: Pantalla Led Full Hd Indoor / Medida 6,4mts x 3,20mts /mts2: 20,48 / Pitch 3,9 / No incluye estructura para montaje Valor de 7 a 18 días (Valor feria) | C167: =CONCATENATE(A167:A613," ",B167:B616) -> 3071260 Pantalla Led Full Hd Indoor / Medida 6,4mts x 3,20mts /mts2: 20,48 / Pitch 3,9 / No incluye estructura para montaje Valor de 7 a 18 días (Valor feria)
A168: 3071264 | B168: Pantalla Led Full Hd Indoor / Medida 6,4mts x 4,48mts /mts2: 28,67 / Pitch 3,9 / No incluye estructura para montaje Valor evento 1 día | C168: =CONCATENATE(A168:A614," ",B168:B617) -> 3071264 Pantalla Led Full Hd Indoor / Medida 6,4mts x 4,48mts /mts2: 28,67 / Pitch 3,9 / No incluye estructura para montaje Valor evento 1 día
A169: 3071264 | B169: Pantalla Led Full Hd Indoor / Medida 6,4mts x 4,48mts /mts2: 28,67 / Pitch 3,9 / No incluye estructura para montaje Valor evento 2 dias (Valor dia) | C169: =CONCATENATE(A169:A615," ",B169:B618) -> 3071264 Pantalla Led Full Hd Indoor / Medida 6,4mts x 4,48mts /mts2: 28,67 / Pitch 3,9 / No incluye estructura para montaje Valor evento 2 dias (Valor dia)
A170: 3071264 | B170: Pantalla Led Full Hd Indoor / Medida 6,4mts x 4,48mts /mts2: 28,67 / Pitch 3,9 / No incluye estructura para montaje Valor de 3 a 6 dias (Valor dia) | C170: =CONCATENATE(A170:A616," ",B170:B619) -> 3071264 Pantalla Led Full Hd Indoor / Medida 6,4mts x 4,48mts /mts2: 28,67 / Pitch 3,9 / No incluye estructura para montaje Valor de 3 a 6 dias (Valor dia)
A171: 3071264 | B171: Pantalla Led Full Hd Indoor / Medida 6,4mts x 4,48mts /mts2: 28,67 / Pitch 3,9 / No incluye estructura para montaje Valor de 7 a 18 días (Valor feria) | C171: =CONCATENATE(A171:A617," ",B171:B620) -> 3071264 Pantalla Led Full Hd Indoor / Medida 6,4mts x 4,48mts /mts2: 28,67 / Pitch 3,9 / No incluye estructura para montaje Valor de 7 a 18 días (Valor feria)
A172: 3071265 | B172: Pantalla Led Full Hd Indoor / Medida 7,4mts x 5,12mts /mts2: 36,04 / Pitch 3,9 / No incluye estructura para montaje Valor evento 1 día | C172: =CONCATENATE(A172:A618," ",B172:B621) -> 3071265 Pantalla Led Full Hd Indoor / Medida 7,4mts x 5,12mts /mts2: 36,04 / Pitch 3,9 / No incluye estructura para montaje Valor evento 1 día
A173: 3071265 | B173: Pantalla Led Full Hd Indoor / Medida 7,4mts x 5,12mts /mts2: 36,04 / Pitch 3,9 / No incluye estructura para montaje Valor evento 2 dias (Valor dia) | C173: =CONCATENATE(A173:A619," ",B173:B622) -> 3071265 Pantalla Led Full Hd Indoor / Medida 7,4mts x 5,12mts /mts2: 36,04 / Pitch 3,9 / No incluye estructura para montaje Valor evento 2 dias (Valor dia)
A174: 3071265 | B174: Pantalla Led Full Hd Indoor / Medida 7,4mts x 5,12mts /mts2: 36,04 / Pitch 3,9 / No incluye estructura para montaje Valor de 3 a 6 dias (Valor dia) | C174: =CONCATENATE(A174:A620," ",B174:B623) -> 3071265 Pantalla Led Full Hd Indoor / Medida 7,4mts x 5,12mts /mts2: 36,04 / Pitch 3,9 / No incluye estructura para montaje Valor de 3 a 6 dias (Valor dia)
A175: 3071265 | B175: Pantalla Led Full Hd Indoor / Medida 7,4mts x 5,12mts /mts2: 36,04 / Pitch 3,9 / No incluye estructura para montaje Valor de 7 a 18 días (Valor feria) | C175: =CONCATENATE(A175:A621," ",B175:B624) -> 3071265 Pantalla Led Full Hd Indoor / Medida 7,4mts x 5,12mts /mts2: 36,04 / Pitch 3,9 / No incluye estructura para montaje Valor de 7 a 18 días (Valor feria)
A176: 3071266 | B176: Pantalla Led Full Hd Indoor / Medida 8,32mts x 6,40mts /mts2: 53,25 / Pitch 3,9 / No incluye estructura para montaje Valor evento 1 día | C176: =CONCATENATE(A176:A622," ",B176:B625) -> 3071266 Pantalla Led Full Hd Indoor / Medida 8,32mts x 6,40mts /mts2: 53,25 / Pitch 3,9 / No incluye estructura para montaje Valor evento 1 día
A177: 3071266 | B177: Pantalla Led Full Hd Indoor / Medida 8,32mts x 6,40mts /mts2: 53,25 / Pitch 3,9 / No incluye estructura para montaje Valor evento 2 dias (Valor dia) | C177: =CONCATENATE(A177:A623," ",B177:B626) -> 3071266 Pantalla Led Full Hd Indoor / Medida 8,32mts x 6,40mts /mts2: 53,25 / Pitch 3,9 / No incluye estructura para montaje Valor evento 2 dias (Valor dia)
A178: 3071266 | B178: Pantalla Led Full Hd Indoor / Medida 8,32mts x 6,40mts /mts2: 53,25 / Pitch 3,9 / No incluye estructura para montaje Valor de 3 a 6 dias (Valor dia) | C178: =CONCATENATE(A178:A624," ",B178:B627) -> 3071266 Pantalla Led Full Hd Indoor / Medida 8,32mts x 6,40mts /mts2: 53,25 / Pitch 3,9 / No incluye estructura para montaje Valor de 3 a 6 dias (Valor dia)
A179: 3071266 | B179: Pantalla Led Full Hd Indoor / Medida 8,32mts x 6,40mts /mts2: 53,25 / Pitch 3,9 / No incluye estructura para montaje Valor de 7 a 18 días (Valor feria) | C179: =CONCATENATE(A179:A625," ",B179:B628) -> 3071266 Pantalla Led Full Hd Indoor / Medida 8,32mts x 6,40mts /mts2: 53,25 / Pitch 3,9 / No incluye estructura para montaje Valor de 7 a 18 días (Valor feria)
A180: 3071267 | B180: Pantalla Led Full Hd Outdoor / Medida 6,4mts x 4,48mts /mts2: 28,67 / Pitch 4,8 / No incluye estructura para montaje Valor evento 1 día | C180: =CONCATENATE(A180:A626," ",B180:B629) -> 3071267 Pantalla Led Full Hd Outdoor / Medida 6,4mts x 4,48mts /mts2: 28,67 / Pitch 4,8 / No incluye estructura para montaje Valor evento 1 día
A181: 3071267 | B181: Pantalla Led Full Hd Outdoor / Medida 6,4mts x 4,48mts /mts2: 28,67 / Pitch 4,8 / No incluye estructura para montaje Valor evento 2 dias (Valor dia) | C181: =CONCATENATE(A181:A627," ",B181:B630) -> 3071267 Pantalla Led Full Hd Outdoor / Medida 6,4mts x 4,48mts /mts2: 28,67 / Pitch 4,8 / No incluye estructura para montaje Valor evento 2 dias (Valor dia)
A182: 3071267 | B182: Pantalla Led Full Hd Outdoor / Medida 6,4mts x 4,48mts /mts2: 28,67 / Pitch 4,8 / No incluye estructura para montaje Valor de 3 a 6 dias (Valor dia) | C182: =CONCATENATE(A182:A628," ",B182:B631) -> 3071267 Pantalla Led Full Hd Outdoor / Medida 6,4mts x 4,48mts /mts2: 28,67 / Pitch 4,8 / No incluye estructura para montaje Valor de 3 a 6 dias (Valor dia)
A183: 3071267 | B183: Pantalla Led Full Hd Outdoor / Medida 6,4mts x 4,48mts /mts2: 28,67 / Pitch 4,8 / No incluye estructura para montaje Valor de 7 a 18 días (Valor feria) | C183: =CONCATENATE(A183:A629," ",B183:B632) -> 3071267 Pantalla Led Full Hd Outdoor / Medida 6,4mts x 4,48mts /mts2: 28,67 / Pitch 4,8 / No incluye estructura para montaje Valor de 7 a 18 días (Valor feria)
A184: 3071268 | B184: Pantalla Led Full Hd Outdoor / Medida 7,4mts x 5,12mts /mts2: 36,04/ Pitch 4,8 / No incluye estructura para montaje Valor evento 1 día | C184: =CONCATENATE(A184:A630," ",B184:B633) -> 3071268 Pantalla Led Full Hd Outdoor / Medida 7,4mts x 5,12mts /mts2: 36,04/ Pitch 4,8 / No incluye estructura para montaje Valor evento 1 día
A185: 3071268 | B185: Pantalla Led Full Hd Outdoor / Medida 7,4mts x 5,12mts /mts2: 36,04/ Pitch 4,8 / No incluye estructura para montaje Valor evento 2 dias (Valor dia) | C185: =CONCATENATE(A185:A631," ",B185:B634) -> 3071268 Pantalla Led Full Hd Outdoor / Medida 7,4mts x 5,12mts /mts2: 36,04/ Pitch 4,8 / No incluye estructura para montaje Valor evento 2 dias (Valor dia)
A186: 3071268 | B186: Pantalla Led Full Hd Outdoor / Medida 7,4mts x 5,12mts /mts2: 36,04/ Pitch 4,8 / No incluye estructura para montaje Valor de 3 a 6 dias (Valor dia) | C186: =CONCATENATE(A186:A632," ",B186:B635) -> 3071268 Pantalla Led Full Hd Outdoor / Medida 7,4mts x 5,12mts /mts2: 36,04/ Pitch 4,8 / No incluye estructura para montaje Valor de 3 a 6 dias (Valor dia)
A187: 3071268 | B187: Pantalla Led Full Hd Outdoor / Medida 7,4mts x 5,12mts /mts2: 36,04/ Pitch 4,8 / No incluye estructura para montaje Valor de 7 a 18 días (Valor feria) | C187: =CONCATENATE(A187:A633," ",B187:B636) -> 3071268 Pantalla Led Full Hd Outdoor / Medida 7,4mts x 5,12mts /mts2: 36,04/ Pitch 4,8 / No incluye estructura para montaje Valor de 7 a 18 días (Valor feria)
A188: 3071269 | B188: Pantalla Led Full Hd Outdoor / Medida 8,32mts x 6,40mts /mts2: 53,25/ Pitch 4,8 / No incluye estructura para montaje Valor evento 1 día | C188: =CONCATENATE(A188:A634," ",B188:B637) -> 3071269 Pantalla Led Full Hd Outdoor / Medida 8,32mts x 6,40mts /mts2: 53,25/ Pitch 4,8 / No incluye estructura para montaje Valor evento 1 día
A189: 3071269 | B189: Pantalla Led Full Hd Outdoor / Medida 8,32mts x 6,40mts /mts2: 53,25/ Pitch 4,8 / No incluye estructura para montaje Valor evento 2 dias (Valor dia) | C189: =CONCATENATE(A189:A635," ",B189:B638) -> 3071269 Pantalla Led Full Hd Outdoor / Medida 8,32mts x 6,40mts /mts2: 53,25/ Pitch 4,8 / No incluye estructura para montaje Valor evento 2 dias (Valor dia)
A190: 3071269 | B190: Pantalla Led Full Hd Outdoor / Medida 8,32mts x 6,40mts /mts2: 53,25/ Pitch 4,8 / No incluye estructura para montaje Valor de 3 a 6 dias (Valor dia) | C190: =CONCATENATE(A190:A636," ",B190:B639) -> 3071269 Pantalla Led Full Hd Outdoor / Medida 8,32mts x 6,40mts /mts2: 53,25/ Pitch 4,8 / No incluye estructura para montaje Valor de 3 a 6 dias (Valor dia)
A191: 3071269 | B191: Pantalla Led Full Hd Outdoor / Medida 8,32mts x 6,40mts /mts2: 53,25/ Pitch 4,8 / No incluye estructura para montaje Valor de 7 a 18 días (Valor feria) | C191: =CONCATENATE(A191:A637," ",B191:B640) -> 3071269 Pantalla Led Full Hd Outdoor / Medida 8,32mts x 6,40mts /mts2: 53,25/ Pitch 4,8 / No incluye estructura para montaje Valor de 7 a 18 días (Valor feria)
A192: 3071234 | B192: Video Proyector de 4.500 Lumens HD - El lugar de Proyeccion debe estar lo mas oscuro posible Valor evento 1 día | C192: =CONCATENATE(A192:A638," ",B192:B641) -> 3071234 Video Proyector de 4.500 Lumens HD - El lugar de Proyeccion debe estar lo mas oscuro posible Valor evento 1 día
A193: 3071234 | B193: Video Proyector de 4.500 Lumens HD - El lugar de Proyeccion debe estar lo mas oscuro posible Valor evento 2 dias (Valor dia) | C193: =CONCATENATE(A193:A639," ",B193:B642) -> 3071234 Video Proyector de 4.500 Lumens HD - El lugar de Proyeccion debe estar lo mas oscuro posible Valor evento 2 dias (Valor dia)
A194: 3071234 | B194: Video Proyector de 4.500 Lumens HD - El lugar de Proyeccion debe estar lo mas oscuro posible Valor de 3 a 6 dias (Valor dia) | C194: =CONCATENATE(A194:A640," ",B194:B643) -> 3071234 Video Proyector de 4.500 Lumens HD - El lugar de Proyeccion debe estar lo mas oscuro posible Valor de 3 a 6 dias (Valor dia)
A195: 3071234 | B195: Video Proyector de 4.500 Lumens HD - El lugar de Proyeccion debe estar lo mas oscuro posible Valor de 7 a 18 días (Valor feria) | C195: =CONCATENATE(A195:A641," ",B195:B644) -> 3071234 Video Proyector de 4.500 Lumens HD - El lugar de Proyeccion debe estar lo mas oscuro posible Valor de 7 a 18 días (Valor feria)
A196: 3071244 | B196: Video Proyector de 6.000 Lumens HD - El lugar de Proyeccion debe estar lo mas oscuro posible Valor evento 1 día | C196: =CONCATENATE(A196:A642," ",B196:B645) -> 3071244 Video Proyector de 6.000 Lumens HD - El lugar de Proyeccion debe estar lo mas oscuro posible Valor evento 1 día
A197: 3071244 | B197: Video Proyector de 6.000 Lumens HD - El lugar de Proyeccion debe estar lo mas oscuro posible Valor evento 2 dias (Valor dia) | C197: =CONCATENATE(A197:A643," ",B197:B646) -> 3071244 Video Proyector de 6.000 Lumens HD - El lugar de Proyeccion debe estar lo mas oscuro posible Valor evento 2 dias (Valor dia)
A198: 3071244 | B198: Video Proyector de 6.000 Lumens HD - El lugar de Proyeccion debe estar lo mas oscuro posible Valor de 3 a 6 dias (Valor dia) | C198: =CONCATENATE(A198:A644," ",B198:B647) -> 3071244 Video Proyector de 6.000 Lumens HD - El lugar de Proyeccion debe estar lo mas oscuro posible Valor de 3 a 6 dias (Valor dia)
A199: 3071244 | B199: Video Proyector de 6.000 Lumens HD - El lugar de Proyeccion debe estar lo mas oscuro posible Valor de 7 a 18 días (Valor feria) | C199: =CONCATENATE(A199:A645," ",B199:B648) -> 3071244 Video Proyector de 6.000 Lumens HD - El lugar de Proyeccion debe estar lo mas oscuro posible Valor de 7 a 18 días (Valor feria)
A200: 3071271 | B200: Video Proyector de 10.000 Lumens HD - El lugar de Proyeccion debe estar lo mas oscuro posible Valor evento 1 día | C200: =CONCATENATE(A200:A646," ",B200:B649) -> 3071271 Video Proyector de 10.000 Lumens HD - El lugar de Proyeccion debe estar lo mas oscuro posible Valor evento 1 día
... 217 more rows

Sheet FERIAS 3 DIAS (hidden)
A1: CLAVE | B1: CODIGO | C1: DESCRIPCIÓN | D1: FORMULA | E1: VALOR
A2: =CONCATENATE(B2:B493," ",C2:C493) -> 3070101 Instalación Monofásica (Toma corriente doble, consumo hasta 2KW/110V) valor de 1 a 6 dias | B2: 3070101 | C2: Instalación Monofásica (Toma corriente doble, consumo hasta 2KW/110V) valor de 1 a 6 dias | D2: =IF(G$3=TRUE,E2/I$3,E2) -> 364140 | E2: 364140 | F2: CELDA VINCULADA | G2: DÓLARES | H2: PESOS | I2: TRM
A3: =CONCATENATE(B3:B494," ",C3:C494) -> 3070103 Instalación kilovatio adicional monofásico (Debe contar con punto principal, MAX 2KW por punto) | B3: 3070103 | C3: Instalación kilovatio adicional monofásico (Debe contar con punto principal, MAX 2KW por punto) | D3: =IF(G$3=TRUE,E3/I$3,E3) -> 127092 | E3: 127092 | F3: 0 | G3: FALSE | H3: FALSE | I3: =REPLACE(Q4,5,4,"") -> 3876 | L3: USD | M3: EUR | N3: GBP | O3: CAD | P3: AUD | Q3: COP
A4: =CONCATENATE(B4:B495," ",C4:C495) -> 3070102 Instalación trifásica (Regleta plastica, consumo hasta 4KW/208V) | B4: 3070102 | C4: Instalación trifásica (Regleta plastica, consumo hasta 4KW/208V) | D4: 678062 | E4: 678062 | K4: USD | L4: 1 | M4: 0.93263 | N4: 0.79372 | O4: 126545 | P4: 139315 | Q4: 3876.49
A5: =CONCATENATE(B5:B496," ",C5:C496) -> 3070104 Instalación kilovatio adicional trifásico (Debe contar con punto principal) | B5: 3070104 | C5: Instalación kilovatio adicional trifásico (Debe contar con punto principal) | D5: 165886 | E5: 165886 | K5: EUR | L5: 107223 | M5: 1 | N5: 0.85106 | O5: 135686 | P5: 149378 | Q5: 4156.50
A6: =CONCATENATE(B6:B497," ",C6:C497) -> 3071372 De 21 a 50 kilovatios adicionales trifásicos (Valor por KW) (Debe contar con punto principal) | B6: 3071372 | C6: De 21 a 50 kilovatios adicionales trifásicos (Valor por KW) (Debe contar con punto principal) | D6: 150892 | E6: 150892 | K6: GBP | L6: 125989 | M6: 117501 | N6: 1 | O6: 159432 | P6: 175521 | Q6: 4883.93
A7: =CONCATENATE(B7:B498," ",C7:C498) -> 3071373 De 51 a 100 kilovatios adicionales trifásicos (Valor por KW) (Debe contar con punto principal) | B7: 3071373 | C7: De 51 a 100 kilovatios adicionales trifásicos (Valor por KW) (Debe contar con punto principal) | D7: 144228 | E7: 144228 | K7: CAD | L7: 0.79023 | M7: 0.73700 | N7: 0.62723 | O7: 1 | P7: 110091 | Q7: 3063.33
A8: =CONCATENATE(B8:B499," ",C8:C499) -> 3071374 Mas de100 kilovatios adicionales trifásicos (Valor por KW) (Debe contar con punto principal) | B8: 3071374 | C8: Mas de100 kilovatios adicionales trifásicos (Valor por KW) (Debe contar con punto principal) | D8: 138278 | E8: 138278 | K8: AUD | L8: 0.71780 | M8: 0.66944 | N8: 0.56973 | O8: 0.90834 | P8: 1 | Q8: 2782.54
A9: =CONCATENATE(B9:B500," ",C9:C500) -> 3070402 Lampara de pared ajustable (150W/110V) | B9: 3070402 | C9: Lampara de pared ajustable (150W/110V) | D9: 73542 | E9: 73542 | K9: COP | L9: 0.000258 | M9: 0.000241 | N9: 0.000205 | O9: 0.000326 | P9: 0.000359 | Q9: 1
A10: =CONCATENATE(B10:B501," ",C10:C501) -> 3070405 Reflector Led (50W- mltV) | B10: 3070405 | C10: Reflector Led (50W- mltV) | D10: 77350 | E10: 77350
A11: =CONCATENATE(B11:B502," ",C11:C502) -> 3070403 Extensión – tomacorriente doble con polo a tierra (1500W/110V) MAX 6mts | B11: 3070403 | C11: Extensión – tomacorriente doble con polo a tierra (1500W/110V) MAX 6mts | D11: 38080 | E11: 38080
A12: =CONCATENATE(B12:B503," ",C12:C503) -> 3071345 Lavaplatos 90XL* 60XH* 90 (No incluye agua y desague) valor de 1 a 6 dias | B12: 3071345 | C12: Lavaplatos 90XL* 60XH* 90 (No incluye agua y desague) valor de 1 a 6 dias | D12: 168028 | E12: 168028
A13: =CONCATENATE(B13:B504," ",C13:C504) -> 3070301 Punto de Agua en 1/2" (incluye consumo) valor de 1 a 6 dias | B13: 3070301 | C13: Punto de Agua en 1/2" (incluye consumo) valor de 1 a 6 dias | D13: 355096 | E13: 355096
A14: =CONCATENATE(B14:B505," ",C14:C505) -> 3070302 Desagüe en 1 1/2" Por toda la feria (Ubicación asignada por Corferias en su stand) valor de 1 a 6 dias | B14: 3070302 | C14: Desagüe en 1 1/2" Por toda la feria (Ubicación asignada por Corferias en su stand) valor de 1 a 6 dias | D14: 328678 | E14: 328678
A15: =CONCATENATE(B15:B506," ",C15:C506) -> 3071341 Aire comprimido para punto con presión máx. de 100 PSI, y caudal máx. 35CFM. valor de 1 a 6 dias | B15: 3071341 | C15: Aire comprimido para punto con presión máx. de 100 PSI, y caudal máx. 35CFM. valor de 1 a 6 dias | D15: 475286 | E15: 475286
A16: =CONCATENATE(B16:B507," ",C16:C507) -> 3070307 Punto de Agua en 1/2" (Incluye consumo) + Desagüe en 1 1/2" + Lavaplatos valor de 1 a 6 dias | B16: 3070307 | C16: Punto de Agua en 1/2" (Incluye consumo) + Desagüe en 1 1/2" + Lavaplatos valor de 1 a 6 dias | D16: 766598 | E16: 766598
A17: =CONCATENATE(B17:B508," ",C17:C508) -> 3071321 Instalación de UN (1) punto de gas propano por UN (1) Equipo (Incluye materiales y mano de obra) (No incluye consumo de gas, este será liquidado a través de un medidor una vez finalice la feria y/o evento) | B17: 3071321 | C17: Instalación de UN (1) punto de gas propano por UN (1) Equipo (Incluye materiales y mano de obra) (No incluye consumo de gas, este será liquidado a través de un medidor una vez finalice la feria y/o evento) | D17: 102102 | E17: =85800*1.19 -> 102102
A18: =CONCATENATE(B18:B509," ",C18:C509) -> 3070601 Panel adicional sistema cfe 100cm x 240cm | B18: 3070601 | C18: Panel adicional sistema cfe 100cm x 240cm | D18: 39151 | E18: 39151
A19: =CONCATENATE(B19:B510," ",C19:C510) -> 3070801 Puerta sistema cfe 90cm x 240cm | B19: 3070801 | C19: Puerta sistema cfe 90cm x 240cm | D19: 97104 | E19: 97104
A20: =CONCATENATE(B20:B511," ",C20:C511) -> 3070803 Bodega estándar con puerta 150cm x 150cm (Sistema Corferias) | B20: 3070803 | C20: Bodega estándar con puerta 150cm x 150cm (Sistema Corferias) | D20: 154938 | E20: 154938
A21: =CONCATENATE(B21:B512," ",C21:C512) -> 3071319 Brazo Mecánico por Fracciòn de 15 min (Solo para primer nivel) | B21: 3071319 | C21: Brazo Mecánico por Fracciòn de 15 min (Solo para primer nivel) | D21: 66400 | E21: 66400
A22: =CONCATENATE(B22:B513," ",C22:C513) -> 3071319 Brazo Mecánico por Fracciòn de 30 min (Solo para primer nivel) | B22: 3071319 | C22: Brazo Mecánico por Fracciòn de 30 min (Solo para primer nivel) | D22: 113500 | E22: 113500
A23: =CONCATENATE(B23:B515," ",C23:C515) -> 3071319 Brazo Mecánico por Fracciòn de 60 min (Solo para primer nivel) | B23: 3071319 | C23: Brazo Mecánico por Fracciòn de 60 min (Solo para primer nivel) | D23: 201700 | E23: 201700
A24: =CONCATENATE(B24:B516," ",C24:C516) -> 3070413 Diferencial (Cap. 1 Ton.) + Brazo mecánico (Montaje y desmontaje) | B24: 3070413 | C24: Diferencial (Cap. 1 Ton.) + Brazo mecánico (Montaje y desmontaje) | D24: 313300 | E24: 313300
A25: =CONCATENATE(B25:B517," ",C25:C517) -> 3070414 Plataforma Tijera eléctrica por Fracciòn /30 min (Uso para segundos niveles) | B25: 3070414 | C25: Plataforma Tijera eléctrica por Fracciòn /30 min (Uso para segundos niveles) | D25: 78000 | E25: 78000
A26: =CONCATENATE(B26:B518," ",C26:C518) -> 3071387 Brazo mecánico + Diferencial + TRUSS 2,60 X 2,60 | B26: 3071387 | C26: Brazo mecánico + Diferencial + TRUSS 2,60 X 2,60 | D26: 2668000 | E26: 2668000
A27: =CONCATENATE(B27:B519," ",C27:C519) -> 3071351 Brazo mecánico + Diferencial + TRUSS 3,60 X 2,60 | B27: 3071351 | C27: Brazo mecánico + Diferencial + TRUSS 3,60 X 2,60 | D27: 2668000 | E27: 2668000
A28: =CONCATENATE(B28:B520," ",C28:C520) -> 3071395 Brazo mecánico + Diferencial + TRUSS 3,60 X 3,60 | B28: 3071395 | C28: Brazo mecánico + Diferencial + TRUSS 3,60 X 3,60 | D28: 2668000 | E28: 2668000
A29: =CONCATENATE(B29:B521," ",C29:C521) -> 3071324 Brazo mecánico + Diferencial + TRUSS 5,90 X 5,90 | B29: 3071324 | C29: Brazo mecánico + Diferencial + TRUSS 5,90 X 5,90 | D29: 3335000 | E29: 3335000
A30: =CONCATENATE(B30:B522," ",C30:C522) -> 3071436 Brazo mecánico + Diferencial + TRUSS 6,90 X 6,90 | B30: 3071436 | C30: Brazo mecánico + Diferencial + TRUSS 6,90 X 6,90 | D30: 3335000 | E30: 3335000
A31: =CONCATENATE(B31:B523," ",C31:C523) -> 3071350 Brazo mecánico + Diferencial + TRUSS 5,60 X 5,60 | B31: 3071350 | C31: Brazo mecánico + Diferencial + TRUSS 5,60 X 5,60 | D31: 3335000 | E31: 3335000
A32: =CONCATENATE(B32:B524," ",C32:C524) -> 3071371 Brazo mecánico + Diferencial + TRUSS 6,60 X 6,60 | B32: 3071371 | C32: Brazo mecánico + Diferencial + TRUSS 6,60 X 6,60 | D32: 3335000 | E32: 3335000
A33: =CONCATENATE(B33:B525," ",C33:C525) -> 3071393 Brazo mecánico + Diferencial + TRUSS 9,60 X 2,60 | B33: 3071393 | C33: Brazo mecánico + Diferencial + TRUSS 9,60 X 2,60 | D33: 3335000 | E33: 3335000
A34: =CONCATENATE(B34:B526," ",C34:C526) -> 3071394 Brazo mecánico + Diferencial + TRUSS 9,60 X 3,60 | B34: 3071394 | C34: Brazo mecánico + Diferencial + TRUSS 9,60 X 3,60 | D34: 3335000 | E34: 3335000
A35: =CONCATENATE(B35:B527," ",C35:C527) -> 3071396 Brazo mecánico + Diferencial + TRUSS 9,60 X 5,60 | B35: 3071396 | C35: Brazo mecánico + Diferencial + TRUSS 9,60 X 5,60 | D35: 4416000 | E35: 4416000
A36: =CONCATENATE(B36:B528," ",C36:C528) -> 3071397 Brazo mecánico + Diferencial + TRUSS 9,60 X 6,60 | B36: 3071397 | C36: Brazo mecánico + Diferencial + TRUSS 9,60 X 6,60 | D36: 4416000 | E36: 4416000
A37: =CONCATENATE(B37:B529," ",C37:C529) -> 3071418 Servicio de Internet Cableado "PARA UN EQUIPO - DURANTE UN DÍA" | B37: 3071418 | C37: Servicio de Internet Cableado "PARA UN EQUIPO - DURANTE UN DÍA" | D37: 74970 | E37: 74970
A38: =CONCATENATE(B38:B530," ",C38:C530) -> 3071419 Clave de acceso para la red WiFi "PARA UN EQUIPO - DURANTE UN DÍA" | B38: 3071419 | C38: Clave de acceso para la red WiFi "PARA UN EQUIPO - DURANTE UN DÍA" | D38: 74970 | E38: 74970
A39: =CONCATENATE(B39:B531," ",C39:C531) -> 3071417 Servicio de Internet Cableado "PARA UN EQUIPO - DURANTE TODA LA FERIA" valor de 3 dias | B39: 3071417 | C39: Servicio de Internet Cableado "PARA UN EQUIPO - DURANTE TODA LA FERIA" valor de 3 dias | D39: 180404 | E39: 180404
A40: =CONCATENATE(B40:B532," ",C40:C532) -> 3071420 Clave de acceso para la Red WiFi "PARA UN EQUIPO - DURANTE TODA LA FERIA" valor de 3 dias | B40: 3071420 | C40: Clave de acceso para la Red WiFi "PARA UN EQUIPO - DURANTE TODA LA FERIA" valor de 3 dias | D40: 180404 | E40: 180404
A41: =CONCATENATE(B41:B533," ",C41:C533) -> 3071423 Conexión para Datafono + Clave de acceso WIFI (Para un equipo durante toda la feria) valor de 3 dias | B41: 3071423 | C41: Conexión para Datafono + Clave de acceso WIFI (Para un equipo durante toda la feria) valor de 3 dias | D41: 289765 | E41: 289765
A42: =CONCATENATE(B42:B534," ",C42:C534) -> 3071424 Conexión para Datafono + Servicio de Internet Cableado (Para un equipo durante toda la feria) valor de 3 dias | B42: 3071424 | C42: Conexión para Datafono + Servicio de Internet Cableado (Para un equipo durante toda la feria) valor de 3 dias | D42: 289765 | E42: 289765
A43: =CONCATENATE(B43:B535," ",C43:C535) -> 3071425 Servicio de Internet Cableado + Clave de acceso WIFI (Para un equipo durante toda la feria) valor de 3 dias | B43: 3071425 | C43: Servicio de Internet Cableado + Clave de acceso WIFI (Para un equipo durante toda la feria) valor de 3 dias | D43: 324751 | E43: 324751
A44: =CONCATENATE(B44:B536," ",C44:C536) -> 3071437 Internet Dedicado: Si requiere conexión banda ancha para diferentes servicios o redes locales, contáctese con serviciosplus@corferias.com para brindarle asesoria y cotización. | B44: 3071437 | C44: Internet Dedicado: Si requiere conexión banda ancha para diferentes servicios o redes locales, contáctese con serviciosplus@corferias.com para brindarle asesoria y cotización. | D44: Según cotización | E44: Según cotización
A45: =CONCATENATE(B45:B537," ",C45:C537) -> 3071406 Instalación Punto de Red:Incluye un cable UTP por punto | B45: 3071406 | C45: Instalación Punto de Red:Incluye un cable UTP por punto | D45: 90797 | E45: 90797
A46: =CONCATENATE(B46:B538," ",C46:C538) -> 3071407 Switch VALOR POR FERIA | B46: 3071407 | C46: Switch VALOR POR FERIA | D46: 87346 | E46: 87346
A47: =CONCATENATE(B47:B539," ",C47:C539) -> 3071402 Servicio de VLAN: Servicio virtual de red. VALOR POR FERIA | B47: 3071402 | C47: Servicio de VLAN: Servicio virtual de red. VALOR POR FERIA | D47: 367115 | E47: 367115
A48: =CONCATENATE(B48:B540," ",C48:C540) -> 3071430 Extension LAN VALOR POR FERIA (Incluye punto de red y aplica para extender el servicio de internet contratado con terceros) | B48: 3071430 | C48: Extension LAN VALOR POR FERIA (Incluye punto de red y aplica para extender el servicio de internet contratado con terceros) | D48: 1401344 | E48: 1401344
A49: =CONCATENATE(B49:B541," ",C49:C541) -> 3071442 Soporte técnico permanente (Por espacio de 8 horas) de un técnico. VALOR DÍARIO | B49: 3071442 | C49: Soporte técnico permanente (Por espacio de 8 horas) de un técnico. VALOR DÍARIO | D49: 243474 | E49: 243474
A50: =CONCATENATE(B50:B542," ",C50:C542) -> 3070202 Servicio Telefónico Urbano con Aparato (Incluye consumo local ilimitado) | B50: 3070202 | C50: Servicio Telefónico Urbano con Aparato (Incluye consumo local ilimitado) | D50: 42483 | E50: 42483
A51: =CONCATENATE(B51:B543," ",C51:C543) -> 3070203 Servicio Telefónico Larga Distancia con aparato | B51: 3070203 | C51: Servicio Telefónico Larga Distancia con aparato | D51: 42483 | E51: 42483
A52: =CONCATENATE(B52:B544," ",C52:C544) -> 3070201 Línea Externa no conmutada (Previa solicitud a Etb, Claro, EPM, Colomsat u otro operador) | B52: 3070201 | C52: Línea Externa no conmutada (Previa solicitud a Etb, Claro, EPM, Colomsat u otro operador) | D52: 120071 | E52: 120071
A53: =CONCATENATE(B53:B545," ",C53:C545) -> 3070207 Conexión cableada para Datafono:(No incluye Datafono) | B53: 3070207 | C53: Conexión cableada para Datafono:(No incluye Datafono) | D53: 127092 | E53: 127092
A54: =CONCATENATE(B54:B546," ",C54:C546) -> 3071107 Archivador Regina (70cm x 37cm x50cm) | B54: 3071107 | C54: Archivador Regina (70cm x 37cm x50cm) | D54: 158151 | E54: 158151
A55: =CONCATENATE(B55:B547," ",C55:C547) -> 3070954 Counter Mónaco (Melaminico) (100cm x 100cm x 30cm) | B55: 3070954 | C55: Counter Mónaco (Melaminico) (100cm x 100cm x 30cm) | D55: 171241 | E55: 171241
A56: =CONCATENATE(B56:B548," ",C56:C548) -> 3070954 Counter Mónaco (Miel) (100cm x 100cm x 30cm) | B56: 3070954 | C56: Counter Mónaco (Miel) (100cm x 100cm x 30cm) | D56: 171241 | E56: 171241
A57: =CONCATENATE(B57:B549," ",C57:C549) -> 3070954 Counter Mónaco (Roble Gris) (100cm x 100cm x 30cm) | B57: 3070954 | C57: Counter Mónaco (Roble Gris) (100cm x 100cm x 30cm) | D57: 171241 | E57: 171241
A58: =CONCATENATE(B58:B550," ",C58:C550) -> 3070954 Counter Mónaco (Rovere) (100cm x 100cm x 30cm) | B58: 3070954 | C58: Counter Mónaco (Rovere) (100cm x 100cm x 30cm) | D58: 171241 | E58: 171241
A59: =CONCATENATE(B59:B551," ",C59:C551) -> 3070714 Cubo de exhibición (40cm x 40cm x 25cm) | B59: 3070714 | C59: Cubo de exhibición (40cm x 40cm x 25cm) | D59: 35700 | E59: 35700
A60: =CONCATENATE(B60:B552," ",C60:C552) -> 3070503 Estantería Polo (Melaminico) (200cm x 93cm x 35cm) | B60: 3070503 | C60: Estantería Polo (Melaminico) (200cm x 93cm x 35cm) | D60: 181951 | E60: 181951
A61: =CONCATENATE(B61:B553," ",C61:C553) -> 3070503 Estantería Polo (Miel) (200cm x 93cm x 35cm) | B61: 3070503 | C61: Estantería Polo (Miel) (200cm x 93cm x 35cm) | D61: 181951 | E61: 181951
A62: =CONCATENATE(B62:B554," ",C62:C554) -> 3070503 Estantería Polo (OSB) (200cm x 93cm x 35cm) | B62: 3070503 | C62: Estantería Polo (OSB) (200cm x 93cm x 35cm) | D62: 181951 | E62: 181951
A63: =CONCATENATE(B63:B555," ",C63:C555) -> 3070503 Estantería Polo (Roble Gris) (200cm x 93cm x 35cm) | B63: 3070503 | C63: Estantería Polo (Roble Gris) (200cm x 93cm x 35cm) | D63: 181951 | E63: 181951
A64: =CONCATENATE(B64:B556," ",C64:C556) -> 3070503 Estantería Polo (Rovere) (200cm x 93cm x 35cm) | B64: 3070503 | C64: Estantería Polo (Rovere) (200cm x 93cm x 35cm) | D64: 181951 | E64: 181951
A65: =CONCATENATE(B65:B557," ",C65:C557) -> 3071108 Estantería Shelf 4E (190cm x 125cm x 41cm) | B65: 3071108 | C65: Estantería Shelf 4E (190cm x 125cm x 41cm) | D65: 151606 | E65: 151606
A66: =CONCATENATE(B66:B559," ",C66:C559) -> 3071105 KIT básico oficina 2 (2 sillas interlocutoras negras, 1 silla ejecutiva cuero, 1 mesa oficina) | B66: 3071105 | C66: KIT básico oficina 2 (2 sillas interlocutoras negras, 1 silla ejecutiva cuero, 1 mesa oficina) | D66: 237286 | E66: 237286
A67: =CONCATENATE(B67:B560," ",C67:C560) -> 3070512 Locker 12 puestos | B67: 3070512 | C67: Locker 12 puestos | D67: =IF(G$3=TRUE,E67/I$3,E67) -> 357000 | E67: 357000
A68: =CONCATENATE(B68:B562," ",C68:C562) -> 3071115 Mesa alta Daysa (Melaminico) (100cm x 60cm) | B68: 3071115 | C68: Mesa alta Daysa (Melaminico) (100cm x 60cm) | D68: 105553 | E68: 105553
A69: =CONCATENATE(B69:B563," ",C69:C563) -> 3071115 Mesa alta Daysa (Miel) (100cm x 60cm) | B69: 3071115 | C69: Mesa alta Daysa (Miel) (100cm x 60cm) | D69: 105553 | E69: 105553
A70: =CONCATENATE(B70:B564," ",C70:C564) -> 3071115 Mesa alta Daysa (Roble Gris) (100cm x 60cm) | B70: 3071115 | C70: Mesa alta Daysa (Roble Gris) (100cm x 60cm) | D70: 105553 | E70: 105553
A71: =CONCATENATE(B71:B565," ",C71:C565) -> 3071115 Mesa alta Daysa (Rovere) (100cm x 60cm) | B71: 3071115 | C71: Mesa alta Daysa (Rovere) (100cm x 60cm) | D71: 105553 | E71: 105553
A72: =CONCATENATE(B72:B566," ",C72:C566) -> 3071039 Mesa alta Daysa + 2 sillas neumaticas altas marsella | B72: 3071039 | C72: Mesa alta Daysa + 2 sillas neumaticas altas marsella | D72: 247163 | E72: 247163
A73: =CONCATENATE(B73:B567," ",C73:C567) -> 3071093 Mesa alta Daysa vidrio (100cm x 60cm) | B73: 3071093 | C73: Mesa alta Daysa vidrio (100cm x 60cm) | D73: 118643 | E73: 118643
A74: =CONCATENATE(B74:B568," ",C74:C568) -> 3071100 Mesa Centro Circular doble nivel (melaminico) (50cm x 110cm x 60cm) | B74: 3071100 | C74: Mesa Centro Circular doble nivel (melaminico) (50cm x 110cm x 60cm) | D74: 117453 | E74: 117453
A75: =CONCATENATE(B75:B569," ",C75:C569) -> 3071104 Mesa Centro Cuadrada 2 Niveles (melaminico) (50cm x 60cm x 60) | B75: 3071104 | C75: Mesa Centro Cuadrada 2 Niveles (melaminico) (50cm x 60cm x 60) | D75: 85442 | E75: 85442
A76: =CONCATENATE(B76:B570," ",C76:C570) -> 3071068 Mesa Centro Rectangular doble nivel (melaminico) (50cm x 75cm x 50cm) | B76: 3071068 | C76: Mesa Centro Rectangular doble nivel (melaminico) (50cm x 75cm x 50cm) | D76: 85442 | E76: 85442
A77: =CONCATENATE(B77:B571," ",C77:C571) -> 3071098 Mesa estandar Chia Blanca | B77: 3071098 | C77: Mesa estandar Chia Blanca | D77: 105553 | E77: 105553
A78: =CONCATENATE(B78:B572," ",C78:C572) -> 3071098 Mesa estandar Chia Negra | B78: 3071098 | C78: Mesa estandar Chia Negra | D78: 105553 | E78: 105553
A79: =CONCATENATE(B79:B573," ",C79:C573) -> 3071097 Mesa estandar Daysa (76cm x 60cm) | B79: 3071097 | C79: Mesa estandar Daysa (76cm x 60cm) | D79: 105553 | E79: 105553
A80: =CONCATENATE(B80:B574," ",C80:C574) -> 3071116 Mesa estandar Lotus (70cm x 64cm x 81cm) | B80: 3071116 | C80: Mesa estandar Lotus (70cm x 64cm x 81cm) | D80: 158151 | E80: 158151
A81: =CONCATENATE(B81:B575," ",C81:C575) -> 3071054 Mesa estandar lotus vidrio + 2 sillas tipo huevo | B81: 3071054 | C81: Mesa estandar lotus vidrio + 2 sillas tipo huevo | D81: 272153 | E81: 272153
A82: =CONCATENATE(B82:B576," ",C82:C576) -> 30713200 Mesa Oficina (78cm x 120cm x 50cm) | B82: 30713200 | C82: Mesa Oficina (78cm x 120cm x 50cm) | D82: 133042 | E82: 133042
A83: =CONCATENATE(B83:B577," ",C83:C577) -> 3071036 Mesa plegable plastico + 2 sillas interlocutoras negras | B83: 3071036 | C83: Mesa plegable plastico + 2 sillas interlocutoras negras | D83: 190400 | E83: 190400
A84: =CONCATENATE(B84:B578," ",C84:C578) -> 3070936 Mesón plegable plástico (Gris o blanco) (73cm x 182cm x 76cm) | B84: 3070936 | C84: Mesón plegable plástico (Gris o blanco) (73cm x 182cm x 76cm) | D84: 104601 | E84: 104601
A85: =CONCATENATE(B85:B579," ",C85:C579) -> 3071103 Nevera Estandar 230LT ( 55.6cm X 157.6cm X 67cm) | B85: 3071103 | C85: Nevera Estandar 230LT ( 55.6cm X 157.6cm X 67cm) | D85: 299999 | E85: 299999
A86: =CONCATENATE(B86:B580," ",C86:C580) -> 3071103 Nevera Minibar 121 LT (48.5cm X 85.1cm X 60cm) | B86: 3071103 | C86: Nevera Minibar 121 LT (48.5cm X 85.1cm X 60cm) | D86: 203371 | E86: 203371
A87: =CONCATENATE(B87:B581," ",C87:C581) -> 3071302 Papelera plastica negra | B87: 3071302 | C87: Papelera plastica negra | D87: 23443 | E87: 23443
A88: =CONCATENATE(B88:B582," ",C88:C582) -> 3070957 Pedestal cuadrado (30cm x 30cm x 30cm) | B88: 3070957 | C88: Pedestal cuadrado (30cm x 30cm x 30cm) | D88: 34391 | E88: 34391
A89: =CONCATENATE(B89:B583," ",C89:C583) -> 3070956 Pedestal rectangular 60cm (60cm x 30cm x 30cm) | B89: 3070956 | C89: Pedestal rectangular 60cm (60cm x 30cm x 30cm) | D89: 39627 | E89: 39627
A90: =CONCATENATE(B90:B584," ",C90:C584) -> 3070955 Pedestal rectangular 90cm (90cm x 30cm x 30cm) | B90: 3070955 | C90: Pedestal rectangular 90cm (90cm x 30cm x 30cm) | D90: 44982 | E90: 44982
A91: =CONCATENATE(B91:B585," ",C91:C585) -> 3070521 Perchero básico 1 pedestal (120cm Ancho - Altura) graduable + 5 ganchos | B91: 3070521 | C91: Perchero básico 1 pedestal (120cm Ancho - Altura) graduable + 5 ganchos | D91: 77469 | E91: 77469
A92: =CONCATENATE(B92:B586," ",C92:C586) -> 3070521 Perchero doble 2 pedestal (120cm Ancho-Altura) graduable + 5 ganchos | B92: 3070521 | C92: Perchero doble 2 pedestal (120cm Ancho-Altura) graduable + 5 ganchos | D92: 89369 | E92: 89369
A93: =CONCATENATE(B93:B587," ",C93:C587) -> 30713201 Poltrona Buggy (72cm x 64cm) | B93: 30713201 | C93: Poltrona Buggy (72cm x 64cm) | D93: 155176 | E93: 155176
A94: =CONCATENATE(B94:B588," ",C94:C588) -> 3071059 Poltrona Levis (73cm x 86cm x 73cm) | B94: 3071059 | C94: Poltrona Levis (73cm x 86cm x 73cm) | D94: 197778 | E94: 197778
A95: =CONCATENATE(B95:B589," ",C95:C589) -> 3071325 Poste separador 120cm de alto | B95: 3071325 | C95: Poste separador 120cm de alto | D95: 46291 | E95: 46291
A96: =CONCATENATE(B96:B590," ",C96:C590) -> 3071090 Puff estandar cuadrado (43cm x 43cm x 43cm) | B96: 3071090 | C96: Puff estandar cuadrado (43cm x 43cm x 43cm) | D96: 55216 | E96: 55216
A97: =CONCATENATE(B97:B591," ",C97:C591) -> 3071091 Puff Trunk 2 cuerpos (48cm x 81cm x 40cm) | B97: 3071091 | C97: Puff Trunk 2 cuerpos (48cm x 81cm x 40cm) | D97: 105553 | E97: 105553
A98: =CONCATENATE(B98:B592," ",C98:C592) -> 3071114 Puff Trunk 3 cuerpos (46cm x 120cm x 54cm) | B98: 3071114 | C98: Puff Trunk 3 cuerpos (46cm x 120cm x 54cm) | D98: 105553 | E98: 105553
A99: =CONCATENATE(B99:B593," ",C99:C593) -> 3071370 Revistero plegable (140cm x 25cm x 29cm) | B99: 3071370 | C99: Revistero plegable (140cm x 25cm x 29cm) | D99: 78540 | E99: 78540
A100: =CONCATENATE(B100:B594," ",C100:C594) -> Sala de Juntas | C100: Sala de Juntas | D100: 297500 | E100: 297500
A101: =CONCATENATE(B101:B595," ",C101:C595) -> 3071113 Sala Osaka (1 sofá Toronto, 2 puffs Donna, 1 mesa centro cuadrada 2 niveles) | B101: 3071113 | C101: Sala Osaka (1 sofá Toronto, 2 puffs Donna, 1 mesa centro cuadrada 2 niveles) | D101: 461244 | E101: 461244
A102: =CONCATENATE(B102:B596," ",C102:C596) -> 3071095 Sala VIP (1 sofá Victoria derecho, 1 sofá Victoria izquierdo, 2 poltronas, 1 mesa centro cuadrada 2 niveles) | B102: 3071095 | C102: Sala VIP (1 sofá Victoria derecho, 1 sofá Victoria izquierdo, 2 poltronas, 1 mesa centro cuadrada 2 niveles) | D102: 690200 | E102: 690200
A103: =CONCATENATE(B103:B597," ",C103:C597) -> Silla Bombonera Roja | C103: Silla Bombonera Roja | D103: 65926 | E103: 65926
A104: =CONCATENATE(B104:B598," ",C104:C598) -> 3071081 Silla Ejecutiva Cuero (57cm x 93cm x 52cm) | B104: 3071081 | C104: Silla Ejecutiva Cuero (57cm x 93cm x 52cm) | D104: 75327 | E104: 75327
A105: =CONCATENATE(B105:B599," ",C105:C599) -> 3071081 Silla Ejecutiva Malla | B105: 3071081 | C105: Silla Ejecutiva Malla | D105: 155176 | E105: 155176
A106: =CONCATENATE(B106:B600," ",C106:C600) -> 3071061 Silla estandar Suiza (48cm x 46cm x 45cm) | B106: 3071061 | C106: Silla estandar Suiza (48cm x 46cm x 45cm) | D106: 68901 | E106: 68901
A107: =CONCATENATE(B107:B601," ",C107:C601) -> 3071008 Silla estandar Tipo Huevo (48cm x 46cm x 45cm) | B107: 3071008 | C107: Silla estandar Tipo Huevo (48cm x 46cm x 45cm) | D107: 68901 | E107: 68901
A108: =CONCATENATE(B108:B602," ",C108:C602) -> 30713198 Silla Gerencial (100cm x 49cm x 49cm) | B108: 30713198 | C108: Silla Gerencial (100cm x 49cm x 49cm) | D108: 155176 | E108: 155176
A109: =CONCATENATE(B109:B603," ",C109:C603) -> 3071006 Silla Interlocutora Negra (79cm x 53cm x 42cm) | B109: 3071006 | C109: Silla Interlocutora Negra (79cm x 53cm x 42cm) | D109: 49504 | E109: 49504
A110: =CONCATENATE(B110:B604," ",C110:C604) -> 3071077 Silla Neumática alta Marsella (80cm x 40cm x 40cm) | B110: 3071077 | C110: Silla Neumática alta Marsella (80cm x 40cm x 40cm) | D110: 82824 | E110: 82824
A111: =CONCATENATE(B111:B605," ",C111:C605) -> 3071022 Silla Neumatica alta Versalles (80cm x 40 cm x 40cm | B111: 3071022 | C111: Silla Neumatica alta Versalles (80cm x 40 cm x 40cm | D111: 104125 | E111: 104125
A112: =CONCATENATE(B112:B606," ",C112:C606) -> Silla Oslo Blanca | C112: Silla Oslo Blanca | D112: 75327 | E112: 75327
A113: =CONCATENATE(B113:B607," ",C113:C607) -> Silla Tipo Bar Madera | C113: Silla Tipo Bar Madera | D113: 81872 | E113: 81872
A114: =CONCATENATE(B114:B608," ",C114:C608) -> 3071085 Sofa Otawa 2 cuerpos (85cm x 120cm x 76cm) | B114: 3071085 | C114: Sofa Otawa 2 cuerpos (85cm x 120cm x 76cm) | D114: 210987 | E114: 210987
A115: =CONCATENATE(B115:B609," ",C115:C609) -> 3071031 Sofa Terranova 2 cuerpos (88cm x 173cm x 80cm) | B115: 3071031 | C115: Sofa Terranova 2 cuerpos (88cm x 173cm x 80cm) | D115: 224077 | E115: 224077
A116: =CONCATENATE(B116:B610," ",C116:C610) -> 3071083 Sofa Toronto 3 cuerpos (88cm x 173cm x 80cm) | B116: 3071083 | C116: Sofa Toronto 3 cuerpos (88cm x 173cm x 80cm) | D116: 224077 | E116: 224077
A117: =CONCATENATE(B117:B611," ",C117:C611) -> 3071013 Sofa Victoria derecho (70cm x 100cm x 75cm) | B117: 3071013 | C117: Sofa Victoria derecho (70cm x 100cm x 75cm) | D117: 182070 | E117: 182070
A118: =CONCATENATE(B118:B612," ",C118:C612) -> 3071023 Sofa Victoria izquierdo (70cm x 100cm x 75cm) | B118: 3071023 | C118: Sofa Victoria izquierdo (70cm x 100cm x 75cm) | D118: 182070 | E118: 182070
A119: =CONCATENATE(B119:B613," ",C119:C613) -> 3070505 Tarima 120x120x60, (Previa verificación con área de montaje) | B119: 3070505 | C119: Tarima 120x120x60, (Previa verificación con área de montaje) | D119: 247996 | E119: 247996
A120: =CONCATENATE(B120:B614," ",C120:C614) -> 3070535 Vitrina Isla 2E (200cm x 50cm x 50cm) | B120: 3070535 | C120: Vitrina Isla 2E (200cm x 50cm x 50cm) | D120: 286671 | E120: 286671
A121: =CONCATENATE(B121:B615," ",C121:C615) -> 3070517 Vitrina Mostrador 2E (100cm x 100cm x 40cm) | B121: 3070517 | C121: Vitrina Mostrador 2E (100cm x 100cm x 40cm) | D121: 214081 | E121: 214081
A122: =CONCATENATE(B122:B616," ",C122:C616) -> 3070518 Vitrina Mostrador Tipo 2 1E (92cm x 90 cm x 40cm) | B122: 3070518 | C122: Vitrina Mostrador Tipo 2 1E (92cm x 90 cm x 40cm) | D122: 214081 | E122: 214081
A123: =CONCATENATE(B123:B617," ",C123:C617) -> 3071111 Vitrina Rectangular 2E (200cm x 100cm x 40cm) | B123: 3071111 | C123: Vitrina Rectangular 2E (200cm x 100cm x 40cm) | D123: 286671 | E123: 286671
A124: =CONCATENATE(B124:B613," ",C124:C613) -> 3071375 Planta + matera plástica (Pequeña) | B124: 3071375 | C124: Planta + matera plástica (Pequeña) | D124: 20600 | E124: 20600
A125: =CONCATENATE(B125:B614," ",C125:C614) -> 3071376 Planta + matera plástica (Mediana) | B125: 3071376 | C125: Planta + matera plástica (Mediana) | D125: 46400 | E125: 46400
A126: =CONCATENATE(B126:B615," ",C126:C615) -> 3071377 Planta + matera plástica (Grande) | B126: 3071377 | C126: Planta + matera plástica (Grande) | D126: 59200 | E126: 59200
A127: =CONCATENATE(B127:B616," ",C127:C616) -> 3071378 Jardinera en madera + 3 Plantas grandes | B127: 3071378 | C127: Jardinera en madera + 3 Plantas grandes | D127: 100300 | E127: 100300
A128: =CONCATENATE(B128:B617," ",C128:C617) -> 3071379 Jardinera en madera + 3 Plantas medianas | B128: 3071379 | C128: Jardinera en madera + 3 Plantas medianas | D128: 81100 | E128: 81100
A129: =CONCATENATE(B129:B618," ",C129:C618) -> 3071380 Jardinera en madera + 7 Plantas pequeñas | B129: 3071380 | C129: Jardinera en madera + 7 Plantas pequeñas | D129: 83500 | E129: 83500
A130: =CONCATENATE(B130:B619," ",C130:C619) -> 3071381 Cajoneras con flores | B130: 3071381 | C130: Cajoneras con flores | D130: 155800 | E130: 155800
A131: =CONCATENATE(B131:B620," ",C131:C620) -> 3071314 Grandes (61cm x 120cm) | B131: 3071314 | C131: Grandes (61cm x 120cm) | D131: =IF(G$3=TRUE,E131/I$3,E131) -> 31700 | E131: 31700
A132: =CONCATENATE(B132:B621," ",C132:C621) -> 3071301 Medianas (31cm x 120cm) | B132: 3071301 | C132: Medianas (31cm x 120cm) | D132: 25000 | E132: 25000
A133: =CONCATENATE(B133:B622," ",C133:C622) -> 3071317 Pequeñas (10cm x 30cm) | B133: 3071317 | C133: Pequeñas (10cm x 30cm) | D133: 11100 | E133: 11100
A134: =CONCATENATE(B134:B623," ",C134:C623) -> 3071382 Suculentas (10cm x 15cm) | B134: 3071382 | C134: Suculentas (10cm x 15cm) | D134: 11100 | E134: 11100
A135: =CONCATENATE(B135:B624," ",C135:C624) -> 3071383 Chamizos | B135: 3071383 | C135: Chamizos | D135: 11100 | E135: 11100
A136: =CONCATENATE(B136:B625," ",C136:C625) -> 3071355 De barro grande | B136: 3071355 | C136: De barro grande | D136: 30700 | E136: 30700
A137: =CONCATENATE(B137:B626," ",C137:C626) -> 3071356 De barro mediana | B137: 3071356 | C137: De barro mediana | D137: 23900 | E137: 23900
A138: =CONCATENATE(B138:B627," ",C138:C627) -> 3071384 De barro pequeña | B138: 3071384 | C138: De barro pequeña | D138: 10600 | E138: 10600
A139: =CONCATENATE(B139:B628," ",C139:C628) -> 3071357 Plástica grande | B139: 3071357 | C139: Plástica grande | D139: 30700 | E139: 30700
A140: =CONCATENATE(B140:B629," ",C140:C629) -> 3071358 Plástica mediana | B140: 3071358 | C140: Plástica mediana | D140: 23900 | E140: 23900
A141: =CONCATENATE(B141:B630," ",C141:C630) -> 3071359 Plástica pequeña | B141: 3071359 | C141: Plástica pequeña | D141: 10600 | E141: 10600
A142: =CONCATENATE(B142:B631," ",C142:C631) -> 3071360 Jardinera en madera (35cm x 100cm x 35cm) | B142: 3071360 | C142: Jardinera en madera (35cm x 100cm x 35cm) | D142: 10600 | E142: 10600
A143: =CONCATENATE(B143:B632," ",C143:C632) -> 3071352 Grandes | B143: 3071352 | C143: Grandes | D143: 93800 | E143: 93800
A144: =CONCATENATE(B144:B633," ",C144:C633) -> 3071353 Medianos | B144: 3071353 | C144: Medianos | D144: 54600 | E144: 54600
A145: =CONCATENATE(B145:B634," ",C145:C634) -> 3071354 Pequeños | B145: 3071354 | C145: Pequeños | D145: =IF(G$3=TRUE,E145/I$3,E145) -> 24000 | E145: 24000
A146: =CONCATENATE(B146:B635," ",C146:C635) -> 3071364 Topiario en forma de animales o frutas | B146: 3071364 | C146: Topiario en forma de animales o frutas | D146: 228500 | E146: 228500
A147: =CONCATENATE(B147:B636," ",C147:C636) -> 3071365 Topiario en bolas grandes | B147: 3071365 | C147: Topiario en bolas grandes | D147: 228500 | E147: 228500
A148: =CONCATENATE(B148:B637," ",C148:C637) -> 3071385 Topiario en bolas pequeñas | B148: 3071385 | C148: Topiario en bolas pequeñas | D148: 207700 | E148: 207700
A149: =CONCATENATE(B149:B638," ",C149:C638) -> 3071363 Piedras (Por m2) | B149: 3071363 | C149: Piedras (Por m2) | D149: 23900 | E149: 23900
A150: =CONCATENATE(B150:B639," ",C150:C639) -> 3071367 Pino patula (Por bulto) | B150: 3071367 | C150: Pino patula (Por bulto) | D150: 10600 | E150: 10600
A151: =CONCATENATE(B151:B640," ",C151:C640) -> 3071361 Gravilla (Por m2) | B151: 3071361 | C151: Gravilla (Por m2) | D151: 10600 | E151: 10600
A152: =CONCATENATE(B152:B641," ",C152:C641) -> 3071386 Muros verticales (Por m2) | B152: 3071386 | C152: Muros verticales (Por m2) | D152: 328500 | E152: 328500
A153: =CONCATENATE(B153:B642," ",C153:C642) -> 3071366 Cascarilla (Por bulto) | B153: 3071366 | C153: Cascarilla (Por bulto) | D153: 10600 | E153: 10600
A154: =CONCATENATE(B154:B643," ",C154:C643) -> 3071362 Rocas (Por unidad) | B154: 3071362 | C154: Rocas (Por unidad) | D154: 63300 | E154: 63300
A155: =CONCATENATE(B155:B644," ",C155:C644) -> 3071346 Base para Tv Led - LCD adaptable (No Incluye Instalacion) Valor evento 1 día | B155: 3071346 | C155: Base para Tv Led - LCD adaptable (No Incluye Instalacion) Valor evento 1 día | D155: 44744 | E155: 44744
A156: =CONCATENATE(B156:B645," ",C156:C645) -> 3071346 Base para Tv Led - LCD adaptable (No Incluye Instalacion) Valor evento 2 dias (Valor dia) | B156: 3071346 | C156: Base para Tv Led - LCD adaptable (No Incluye Instalacion) Valor evento 2 dias (Valor dia) | D156: 44744 | E156: 44744
A157: =CONCATENATE(B157:B646," ",C157:C646) -> 3071346 Base para Tv Led - LCD adaptable (No Incluye Instalacion) Valor de 3 a 6 dias (Valor dia) | B157: 3071346 | C157: Base para Tv Led - LCD adaptable (No Incluye Instalacion) Valor de 3 a 6 dias (Valor dia) | D157: 40698 | E157: 40698
A158: =CONCATENATE(B158:B647," ",C158:C647) -> 3071346 Base para Tv Led - LCD adaptable (No Incluye Instalacion) Valor de 7 a 18 días (Valor feria) | B158: 3071346 | C158: Base para Tv Led - LCD adaptable (No Incluye Instalacion) Valor de 7 a 18 días (Valor feria) | D158: 289765 | E158: 289765
A159: =CONCATENATE(B159:B648," ",C159:C648) -> 3071204 Tv Smart 42" 106cms ( Incluye base para tv / cable de corriente / 1 cable HDMI) IN: HDMI, USB Valor evento 1 día | B159: 3071204 | C159: Tv Smart 42" 106cms ( Incluye base para tv / cable de corriente / 1 cable HDMI) IN: HDMI, USB Valor evento 1 día | D159: 149226 | E159: 149226
A160: =CONCATENATE(B160:B649," ",C160:C649) -> 3071204 Tv Smart 42" 106cms ( Incluye base para tv / cable de corriente / 1 cable HDMI) IN: HDMI, USB Valor evento 2 dias (Valor dia) | B160: 3071204 | C160: Tv Smart 42" 106cms ( Incluye base para tv / cable de corriente / 1 cable HDMI) IN: HDMI, USB Valor evento 2 dias (Valor dia) | D160: 149226 | E160: 149226
A161: =CONCATENATE(B161:B650," ",C161:C650) -> 3071204 Tv Smart 42" 106cms ( Incluye base para tv / cable de corriente / 1 cable HDMI) IN: HDMI, USB Valor de 3 a 6 dias (Valor dia) | B161: 3071204 | C161: Tv Smart 42" 106cms ( Incluye base para tv / cable de corriente / 1 cable HDMI) IN: HDMI, USB Valor de 3 a 6 dias (Valor dia) | D161: 136136 | E161: 136136
A162: =CONCATENATE(B162:B651," ",C162:C651) -> 3071204 Tv Smart 42" 106cms ( Incluye base para tv / cable de corriente / 1 cable HDMI) IN: HDMI, USB Valor de 7 a 18 días (Valor feria) | B162: 3071204 | C162: Tv Smart 42" 106cms ( Incluye base para tv / cable de corriente / 1 cable HDMI) IN: HDMI, USB Valor de 7 a 18 días (Valor feria) | D162: 971635 | E162: 971635
A163: =CONCATENATE(B163:B652," ",C163:C652) -> 3071206 Tv Smart 55" 140cms ( Incluye base para tv / cable de corriente / 1 cable HDMI) IN: HDMI, USB Valor evento 1 día | B163: 3071206 | C163: Tv Smart 55" 140cms ( Incluye base para tv / cable de corriente / 1 cable HDMI) IN: HDMI, USB Valor evento 1 día | D163: 223839 | E163: 223839
A164: =CONCATENATE(B164:B653," ",C164:C653) -> 3071206 Tv Smart 55" 140cms ( Incluye base para tv / cable de corriente / 1 cable HDMI) IN: HDMI, USB Valor evento 2 dias (Valor dia) | B164: 3071206 | C164: Tv Smart 55" 140cms ( Incluye base para tv / cable de corriente / 1 cable HDMI) IN: HDMI, USB Valor evento 2 dias (Valor dia) | D164: 223839 | E164: 223839
A165: =CONCATENATE(B165:B654," ",C165:C654) -> 3071206 Tv Smart 55" 140cms ( Incluye base para tv / cable de corriente / 1 cable HDMI) IN: HDMI, USB Valor de 3 a 6 dias (Valor dia) | B165: 3071206 | C165: Tv Smart 55" 140cms ( Incluye base para tv / cable de corriente / 1 cable HDMI) IN: HDMI, USB Valor de 3 a 6 dias (Valor dia) | D165: 203966 | E165: 203966
A166: =CONCATENATE(B166:B655," ",C166:C655) -> 3071206 Tv Smart 55" 140cms ( Incluye base para tv / cable de corriente / 1 cable HDMI) IN: HDMI, USB Valor de 7 a 18 días (Valor feria) | B166: 3071206 | C166: Tv Smart 55" 140cms ( Incluye base para tv / cable de corriente / 1 cable HDMI) IN: HDMI, USB Valor de 7 a 18 días (Valor feria) | D166: 1455251 | E166: 1455251
A167: =CONCATENATE(B167:B656," ",C167:C656) -> 30713202 Tv Smart 65" 165cms ( Incluye base para tv / cable de corriente /1 cable HDMI) IN: HDMI, USB Valor evento 1 día | B167: 30713202 | C167: Tv Smart 65" 165cms ( Incluye base para tv / cable de corriente /1 cable HDMI) IN: HDMI, USB Valor evento 1 día | D167: 348194 | E167: 348194
A168: =CONCATENATE(B168:B657," ",C168:C657) -> 30713202 Tv Smart 65" 165cms ( Incluye base para tv / cable de corriente /1 cable HDMI) IN: HDMI, USB Valor evento 2 dias (Valor dia) | B168: 30713202 | C168: Tv Smart 65" 165cms ( Incluye base para tv / cable de corriente /1 cable HDMI) IN: HDMI, USB Valor evento 2 dias (Valor dia) | D168: 348194 | E168: 348194
A169: =CONCATENATE(B169:B658," ",C169:C658) -> 30713202 Tv Smart 65" 165cms ( Incluye base para tv / cable de corriente /1 cable HDMI) IN: HDMI, USB Valor de 3 a 6 dias (Valor dia) | B169: 30713202 | C169: Tv Smart 65" 165cms ( Incluye base para tv / cable de corriente /1 cable HDMI) IN: HDMI, USB Valor de 3 a 6 dias (Valor dia) | D169: 329035 | E169: 329035
A170: =CONCATENATE(B170:B659," ",C170:C659) -> 30713202 Tv Smart 65" 165cms ( Incluye base para tv / cable de corriente /1 cable HDMI) IN: HDMI, USB Valor de 7 a 18 días (Valor feria) | B170: 30713202 | C170: Tv Smart 65" 165cms ( Incluye base para tv / cable de corriente /1 cable HDMI) IN: HDMI, USB Valor de 7 a 18 días (Valor feria) | D170: 1666595 | E170: 1666595
A171: =CONCATENATE(B171:B660," ",C171:C660) -> 3071279 Tv Smart 70" 177,8cms ( Incluye base para tv / cable de corriente /1 cable HDMI) IN: HDMI, USB Valor evento 1 día | B171: 3071279 | C171: Tv Smart 70" 177,8cms ( Incluye base para tv / cable de corriente /1 cable HDMI) IN: HDMI, USB Valor evento 1 día | D171: 559657 | E171: 559657
A172: =CONCATENATE(B172:B661," ",C172:C661) -> 3071279 Tv Smart 70" 177,8cms ( Incluye base para tv / cable de corriente /1 cable HDMI) IN: HDMI, USB Valor evento 2 dias (Valor dia) | B172: 3071279 | C172: Tv Smart 70" 177,8cms ( Incluye base para tv / cable de corriente /1 cable HDMI) IN: HDMI, USB Valor evento 2 dias (Valor dia) | D172: 559657 | E172: 559657
A173: =CONCATENATE(B173:B662," ",C173:C662) -> 3071279 Tv Smart 70" 177,8cms ( Incluye base para tv / cable de corriente /1 cable HDMI) IN: HDMI, USB Valor de 3 a 6 dias (Valor dia) | B173: 3071279 | C173: Tv Smart 70" 177,8cms ( Incluye base para tv / cable de corriente /1 cable HDMI) IN: HDMI, USB Valor de 3 a 6 dias (Valor dia) | D173: 509320 | E173: 509320
A174: =CONCATENATE(B174:B663," ",C174:C663) -> 3071279 Tv Smart 70" 177,8cms ( Incluye base para tv / cable de corriente /1 cable HDMI) IN: HDMI, USB Valor de 7 a 18 días (Valor feria) | B174: 3071279 | C174: Tv Smart 70" 177,8cms ( Incluye base para tv / cable de corriente /1 cable HDMI) IN: HDMI, USB Valor de 7 a 18 días (Valor feria) | D174: 3637711 | E174: 3637711
A175: =CONCATENATE(B175:B664," ",C175:C664) -> 3071222 Tv Smart 82" 204cms ( Incluye base para tv / cable de corriente /1 cable HDMI) IN: HDMI, USB Valor evento 1 día | B175: 3071222 | C175: Tv Smart 82" 204cms ( Incluye base para tv / cable de corriente /1 cable HDMI) IN: HDMI, USB Valor evento 1 día | D175: 1039584 | E175: 1039584
A176: =CONCATENATE(B176:B665," ",C176:C665) -> 3071222 Tv Smart 82" 204cms ( Incluye base para tv / cable de corriente /1 cable HDMI) IN: HDMI, USB Valor evento 2 dias (Valor dia) | B176: 3071222 | C176: Tv Smart 82" 204cms ( Incluye base para tv / cable de corriente /1 cable HDMI) IN: HDMI, USB Valor evento 2 dias (Valor dia) | D176: 1039584 | E176: 1039584
A177: =CONCATENATE(B177:B666," ",C177:C666) -> 3071222 Tv Smart 82" 204cms ( Incluye base para tv / cable de corriente /1 cable HDMI) IN: HDMI, USB Valor de 3 a 6 dias (Valor dia) | B177: 3071222 | C177: Tv Smart 82" 204cms ( Incluye base para tv / cable de corriente /1 cable HDMI) IN: HDMI, USB Valor de 3 a 6 dias (Valor dia) | D177: 945931 | E177: 945931
A178: =CONCATENATE(B178:B667," ",C178:C667) -> 3071222 Tv Smart 82" 204cms ( Incluye base para tv / cable de corriente /1 cable HDMI) IN: HDMI, USB Valor de 7 a 18 días (Valor feria) | B178: 3071222 | C178: Tv Smart 82" 204cms ( Incluye base para tv / cable de corriente /1 cable HDMI) IN: HDMI, USB Valor de 7 a 18 días (Valor feria) | D178: 6755273 | E178: 6755273
A179: =CONCATENATE(B179:B668," ",C179:C668) -> 3071261 Monitor tactil 65" 165cms ( Incluye base para monitor / cableado) IN: HDMI Valor evento 1 día | B179: 3071261 | C179: Monitor tactil 65" 165cms ( Incluye base para monitor / cableado) IN: HDMI Valor evento 1 día | D179: 702100 | E179: 702100
A180: =CONCATENATE(B180:B669," ",C180:C669) -> 3071261 Monitor tactil 65" 165cms ( Incluye base para monitor / cableado) IN: HDMI Valor evento 2 dias (Valor dia) | B180: 3071261 | C180: Monitor tactil 65" 165cms ( Incluye base para monitor / cableado) IN: HDMI Valor evento 2 dias (Valor dia) | D180: 702100 | E180: 702100
A181: =CONCATENATE(B181:B670," ",C181:C670) -> 3071261 Monitor tactil 65" 165cms ( Incluye base para monitor / cableado) IN: HDMI Valor de 3 a 6 dias (Valor dia) | B181: 3071261 | C181: Monitor tactil 65" 165cms ( Incluye base para monitor / cableado) IN: HDMI Valor de 3 a 6 dias (Valor dia) | D181: 511462 | E181: 511462
A182: =CONCATENATE(B182:B671," ",C182:C671) -> 3071261 Monitor tactil 65" 165cms ( Incluye base para monitor / cableado) IN: HDMI Valor de 7 a 18 días (Valor feria) | B182: 3071261 | C182: Monitor tactil 65" 165cms ( Incluye base para monitor / cableado) IN: HDMI Valor de 7 a 18 días (Valor feria) | D182: 5105100 | E182: 5105100
A183: =CONCATENATE(B183:B672," ",C183:C672) -> 3071284 Tablet tactil 7" RAM:1GB / Conectividad: 3G / Sistema Operativo Android 9.0 Valor evento 1 día | B183: 3071284 | C183: Tablet tactil 7" RAM:1GB / Conectividad: 3G / Sistema Operativo Android 9.0 Valor evento 1 día | D183: 87108 | E183: 87108
A184: =CONCATENATE(B184:B673," ",C184:C673) -> 3071284 Tablet tactil 7" RAM:1GB / Conectividad: 3G / Sistema Operativo Android 9.0 Valor evento 2 dias (Valor dia) | B184: 3071284 | C184: Tablet tactil 7" RAM:1GB / Conectividad: 3G / Sistema Operativo Android 9.0 Valor evento 2 dias (Valor dia) | D184: 87108 | E184: 87108
A185: =CONCATENATE(B185:B674," ",C185:C674) -> 3071284 Tablet tactil 7" RAM:1GB / Conectividad: 3G / Sistema Operativo Android 9.0 Valor de 3 a 6 dias (Valor dia) | B185: 3071284 | C185: Tablet tactil 7" RAM:1GB / Conectividad: 3G / Sistema Operativo Android 9.0 Valor de 3 a 6 dias (Valor dia) | D185: 79373 | E185: 79373
A186: =CONCATENATE(B186:B675," ",C186:C675) -> 3071284 Tablet tactil 7" RAM:1GB / Conectividad: 3G / Sistema Operativo Android 9.0 Valor de 7 a 18 días (Valor feria) | B186: 3071284 | C186: Tablet tactil 7" RAM:1GB / Conectividad: 3G / Sistema Operativo Android 9.0 Valor de 7 a 18 días (Valor feria) | D186: 565845 | E186: 565845
A187: =CONCATENATE(B187:B676," ",C187:C676) -> 3071260 Pantalla Led Full Hd Indoor / Medida 3,20mts x 2,96mts / Pitch 3,9 / No incluye estructura para montaje Valor evento 1 día | B187: 3071260 | C187: Pantalla Led Full Hd Indoor / Medida 3,20mts x 2,96mts / Pitch 3,9 / No incluye estructura para montaje Valor evento 1 día | D187: 1545453 | E187: 1545453
A188: =CONCATENATE(B188:B677," ",C188:C677) -> 3071260 Pantalla Led Full Hd Indoor / Medida 3,20mts x 2,96mts / Pitch 3,9 / No incluye estructura para montaje Valor evento 2 dias (Valor dia) | B188: 3071260 | C188: Pantalla Led Full Hd Indoor / Medida 3,20mts x 2,96mts / Pitch 3,9 / No incluye estructura para montaje Valor evento 2 dias (Valor dia) | D188: 1545453 | E188: 1545453
A189: =CONCATENATE(B189:B678," ",C189:C678) -> 3071260 Pantalla Led Full Hd Indoor / Medida 3,20mts x 2,96mts / Pitch 3,9 / No incluye estructura para montaje Valor de 3 a 6 dias (Valor dia) | B189: 3071260 | C189: Pantalla Led Full Hd Indoor / Medida 3,20mts x 2,96mts / Pitch 3,9 / No incluye estructura para montaje Valor de 3 a 6 dias (Valor dia) | D189: 1390872 | E189: 1390872
A190: =CONCATENATE(B190:B679," ",C190:C679) -> 3071260 Pantalla Led Full Hd Indoor / Medida 3,20mts x 2,96mts / Pitch 3,9 / No incluye estructura para montaje Valor de 7 a 18 días (Valor feria) | B190: 3071260 | C190: Pantalla Led Full Hd Indoor / Medida 3,20mts x 2,96mts / Pitch 3,9 / No incluye estructura para montaje Valor de 7 a 18 días (Valor feria) | D190: 13078100 | E190: 13078100
A191: =CONCATENATE(B191:B680," ",C191:C680) -> 3071260 Pantalla Led Full Hd Indoor / Medida 4,48mts x 3,20mts / Pitch 3,9 / No incluye estructura para montaje Valor evento 1 día | B191: 3071260 | C191: Pantalla Led Full Hd Indoor / Medida 4,48mts x 3,20mts / Pitch 3,9 / No incluye estructura para montaje Valor evento 1 día | D191: 1790831 | E191: 1790831
A192: =CONCATENATE(B192:B681," ",C192:C681) -> 3071260 Pantalla Led Full Hd Indoor / Medida 4,48mts x 3,20mts / Pitch 3,9 / No incluye estructura para montaje Valor evento 2 dias (Valor dia) | B192: 3071260 | C192: Pantalla Led Full Hd Indoor / Medida 4,48mts x 3,20mts / Pitch 3,9 / No incluye estructura para montaje Valor evento 2 dias (Valor dia) | D192: 1790831 | E192: 1790831
A193: =CONCATENATE(B193:B682," ",C193:C682) -> 3071260 Pantalla Led Full Hd Indoor / Medida 4,48mts x 3,20mts / Pitch 3,9 / No incluye estructura para montaje Valor de 3 a 6 dias (Valor dia) | B193: 3071260 | C193: Pantalla Led Full Hd Indoor / Medida 4,48mts x 3,20mts / Pitch 3,9 / No incluye estructura para montaje Valor de 3 a 6 dias (Valor dia) | D193: 1611736 | E193: 1611736
A194: =CONCATENATE(B194:B683," ",C194:C683) -> 3071260 Pantalla Led Full Hd Indoor / Medida 4,48mts x 3,20mts / Pitch 3,9 / No incluye estructura para montaje Valor de 7 a 18 días (Valor feria) | B194: 3071260 | C194: Pantalla Led Full Hd Indoor / Medida 4,48mts x 3,20mts / Pitch 3,9 / No incluye estructura para montaje Valor de 7 a 18 días (Valor feria) | D194: 18857811 | E194: 18857811
A195: =CONCATENATE(B195:B684," ",C195:C684) -> 3071260 Pantalla Led Full Hd Indoor / Medida 6,4mts x 3,20mts /mts2: 20,48 / Pitch 3,9 / No incluye estructura para montaje Valor evento 1 día | B195: 3071260 | C195: Pantalla Led Full Hd Indoor / Medida 6,4mts x 3,20mts /mts2: 20,48 / Pitch 3,9 / No incluye estructura para montaje Valor evento 1 día | D195: 2126530 | E195: 2126530
A196: =CONCATENATE(B196:B685," ",C196:C685) -> 3071260 Pantalla Led Full Hd Indoor / Medida 6,4mts x 3,20mts /mts2: 20,48 / Pitch 3,9 / No incluye estructura para montaje Valor evento 2 dias (Valor dia) | B196: 3071260 | C196: Pantalla Led Full Hd Indoor / Medida 6,4mts x 3,20mts /mts2: 20,48 / Pitch 3,9 / No incluye estructura para montaje Valor evento 2 dias (Valor dia) | D196: 2126530 | E196: 2126530
A197: =CONCATENATE(B197:B686," ",C197:C686) -> 3071260 Pantalla Led Full Hd Indoor / Medida 6,4mts x 3,20mts /mts2: 20,48 / Pitch 3,9 / No incluye estructura para montaje Valor de 3 a 6 dias (Valor dia) | B197: 3071260 | C197: Pantalla Led Full Hd Indoor / Medida 6,4mts x 3,20mts /mts2: 20,48 / Pitch 3,9 / No incluye estructura para montaje Valor de 3 a 6 dias (Valor dia) | D197: 1926015 | E197: 1926015
A198: =CONCATENATE(B198:B687," ",C198:C687) -> 3071260 Pantalla Led Full Hd Indoor / Medida 6,4mts x 3,20mts /mts2: 20,48 / Pitch 3,9 / No incluye estructura para montaje Valor de 7 a 18 días (Valor feria) | B198: 3071260 | C198: Pantalla Led Full Hd Indoor / Medida 6,4mts x 3,20mts /mts2: 20,48 / Pitch 3,9 / No incluye estructura para montaje Valor de 7 a 18 días (Valor feria) | D198: =IF(G$3=TRUE,E198/I$3,E198) -> 13756043 | E198: 13756043
A199: =CONCATENATE(B199:B684," ",C199:C684) -> 3071264 Pantalla Led Full Hd Indoor / Medida 6,4mts x 4,48mts /mts2: 28,67 / Pitch 3,9 / No incluye estructura para montaje Valor evento 1 día | B199: 3071264 | C199: Pantalla Led Full Hd Indoor / Medida 6,4mts x 4,48mts /mts2: 28,67 / Pitch 3,9 / No incluye estructura para montaje Valor evento 1 día | D199: 2835294 | E199: 2835294
A200: =CONCATENATE(B200:B685," ",C200:C685) -> 3071264 Pantalla Led Full Hd Indoor / Medida 6,4mts x 4,48mts /mts2: 28,67 / Pitch 3,9 / No incluye estructura para montaje Valor evento 2 dias (Valor dia) | B200: 3071264 | C200: Pantalla Led Full Hd Indoor / Medida 6,4mts x 4,48mts /mts2: 28,67 / Pitch 3,9 / No incluye estructura para montaje Valor evento 2 dias (Valor dia) | D200: 2835294 | E200: 2835294
... 248 more rows

Sheet FERIAS DE 4 A 6 DIAS (hidden)
A1: CLAVE | B1: CODIGO | C1: DESCRIPCIÓN | D1: FORMULA | E1: VALOR
A2: =CONCATENATE(B2:B494," ",C2:C494) -> 3070101 Instalación Monofásica (Toma corriente doble, consumo hasta 2KW/110V) valor de 1 a 6 dias | B2: 3070101 | C2: Instalación Monofásica (Toma corriente doble, consumo hasta 2KW/110V) valor de 1 a 6 dias | D2: =IF('FERIAS 3 DIAS'!G$3=TRUE,'FERIAS DE 4 A 6 DIAS'!E2/'FERIAS 3 DIAS'!I$3,'FERIAS DE 4 A 6 DIAS'!E2) -> 364140 | E2: 364140
A3: =CONCATENATE(B3:B495," ",C3:C495) -> 3070103 Instalación kilovatio adicional monofásico (Debe contar con punto principal, MAX 2KW por punto) | B3: 3070103 | C3: Instalación kilovatio adicional monofásico (Debe contar con punto principal, MAX 2KW por punto) | D3: =IF('FERIAS 3 DIAS'!G$3=TRUE,'FERIAS DE 4 A 6 DIAS'!E3/'FERIAS 3 DIAS'!I$3,'FERIAS DE 4 A 6 DIAS'!E3) -> 127092 | E3: 127092
A4: =CONCATENATE(B4:B496," ",C4:C496) -> 3070102 Instalación trifásica (Regleta plastica, consumo hasta 4KW/208V) | B4: 3070102 | C4: Instalación trifásica (Regleta plastica, consumo hasta 4KW/208V) | D4: =IF('FERIAS 3 DIAS'!G$3=TRUE,'FERIAS DE 4 A 6 DIAS'!E4/'FERIAS 3 DIAS'!I$3,'FERIAS DE 4 A 6 DIAS'!E4) -> 678062 | E4: 678062
A5: =CONCATENATE(B5:B497," ",C5:C497) -> 3070104 Instalación kilovatio adicional trifásico (Debe contar con punto principal) | B5: 3070104 | C5: Instalación kilovatio adicional trifásico (Debe contar con punto principal) | D5: =IF('FERIAS 3 DIAS'!G$3=TRUE,'FERIAS DE 4 A 6 DIAS'!E5/'FERIAS 3 DIAS'!I$3,'FERIAS DE 4 A 6 DIAS'!E5) -> 165886 | E5: 165886
A6: =CONCATENATE(B6:B498," ",C6:C498) -> 3071372 De 21 a 50 kilovatios adicionales trifásicos (Valor por KW) (Debe contar con punto principal) | B6: 3071372 | C6: De 21 a 50 kilovatios adicionales trifásicos (Valor por KW) (Debe contar con punto principal) | D6: =IF('FERIAS 3 DIAS'!G$3=TRUE,'FERIAS DE 4 A 6 DIAS'!E6/'FERIAS 3 DIAS'!I$3,'FERIAS DE 4 A 6 DIAS'!E6) -> 150892 | E6: 150892
A7: =CONCATENATE(B7:B499," ",C7:C499) -> 3071373 De 51 a 100 kilovatios adicionales trifásicos (Valor por KW) (Debe contar con punto principal) | B7: 3071373 | C7: De 51 a 100 kilovatios adicionales trifásicos (Valor por KW) (Debe contar con punto principal) | D7: =IF('FERIAS 3 DIAS'!G$3=TRUE,'FERIAS DE 4 A 6 DIAS'!E7/'FERIAS 3 DIAS'!I$3,'FERIAS DE 4 A 6 DIAS'!E7) -> 144228 | E7: 144228
A8: =CONCATENATE(B8:B500," ",C8:C500) -> 3071374 Mas de100 kilovatios adicionales trifásicos (Valor por KW) (Debe contar con punto principal) | B8: 3071374 | C8: Mas de100 kilovatios adicionales trifásicos (Valor por KW) (Debe contar con punto principal) | D8: =IF('FERIAS 3 DIAS'!G$3=TRUE,'FERIAS DE 4 A 6 DIAS'!E8/'FERIAS 3 DIAS'!I$3,'FERIAS DE 4 A 6 DIAS'!E8) -> 138278 | E8: 138278
A9: =CONCATENATE(B9:B501," ",C9:C501) -> 3070402 Lampara de pared ajustable (150W/110V) | B9: 3070402 | C9: Lampara de pared ajustable (150W/110V) | D9: =IF('FERIAS 3 DIAS'!G$3=TRUE,'FERIAS DE 4 A 6 DIAS'!E9/'FERIAS 3 DIAS'!I$3,'FERIAS DE 4 A 6 DIAS'!E9) -> 73542 | E9: 73542
A10: =CONCATENATE(B10:B502," ",C10:C502) -> 3070405 Reflector Led (50W- mltV) | B10: 3070405 | C10: Reflector Led (50W- mltV) | D10: =IF('FERIAS 3 DIAS'!G$3=TRUE,'FERIAS DE 4 A 6 DIAS'!E10/'FERIAS 3 DIAS'!I$3,'FERIAS DE 4 A 6 DIAS'!E10) -> 77350 | E10: 77350
A11: =CONCATENATE(B11:B503," ",C11:C503) -> 3070403 Extensión – tomacorriente doble con polo a tierra (1500W/110V) MAX 6mts | B11: 3070403 | C11: Extensión – tomacorriente doble con polo a tierra (1500W/110V) MAX 6mts | D11: =IF('FERIAS 3 DIAS'!G$3=TRUE,'FERIAS DE 4 A 6 DIAS'!E11/'FERIAS 3 DIAS'!I$3,'FERIAS DE 4 A 6 DIAS'!E11) -> 38080 | E11: 38080
A12: =CONCATENATE(B12:B504," ",C12:C504) -> 3071345 Lavaplatos 90XL* 60XH* 90 (No incluye agua y desague) valor de 1 a 6 dias | B12: 3071345 | C12: Lavaplatos 90XL* 60XH* 90 (No incluye agua y desague) valor de 1 a 6 dias | D12: =IF('FERIAS 3 DIAS'!G$3=TRUE,'FERIAS DE 4 A 6 DIAS'!E12/'FERIAS 3 DIAS'!I$3,'FERIAS DE 4 A 6 DIAS'!E12) -> 168028 | E12: 168028
A13: =CONCATENATE(B13:B505," ",C13:C505) -> 3070301 Punto de Agua en 1/2" (incluye consumo) valor de 1 a 6 dias | B13: 3070301 | C13: Punto de Agua en 1/2" (incluye consumo) valor de 1 a 6 dias | D13: =IF('FERIAS 3 DIAS'!G$3=TRUE,'FERIAS DE 4 A 6 DIAS'!E13/'FERIAS 3 DIAS'!I$3,'FERIAS DE 4 A 6 DIAS'!E13) -> 355096 | E13: 355096
A14: =CONCATENATE(B14:B506," ",C14:C506) -> 3070302 Desagüe en 1 1/2" Por toda la feria (Ubicación asignada por Corferias en su stand) valor de 1 a 6 dias | B14: 3070302 | C14: Desagüe en 1 1/2" Por toda la feria (Ubicación asignada por Corferias en su stand) valor de 1 a 6 dias | D14: =IF('FERIAS 3 DIAS'!G$3=TRUE,'FERIAS DE 4 A 6 DIAS'!E14/'FERIAS 3 DIAS'!I$3,'FERIAS DE 4 A 6 DIAS'!E14) -> 328678 | E14: 328678
A15: =CONCATENATE(B15:B507," ",C15:C507) -> 3071341 Aire comprimido para punto con presión máx. de 100 PSI, y caudal máx. 35CFM. valor de 1 a 6 dias | B15: 3071341 | C15: Aire comprimido para punto con presión máx. de 100 PSI, y caudal máx. 35CFM. valor de 1 a 6 dias | D15: =IF('FERIAS 3 DIAS'!G$3=TRUE,'FERIAS DE 4 A 6 DIAS'!E15/'FERIAS 3 DIAS'!I$3,'FERIAS DE 4 A 6 DIAS'!E15) -> 475286 | E15: 475286
A16: =CONCATENATE(B16:B508," ",C16:C508) -> 3070307 Punto de Agua en 1/2" (Incluye consumo) + Desagüe en 1 1/2" + Lavaplatos valor de 1 a 6 dias | B16: 3070307 | C16: Punto de Agua en 1/2" (Incluye consumo) + Desagüe en 1 1/2" + Lavaplatos valor de 1 a 6 dias | D16: =IF('FERIAS 3 DIAS'!G$3=TRUE,'FERIAS DE 4 A 6 DIAS'!E16/'FERIAS 3 DIAS'!I$3,'FERIAS DE 4 A 6 DIAS'!E16) -> 766598 | E16: 766598
A17: =CONCATENATE(B17:B509," ",C17:C509) -> 3071321 Instalación de UN (1) punto de gas propano por UN (1) Equipo (Incluye materiales y mano de obra) (No incluye consumo de gas, este será liquidado a través de un medidor una vez finalice la feria y/o evento) | B17: 3071321 | C17: Instalación de UN (1) punto de gas propano por UN (1) Equipo (Incluye materiales y mano de obra) (No incluye consumo de gas, este será liquidado a través de un medidor una vez finalice la feria y/o evento) | D17: =IF('FERIAS 3 DIAS'!G$3=TRUE,'FERIAS DE 4 A 6 DIAS'!E17/'FERIAS 3 DIAS'!I$3,'FERIAS DE 4 A 6 DIAS'!E17) -> 102102 | E17: 102102
A18: =CONCATENATE(B18:B510," ",C18:C510) -> 3070601 Panel adicional sistema cfe 100cm x 240cm | B18: 3070601 | C18: Panel adicional sistema cfe 100cm x 240cm | D18: =IF('FERIAS 3 DIAS'!G$3=TRUE,'FERIAS DE 4 A 6 DIAS'!E18/'FERIAS 3 DIAS'!I$3,'FERIAS DE 4 A 6 DIAS'!E18) -> 39151 | E18: 39151
A19: =CONCATENATE(B19:B511," ",C19:C511) -> 3070801 Puerta sistema cfe 90cm x 240cm | B19: 3070801 | C19: Puerta sistema cfe 90cm x 240cm | D19: =IF('FERIAS 3 DIAS'!G$3=TRUE,'FERIAS DE 4 A 6 DIAS'!E19/'FERIAS 3 DIAS'!I$3,'FERIAS DE 4 A 6 DIAS'!E19) -> 97104 | E19: 97104
A20: =CONCATENATE(B20:B512," ",C20:C512) -> 3070803 Bodega estándar con puerta 150cm x 150cm (Sistema Corferias) | B20: 3070803 | C20: Bodega estándar con puerta 150cm x 150cm (Sistema Corferias) | D20: =IF('FERIAS 3 DIAS'!G$3=TRUE,'FERIAS DE 4 A 6 DIAS'!E20/'FERIAS 3 DIAS'!I$3,'FERIAS DE 4 A 6 DIAS'!E20) -> 154938 | E20: 154938
A21: =CONCATENATE(B21:B513," ",C21:C513) -> 3071319 Brazo Mecánico por Fracciòn de 15 min (Solo para primer nivel) | B21: 3071319 | C21: Brazo Mecánico por Fracciòn de 15 min (Solo para primer nivel) | D21: =IF('FERIAS 3 DIAS'!G$3=TRUE,'FERIAS DE 4 A 6 DIAS'!E21/'FERIAS 3 DIAS'!I$3,'FERIAS DE 4 A 6 DIAS'!E21) -> 66400 | E21: 66400
A22: =CONCATENATE(B22:B514," ",C22:C514) -> 3071319 Brazo Mecánico por Fracciòn de 30 min (Solo para primer nivel) | B22: 3071319 | C22: Brazo Mecánico por Fracciòn de 30 min (Solo para primer nivel) | D22: =IF('FERIAS 3 DIAS'!G$3=TRUE,'FERIAS DE 4 A 6 DIAS'!E22/'FERIAS 3 DIAS'!I$3,'FERIAS DE 4 A 6 DIAS'!E22) -> 113500 | E22: 113500
A23: =CONCATENATE(B23:B516," ",C23:C516) -> 3071319 Brazo Mecánico por Fracciòn de 60 min (Solo para primer nivel) | B23: 3071319 | C23: Brazo Mecánico por Fracciòn de 60 min (Solo para primer nivel) | D23: =IF('FERIAS 3 DIAS'!G$3=TRUE,'FERIAS DE 4 A 6 DIAS'!E23/'FERIAS 3 DIAS'!I$3,'FERIAS DE 4 A 6 DIAS'!E23) -> 201700 | E23: 201700
A24: =CONCATENATE(B24:B517," ",C24:C517) -> 3070413 Diferencial (Cap. 1 Ton.) + Brazo mecánico (Montaje y desmontaje) | B24: 3070413 | C24: Diferencial (Cap. 1 Ton.) + Brazo mecánico (Montaje y desmontaje) | D24: =IF('FERIAS 3 DIAS'!G$3=TRUE,'FERIAS DE 4 A 6 DIAS'!E24/'FERIAS 3 DIAS'!I$3,'FERIAS DE 4 A 6 DIAS'!E24) -> 313300 | E24: 313300
A25: =CONCATENATE(B25:B518," ",C25:C518) -> 3070414 Plataforma Tijera eléctrica por Fracciòn /30 min (Uso para segundos niveles) | B25: 3070414 | C25: Plataforma Tijera eléctrica por Fracciòn /30 min (Uso para segundos niveles) | D25: =IF('FERIAS 3 DIAS'!G$3=TRUE,'FERIAS DE 4 A 6 DIAS'!E25/'FERIAS 3 DIAS'!I$3,'FERIAS DE 4 A 6 DIAS'!E25) -> 78000 | E25: 78000
A26: =CONCATENATE(B26:B519," ",C26:C519) -> 3071387 Brazo mecánico + Diferencial + TRUSS 2,60 X 2,60 | B26: 3071387 | C26: Brazo mecánico + Diferencial + TRUSS 2,60 X 2,60 | D26: =IF('FERIAS 3 DIAS'!G$3=TRUE,'FERIAS DE 4 A 6 DIAS'!E26/'FERIAS 3 DIAS'!I$3,'FERIAS DE 4 A 6 DIAS'!E26) -> 2668000 | E26: 2668000
A27: =CONCATENATE(B27:B520," ",C27:C520) -> 3071351 Brazo mecánico + Diferencial + TRUSS 3,60 X 2,60 | B27: 3071351 | C27: Brazo mecánico + Diferencial + TRUSS 3,60 X 2,60 | D27: =IF('FERIAS 3 DIAS'!G$3=TRUE,'FERIAS DE 4 A 6 DIAS'!E27/'FERIAS 3 DIAS'!I$3,'FERIAS DE 4 A 6 DIAS'!E27) -> 2668000 | E27: 2668000
A28: =CONCATENATE(B28:B521," ",C28:C521) -> 3071395 Brazo mecánico + Diferencial + TRUSS 3,60 X 3,60 | B28: 3071395 | C28: Brazo mecánico + Diferencial + TRUSS 3,60 X 3,60 | D28: =IF('FERIAS 3 DIAS'!G$3=TRUE,'FERIAS DE 4 A 6 DIAS'!E28/'FERIAS 3 DIAS'!I$3,'FERIAS DE 4 A 6 DIAS'!E28) -> 2668000 | E28: 2668000
A29: =CONCATENATE(B29:B522," ",C29:C522) -> 3071324 Brazo mecánico + Diferencial + TRUSS 5,90 X 5,90 | B29: 3071324 | C29: Brazo mecánico + Diferencial + TRUSS 5,90 X 5,90 | D29: =IF('FERIAS 3 DIAS'!G$3=TRUE,'FERIAS DE 4 A 6 DIAS'!E29/'FERIAS 3 DIAS'!I$3,'FERIAS DE 4 A 6 DIAS'!E29) -> 3335000 | E29: 3335000
A30: =CONCATENATE(B30:B523," ",C30:C523) -> 3071436 Brazo mecánico + Diferencial + TRUSS 6,90 X 6,90 | B30: 3071436 | C30: Brazo mecánico + Diferencial + TRUSS 6,90 X 6,90 | D30: =IF('FERIAS 3 DIAS'!G$3=TRUE,'FERIAS DE 4 A 6 DIAS'!E30/'FERIAS 3 DIAS'!I$3,'FERIAS DE 4 A 6 DIAS'!E30) -> 3335000 | E30: 3335000
A31: =CONCATENATE(B31:B524," ",C31:C524) -> 3071350 Brazo mecánico + Diferencial + TRUSS 5,60 X 5,60 | B31: 3071350 | C31: Brazo mecánico + Diferencial + TRUSS 5,60 X 5,60 | D31: =IF('FERIAS 3 DIAS'!G$3=TRUE,'FERIAS DE 4 A 6 DIAS'!E31/'FERIAS 3 DIAS'!I$3,'FERIAS DE 4 A 6 DIAS'!E31) -> 3335000 | E31: 3335000
A32: =CONCATENATE(B32:B525," ",C32:C525) -> 3071371 Brazo mecánico + Diferencial + TRUSS 6,60 X 6,60 | B32: 3071371 | C32: Brazo mecánico + Diferencial + TRUSS 6,60 X 6,60 | D32: =IF('FERIAS 3 DIAS'!G$3=TRUE,'FERIAS DE 4 A 6 DIAS'!E32/'FERIAS 3 DIAS'!I$3,'FERIAS DE 4 A 6 DIAS'!E32) -> 3335000 | E32: 3335000
A33: =CONCATENATE(B33:B526," ",C33:C526) -> 3071393 Brazo mecánico + Diferencial + TRUSS 9,60 X 2,60 | B33: 3071393 | C33: Brazo mecánico + Diferencial + TRUSS 9,60 X 2,60 | D33: =IF('FERIAS 3 DIAS'!G$3=TRUE,'FERIAS DE 4 A 6 DIAS'!E33/'FERIAS 3 DIAS'!I$3,'FERIAS DE 4 A 6 DIAS'!E33) -> 3335000 | E33: 3335000
A34: =CONCATENATE(B34:B527," ",C34:C527) -> 3071394 Brazo mecánico + Diferencial + TRUSS 9,60 X 3,60 | B34: 3071394 | C34: Brazo mecánico + Diferencial + TRUSS 9,60 X 3,60 | D34: =IF('FERIAS 3 DIAS'!G$3=TRUE,'FERIAS DE 4 A 6 DIAS'!E34/'FERIAS 3 DIAS'!I$3,'FERIAS DE 4 A 6 DIAS'!E34) -> 3335000 | E34: 3335000
A35: =CONCATENATE(B35:B528," ",C35:C528) -> 3071396 Brazo mecánico + Diferencial + TRUSS 9,60 X 5,60 | B35: 3071396 | C35: Brazo mecánico + Diferencial + TRUSS 9,60 X 5,60 | D35: =IF('FERIAS 3 DIAS'!G$3=TRUE,'FERIAS DE 4 A 6 DIAS'!E35/'FERIAS 3 DIAS'!I$3,'FERIAS DE 4 A 6 DIAS'!E35) -> 4416000 | E35: 4416000
A36: =CONCATENATE(B36:B529," ",C36:C529) -> 3071397 Brazo mecánico + Diferencial + TRUSS 9,60 X 6,60 | B36: 3071397 | C36: Brazo mecánico + Diferencial + TRUSS 9,60 X 6,60 | D36: =IF('FERIAS 3 DIAS'!G$3=TRUE,'FERIAS DE 4 A 6 DIAS'!E36/'FERIAS 3 DIAS'!I$3,'FERIAS DE 4 A 6 DIAS'!E36) -> 4416000 | E36: 4416000
A37: =CONCATENATE(B37:B530," ",C37:C530) -> 3071418 Servicio de Internet Cableado "PARA UN EQUIPO - DURANTE UN DÍA" | B37: 3071418 | C37: Servicio de Internet Cableado "PARA UN EQUIPO - DURANTE UN DÍA" | D37: =IF('FERIAS 3 DIAS'!G$3=TRUE,'FERIAS DE 4 A 6 DIAS'!E37/'FERIAS 3 DIAS'!I$3,'FERIAS DE 4 A 6 DIAS'!E37) -> 74970 | E37: 74970
A38: =CONCATENATE(B38:B531," ",C38:C531) -> 3071419 Clave de acceso para la red WiFi "PARA UN EQUIPO - DURANTE UN DÍA" | B38: 3071419 | C38: Clave de acceso para la red WiFi "PARA UN EQUIPO - DURANTE UN DÍA" | D38: =IF('FERIAS 3 DIAS'!G$3=TRUE,'FERIAS DE 4 A 6 DIAS'!E38/'FERIAS 3 DIAS'!I$3,'FERIAS DE 4 A 6 DIAS'!E38) -> 74970 | E38: 74970
A39: =CONCATENATE(B39:B532," ",C39:C532) -> 3071417 Servicio de Internet Cableado "PARA UN EQUIPO - DURANTE TODA LA FERIA" valor de 4 a 6 dias | B39: 3071417 | C39: Servicio de Internet Cableado "PARA UN EQUIPO - DURANTE TODA LA FERIA" valor de 4 a 6 dias | D39: =IF('FERIAS 3 DIAS'!G$3=TRUE,'FERIAS DE 4 A 6 DIAS'!E39/'FERIAS 3 DIAS'!I$3,'FERIAS DE 4 A 6 DIAS'!E39) -> 203490 | E39: 203490
A40: =CONCATENATE(B40:B533," ",C40:C533) -> 3071420 Clave de acceso para la Red WiFi "PARA UN EQUIPO - DURANTE TODA LA FERIA" valor de 4 a 6 dias | B40: 3071420 | C40: Clave de acceso para la Red WiFi "PARA UN EQUIPO - DURANTE TODA LA FERIA" valor de 4 a 6 dias | D40: =IF('FERIAS 3 DIAS'!G$3=TRUE,'FERIAS DE 4 A 6 DIAS'!E40/'FERIAS 3 DIAS'!I$3,'FERIAS DE 4 A 6 DIAS'!E40) -> 203490 | E40: 203490
A41: =CONCATENATE(B41:B534," ",C41:C534) -> 3071423 Conexión para Datafono + Clave de acceso WIFI (Para un equipo durante toda la feria) valor de 4 a 6 dias | B41: 3071423 | C41: Conexión para Datafono + Clave de acceso WIFI (Para un equipo durante toda la feria) valor de 4 a 6 dias | D41: =IF('FERIAS 3 DIAS'!G$3=TRUE,'FERIAS DE 4 A 6 DIAS'!E41/'FERIAS 3 DIAS'!I$3,'FERIAS DE 4 A 6 DIAS'!E41) -> 314160 | E41: 314160
A42: =CONCATENATE(B42:B535," ",C42:C535) -> 3071424 Conexión para Datafono + Servicio de Internet Cableado (Para un equipo durante toda la feria) valor de 4 a 6 dias | B42: 3071424 | C42: Conexión para Datafono + Servicio de Internet Cableado (Para un equipo durante toda la feria) valor de 4 a 6 dias | D42: =IF('FERIAS 3 DIAS'!G$3=TRUE,'FERIAS DE 4 A 6 DIAS'!E42/'FERIAS 3 DIAS'!I$3,'FERIAS DE 4 A 6 DIAS'!E42) -> 314160 | E42: 314160
A43: =CONCATENATE(B43:B536," ",C43:C536) -> 3071425 Servicio de Internet Cableado + Clave de acceso WIFI (Para un equipo durante toda la feria) valor de 4 a 6 dias | B43: 3071425 | C43: Servicio de Internet Cableado + Clave de acceso WIFI (Para un equipo durante toda la feria) valor de 4 a 6 dias | D43: =IF('FERIAS 3 DIAS'!G$3=TRUE,'FERIAS DE 4 A 6 DIAS'!E43/'FERIAS 3 DIAS'!I$3,'FERIAS DE 4 A 6 DIAS'!E43) -> 366282 | E43: 366282
A44: =CONCATENATE(B44:B537," ",C44:C537) -> 3071437 Internet Dedicado: Si requiere conexión banda ancha para diferentes servicios o redes locales, contáctese con serviciosplus@corferias.com para brindarle asesoria y cotización. | B44: 3071437 | C44: Internet Dedicado: Si requiere conexión banda ancha para diferentes servicios o redes locales, contáctese con serviciosplus@corferias.com para brindarle asesoria y cotización. | D44: =IF('FERIAS 3 DIAS'!G$3=TRUE,'FERIAS DE 4 A 6 DIAS'!E44/'FERIAS 3 DIAS'!I$3,'FERIAS DE 4 A 6 DIAS'!E44) -> Según cotización | E44: Según cotización
A45: =CONCATENATE(B45:B538," ",C45:C538) -> 3071406 Instalación Punto de Red:Incluye un cable UTP por punto | B45: 3071406 | C45: Instalación Punto de Red:Incluye un cable UTP por punto | D45: =IF('FERIAS 3 DIAS'!G$3=TRUE,'FERIAS DE 4 A 6 DIAS'!E45/'FERIAS 3 DIAS'!I$3,'FERIAS DE 4 A 6 DIAS'!E45) -> 90797 | E45: 90797
A46: =CONCATENATE(B46:B539," ",C46:C539) -> 3071407 Switch VALOR POR FERIA | B46: 3071407 | C46: Switch VALOR POR FERIA | D46: =IF('FERIAS 3 DIAS'!G$3=TRUE,'FERIAS DE 4 A 6 DIAS'!E46/'FERIAS 3 DIAS'!I$3,'FERIAS DE 4 A 6 DIAS'!E46) -> 87346 | E46: 87346
A47: =CONCATENATE(B47:B540," ",C47:C540) -> 3071402 Servicio de VLAN: Servicio virtual de red. VALOR POR FERIA | B47: 3071402 | C47: Servicio de VLAN: Servicio virtual de red. VALOR POR FERIA | D47: =IF('FERIAS 3 DIAS'!G$3=TRUE,'FERIAS DE 4 A 6 DIAS'!E47/'FERIAS 3 DIAS'!I$3,'FERIAS DE 4 A 6 DIAS'!E47) -> 367115 | E47: 367115
A48: =CONCATENATE(B48:B541," ",C48:C541) -> 3071430 Extension LAN VALOR POR FERIA (Incluye punto de red y aplica para extender el servicio de internet contratado con terceros) | B48: 3071430 | C48: Extension LAN VALOR POR FERIA (Incluye punto de red y aplica para extender el servicio de internet contratado con terceros) | D48: =IF('FERIAS 3 DIAS'!G$3=TRUE,'FERIAS DE 4 A 6 DIAS'!E48/'FERIAS 3 DIAS'!I$3,'FERIAS DE 4 A 6 DIAS'!E48) -> 1401344 | E48: 1401344
A49: =CONCATENATE(B49:B542," ",C49:C542) -> 3071442 Soporte técnico permanente (Por espacio de 8 horas) de un técnico. VALOR DÍARIO | B49: 3071442 | C49: Soporte técnico permanente (Por espacio de 8 horas) de un técnico. VALOR DÍARIO | D49: =IF('FERIAS 3 DIAS'!G$3=TRUE,'FERIAS DE 4 A 6 DIAS'!E49/'FERIAS 3 DIAS'!I$3,'FERIAS DE 4 A 6 DIAS'!E49) -> 243474 | E49: 243474
A50: =CONCATENATE(B50:B543," ",C50:C543) -> 3070202 Servicio Telefónico Urbano con Aparato (Incluye consumo local ilimitado) | B50: 3070202 | C50: Servicio Telefónico Urbano con Aparato (Incluye consumo local ilimitado) | D50: =IF('FERIAS 3 DIAS'!G$3=TRUE,'FERIAS DE 4 A 6 DIAS'!E50/'FERIAS 3 DIAS'!I$3,'FERIAS DE 4 A 6 DIAS'!E50) -> 42483 | E50: 42483
A51: =CONCATENATE(B51:B544," ",C51:C544) -> 3070203 Servicio Telefónico Larga Distancia con aparato | B51: 3070203 | C51: Servicio Telefónico Larga Distancia con aparato | D51: =IF('FERIAS 3 DIAS'!G$3=TRUE,'FERIAS DE 4 A 6 DIAS'!E51/'FERIAS 3 DIAS'!I$3,'FERIAS DE 4 A 6 DIAS'!E51) -> 42483 | E51: 42483
A52: =CONCATENATE(B52:B545," ",C52:C545) -> 3070201 Línea Externa no conmutada (Previa solicitud a Etb, Claro, EPM, Colomsat u otro operador) | B52: 3070201 | C52: Línea Externa no conmutada (Previa solicitud a Etb, Claro, EPM, Colomsat u otro operador) | D52: =IF('FERIAS 3 DIAS'!G$3=TRUE,'FERIAS DE 4 A 6 DIAS'!E52/'FERIAS 3 DIAS'!I$3,'FERIAS DE 4 A 6 DIAS'!E52) -> 120071 | E52: 120071
A53: =CONCATENATE(B53:B546," ",C53:C546) -> 3070207 Conexión cableada para Datafono:(No incluye Datafono) | B53: 3070207 | C53: Conexión cableada para Datafono:(No incluye Datafono) | D53: =IF('FERIAS 3 DIAS'!G$3=TRUE,'FERIAS DE 4 A 6 DIAS'!E53/'FERIAS 3 DIAS'!I$3,'FERIAS DE 4 A 6 DIAS'!E53) -> 127092 | E53: 127092
A54: =CONCATENATE(B54:B536," ",C54:C536) -> 3071107 Archivador Regina (70cm x 37cm x50cm) | B54: 3071107 | C54: Archivador Regina (70cm x 37cm x50cm) | D54: =IF('FERIAS 3 DIAS'!G$3=TRUE,'FERIAS DE 4 A 6 DIAS'!E54/'FERIAS 3 DIAS'!I$3,'FERIAS DE 4 A 6 DIAS'!E54) -> 158151 | E54: 158151
A55: =CONCATENATE(B55:B537," ",C55:C537) -> 3070954 Counter Mónaco (Melaminico) (100cm x 100cm x 30cm) | B55: 3070954 | C55: Counter Mónaco (Melaminico) (100cm x 100cm x 30cm) | D55: =IF('FERIAS 3 DIAS'!G$3=TRUE,'FERIAS DE 4 A 6 DIAS'!E55/'FERIAS 3 DIAS'!I$3,'FERIAS DE 4 A 6 DIAS'!E55) -> 171241 | E55: 171241
A56: =CONCATENATE(B56:B538," ",C56:C538) -> 3070954 Counter Mónaco (Miel) (100cm x 100cm x 30cm) | B56: 3070954 | C56: Counter Mónaco (Miel) (100cm x 100cm x 30cm) | D56: =IF('FERIAS 3 DIAS'!G$3=TRUE,'FERIAS DE 4 A 6 DIAS'!E56/'FERIAS 3 DIAS'!I$3,'FERIAS DE 4 A 6 DIAS'!E56) -> 171241 | E56: 171241
A57: =CONCATENATE(B57:B539," ",C57:C539) -> 3070954 Counter Mónaco (Roble Gris) (100cm x 100cm x 30cm) | B57: 3070954 | C57: Counter Mónaco (Roble Gris) (100cm x 100cm x 30cm) | D57: =IF('FERIAS 3 DIAS'!G$3=TRUE,'FERIAS DE 4 A 6 DIAS'!E57/'FERIAS 3 DIAS'!I$3,'FERIAS DE 4 A 6 DIAS'!E57) -> 171241 | E57: 171241
A58: =CONCATENATE(B58:B540," ",C58:C540) -> 3070954 Counter Mónaco (Rovere) (100cm x 100cm x 30cm) | B58: 3070954 | C58: Counter Mónaco (Rovere) (100cm x 100cm x 30cm) | D58: =IF('FERIAS 3 DIAS'!G$3=TRUE,'FERIAS DE 4 A 6 DIAS'!E58/'FERIAS 3 DIAS'!I$3,'FERIAS DE 4 A 6 DIAS'!E58) -> 171241 | E58: 171241
A59: =CONCATENATE(B59:B541," ",C59:C541) -> 3070714 Cubo de exhibición (40cm x 40cm x 25cm) | B59: 3070714 | C59: Cubo de exhibición (40cm x 40cm x 25cm) | D59: =IF('FERIAS 3 DIAS'!G$3=TRUE,'FERIAS DE 4 A 6 DIAS'!E59/'FERIAS 3 DIAS'!I$3,'FERIAS DE 4 A 6 DIAS'!E59) -> 35700 | E59: 35700
A60: =CONCATENATE(B60:B542," ",C60:C542) -> 3070503 Estantería Polo (Melaminico) (200cm x 93cm x 35cm) | B60: 3070503 | C60: Estantería Polo (Melaminico) (200cm x 93cm x 35cm) | D60: =IF('FERIAS 3 DIAS'!G$3=TRUE,'FERIAS DE 4 A 6 DIAS'!E60/'FERIAS 3 DIAS'!I$3,'FERIAS DE 4 A 6 DIAS'!E60) -> 181951 | E60: 181951
A61: =CONCATENATE(B61:B543," ",C61:C543) -> 3070503 Estantería Polo (Miel) (200cm x 93cm x 35cm) | B61: 3070503 | C61: Estantería Polo (Miel) (200cm x 93cm x 35cm) | D61: =IF('FERIAS 3 DIAS'!G$3=TRUE,'FERIAS DE 4 A 6 DIAS'!E61/'FERIAS 3 DIAS'!I$3,'FERIAS DE 4 A 6 DIAS'!E61) -> 181951 | E61: 181951
A62: =CONCATENATE(B62:B544," ",C62:C544) -> 3070503 Estantería Polo (OSB) (200cm x 93cm x 35cm) | B62: 3070503 | C62: Estantería Polo (OSB) (200cm x 93cm x 35cm) | D62: =IF('FERIAS 3 DIAS'!G$3=TRUE,'FERIAS DE 4 A 6 DIAS'!E62/'FERIAS 3 DIAS'!I$3,'FERIAS DE 4 A 6 DIAS'!E62) -> 181951 | E62: 181951
A63: =CONCATENATE(B63:B545," ",C63:C545) -> 3070503 Estantería Polo (Roble Gris) (200cm x 93cm x 35cm) | B63: 3070503 | C63: Estantería Polo (Roble Gris) (200cm x 93cm x 35cm) | D63: =IF('FERIAS 3 DIAS'!G$3=TRUE,'FERIAS DE 4 A 6 DIAS'!E63/'FERIAS 3 DIAS'!I$3,'FERIAS DE 4 A 6 DIAS'!E63) -> 181951 | E63: 181951
A64: =CONCATENATE(B64:B546," ",C64:C546) -> 3070503 Estantería Polo (Rovere) (200cm x 93cm x 35cm) | B64: 3070503 | C64: Estantería Polo (Rovere) (200cm x 93cm x 35cm) | D64: =IF('FERIAS 3 DIAS'!G$3=TRUE,'FERIAS DE 4 A 6 DIAS'!E64/'FERIAS 3 DIAS'!I$3,'FERIAS DE 4 A 6 DIAS'!E64) -> 181951 | E64: 181951
A65: =CONCATENATE(B65:B547," ",C65:C547) -> 3071108 Estantería Shelf 4E (190cm x 125cm x 41cm) | B65: 3071108 | C65: Estantería Shelf 4E (190cm x 125cm x 41cm) | D65: =IF('FERIAS 3 DIAS'!G$3=TRUE,'FERIAS DE 4 A 6 DIAS'!E65/'FERIAS 3 DIAS'!I$3,'FERIAS DE 4 A 6 DIAS'!E65) -> 151606 | E65: 151606
A66: =CONCATENATE(B66:B549," ",C66:C549) -> 3071105 KIT básico oficina 2 (2 sillas interlocutoras negras, 1 silla ejecutiva cuero, 1 mesa oficina) | B66: 3071105 | C66: KIT básico oficina 2 (2 sillas interlocutoras negras, 1 silla ejecutiva cuero, 1 mesa oficina) | D66: =IF('FERIAS 3 DIAS'!G$3=TRUE,'FERIAS DE 4 A 6 DIAS'!E66/'FERIAS 3 DIAS'!I$3,'FERIAS DE 4 A 6 DIAS'!E66) -> 237286 | E66: 237286
A67: =CONCATENATE(B67:B550," ",C67:C550) -> 3070512 Locker 12 puestos | B67: 3070512 | C67: Locker 12 puestos | D67: =IF('FERIAS 3 DIAS'!G$3=TRUE,'FERIAS DE 4 A 6 DIAS'!E67/'FERIAS 3 DIAS'!I$3,'FERIAS DE 4 A 6 DIAS'!E67) -> 357000 | E67: 357000
A68: =CONCATENATE(B68:B552," ",C68:C552) -> 3070512 Mesa alta Daysa (Melaminico) (100cm x 60cm) | B68: 3070512 | C68: Mesa alta Daysa (Melaminico) (100cm x 60cm) | D68: =IF('FERIAS 3 DIAS'!G$3=TRUE,'FERIAS DE 4 A 6 DIAS'!E68/'FERIAS 3 DIAS'!I$3,'FERIAS DE 4 A 6 DIAS'!E68) -> 105553 | E68: 105553
A69: =CONCATENATE(B69:B553," ",C69:C553) -> 3071115 Mesa alta Daysa (Miel) (100cm x 60cm) | B69: 3071115 | C69: Mesa alta Daysa (Miel) (100cm x 60cm) | D69: =IF('FERIAS 3 DIAS'!G$3=TRUE,'FERIAS DE 4 A 6 DIAS'!E69/'FERIAS 3 DIAS'!I$3,'FERIAS DE 4 A 6 DIAS'!E69) -> 105553 | E69: 105553
A70: =CONCATENATE(B70:B554," ",C70:C554) -> 3071115 Mesa alta Daysa (Roble Gris) (100cm x 60cm) | B70: 3071115 | C70: Mesa alta Daysa (Roble Gris) (100cm x 60cm) | D70: =IF('FERIAS 3 DIAS'!G$3=TRUE,'FERIAS DE 4 A 6 DIAS'!E70/'FERIAS 3 DIAS'!I$3,'FERIAS DE 4 A 6 DIAS'!E70) -> 105553 | E70: 105553
A71: =CONCATENATE(B71:B555," ",C71:C555) -> 3071115 Mesa alta Daysa (Rovere) (100cm x 60cm) | B71: 3071115 | C71: Mesa alta Daysa (Rovere) (100cm x 60cm) | D71: =IF('FERIAS 3 DIAS'!G$3=TRUE,'FERIAS DE 4 A 6 DIAS'!E71/'FERIAS 3 DIAS'!I$3,'FERIAS DE 4 A 6 DIAS'!E71) -> 105553 | E71: 105553
A72: =CONCATENATE(B72:B556," ",C72:C556) -> 3071039 Mesa alta Daysa + 2 sillas neumaticas altas marsella | B72: 3071039 | C72: Mesa alta Daysa + 2 sillas neumaticas altas marsella | D72: =IF('FERIAS 3 DIAS'!G$3=TRUE,'FERIAS DE 4 A 6 DIAS'!E72/'FERIAS 3 DIAS'!I$3,'FERIAS DE 4 A 6 DIAS'!E72) -> 247163 | E72: 247163
A73: =CONCATENATE(B73:B557," ",C73:C557) -> 3071093 Mesa alta Daysa vidrio (100cm x 60cm) | B73: 3071093 | C73: Mesa alta Daysa vidrio (100cm x 60cm) | D73: =IF('FERIAS 3 DIAS'!G$3=TRUE,'FERIAS DE 4 A 6 DIAS'!E73/'FERIAS 3 DIAS'!I$3,'FERIAS DE 4 A 6 DIAS'!E73) -> 118643 | E73: 118643
A74: =CONCATENATE(B74:B558," ",C74:C558) -> 3071100 Mesa Centro Circular doble nivel (melaminico) (50cm x 110cm x 60cm) | B74: 3071100 | C74: Mesa Centro Circular doble nivel (melaminico) (50cm x 110cm x 60cm) | D74: =IF('FERIAS 3 DIAS'!G$3=TRUE,'FERIAS DE 4 A 6 DIAS'!E74/'FERIAS 3 DIAS'!I$3,'FERIAS DE 4 A 6 DIAS'!E74) -> 117453 | E74: 117453
A75: =CONCATENATE(B75:B559," ",C75:C559) -> 3071104 Mesa Centro Cuadrada 2 Niveles (melaminico) (50cm x 60cm x 60) | B75: 3071104 | C75: Mesa Centro Cuadrada 2 Niveles (melaminico) (50cm x 60cm x 60) | D75: =IF('FERIAS 3 DIAS'!G$3=TRUE,'FERIAS DE 4 A 6 DIAS'!E75/'FERIAS 3 DIAS'!I$3,'FERIAS DE 4 A 6 DIAS'!E75) -> 85442 | E75: 85442
A76: =CONCATENATE(B76:B560," ",C76:C560) -> 3071068 Mesa Centro Rectangular doble nivel (melaminico) (50cm x 75cm x 50cm) | B76: 3071068 | C76: Mesa Centro Rectangular doble nivel (melaminico) (50cm x 75cm x 50cm) | D76: =IF('FERIAS 3 DIAS'!G$3=TRUE,'FERIAS DE 4 A 6 DIAS'!E76/'FERIAS 3 DIAS'!I$3,'FERIAS DE 4 A 6 DIAS'!E76) -> 85442 | E76: 85442
A77: =CONCATENATE(B77:B561," ",C77:C561) -> 3071098 Mesa estandar Chia Blanca | B77: 3071098 | C77: Mesa estandar Chia Blanca | D77: =IF('FERIAS 3 DIAS'!G$3=TRUE,'FERIAS DE 4 A 6 DIAS'!E77/'FERIAS 3 DIAS'!I$3,'FERIAS DE 4 A 6 DIAS'!E77) -> 105553 | E77: 105553
A78: =CONCATENATE(B78:B562," ",C78:C562) -> 3071098 Mesa estandar Chia Negra | B78: 3071098 | C78: Mesa estandar Chia Negra | D78: =IF('FERIAS 3 DIAS'!G$3=TRUE,'FERIAS DE 4 A 6 DIAS'!E78/'FERIAS 3 DIAS'!I$3,'FERIAS DE 4 A 6 DIAS'!E78) -> 105553 | E78: 105553
A79: =CONCATENATE(B79:B563," ",C79:C563) -> 3071097 Mesa estandar Daysa (76cm x 60cm) | B79: 3071097 | C79: Mesa estandar Daysa (76cm x 60cm) | D79: =IF('FERIAS 3 DIAS'!G$3=TRUE,'FERIAS DE 4 A 6 DIAS'!E79/'FERIAS 3 DIAS'!I$3,'FERIAS DE 4 A 6 DIAS'!E79) -> 105553 | E79: 105553
A80: =CONCATENATE(B80:B564," ",C80:C564) -> 3071116 Mesa estandar Lotus (70cm x 64cm x 81cm) | B80: 3071116 | C80: Mesa estandar Lotus (70cm x 64cm x 81cm) | D80: =IF('FERIAS 3 DIAS'!G$3=TRUE,'FERIAS DE 4 A 6 DIAS'!E80/'FERIAS 3 DIAS'!I$3,'FERIAS DE 4 A 6 DIAS'!E80) -> 158151 | E80: 158151
A81: =CONCATENATE(B81:B565," ",C81:C565) -> 3071054 Mesa estandar lotus vidrio + 2 sillas tipo huevo | B81: 3071054 | C81: Mesa estandar lotus vidrio + 2 sillas tipo huevo | D81: =IF('FERIAS 3 DIAS'!G$3=TRUE,'FERIAS DE 4 A 6 DIAS'!E81/'FERIAS 3 DIAS'!I$3,'FERIAS DE 4 A 6 DIAS'!E81) -> 272153 | E81: 272153
A82: =CONCATENATE(B82:B566," ",C82:C566) -> 30713200 Mesa Oficina (78cm x 120cm x 50cm) | B82: 30713200 | C82: Mesa Oficina (78cm x 120cm x 50cm) | D82: =IF('FERIAS 3 DIAS'!G$3=TRUE,'FERIAS DE 4 A 6 DIAS'!E82/'FERIAS 3 DIAS'!I$3,'FERIAS DE 4 A 6 DIAS'!E82) -> 133042 | E82: 133042
A83: =CONCATENATE(B83:B567," ",C83:C567) -> 3071036 Mesa plegable plastico + 2 sillas interlocutoras negras | B83: 3071036 | C83: Mesa plegable plastico + 2 sillas interlocutoras negras | D83: =IF('FERIAS 3 DIAS'!G$3=TRUE,'FERIAS DE 4 A 6 DIAS'!E83/'FERIAS 3 DIAS'!I$3,'FERIAS DE 4 A 6 DIAS'!E83) -> 190400 | E83: 190400
A84: =CONCATENATE(B84:B568," ",C84:C568) -> 3070936 Mesón plegable plástico (Gris o blanco) (73cm x 182cm x 76cm) | B84: 3070936 | C84: Mesón plegable plástico (Gris o blanco) (73cm x 182cm x 76cm) | D84: =IF('FERIAS 3 DIAS'!G$3=TRUE,'FERIAS DE 4 A 6 DIAS'!E84/'FERIAS 3 DIAS'!I$3,'FERIAS DE 4 A 6 DIAS'!E84) -> 104601 | E84: 104601
A85: =CONCATENATE(B85:B569," ",C85:C569) -> 3071103 Nevera Estandar 230LT ( 55.6cm X 157.6cm X 67cm) | B85: 3071103 | C85: Nevera Estandar 230LT ( 55.6cm X 157.6cm X 67cm) | D85: =IF('FERIAS 3 DIAS'!G$3=TRUE,'FERIAS DE 4 A 6 DIAS'!E85/'FERIAS 3 DIAS'!I$3,'FERIAS DE 4 A 6 DIAS'!E85) -> 299999 | E85: 299999
A86: =CONCATENATE(B86:B570," ",C86:C570) -> 3071103 Nevera Minibar 121 LT (48.5cm X 85.1cm X 60cm) | B86: 3071103 | C86: Nevera Minibar 121 LT (48.5cm X 85.1cm X 60cm) | D86: =IF('FERIAS 3 DIAS'!G$3=TRUE,'FERIAS DE 4 A 6 DIAS'!E86/'FERIAS 3 DIAS'!I$3,'FERIAS DE 4 A 6 DIAS'!E86) -> 203371 | E86: 203371
A87: =CONCATENATE(B87:B571," ",C87:C571) -> 3071302 Papelera plastica negra | B87: 3071302 | C87: Papelera plastica negra | D87: =IF('FERIAS 3 DIAS'!G$3=TRUE,'FERIAS DE 4 A 6 DIAS'!E87/'FERIAS 3 DIAS'!I$3,'FERIAS DE 4 A 6 DIAS'!E87) -> 23443 | E87: 23443
A88: =CONCATENATE(B88:B572," ",C88:C572) -> 3070957 Pedestal cuadrado (30cm x 30cm x 30cm) | B88: 3070957 | C88: Pedestal cuadrado (30cm x 30cm x 30cm) | D88: =IF('FERIAS 3 DIAS'!G$3=TRUE,'FERIAS DE 4 A 6 DIAS'!E88/'FERIAS 3 DIAS'!I$3,'FERIAS DE 4 A 6 DIAS'!E88) -> 34391 | E88: 34391
A89: =CONCATENATE(B89:B573," ",C89:C573) -> 3070956 Pedestal rectangular 60cm (60cm x 30cm x 30cm) | B89: 3070956 | C89: Pedestal rectangular 60cm (60cm x 30cm x 30cm) | D89: =IF('FERIAS 3 DIAS'!G$3=TRUE,'FERIAS DE 4 A 6 DIAS'!E89/'FERIAS 3 DIAS'!I$3,'FERIAS DE 4 A 6 DIAS'!E89) -> 39627 | E89: 39627
A90: =CONCATENATE(B90:B574," ",C90:C574) -> 3070955 Pedestal rectangular 90cm (90cm x 30cm x 30cm) | B90: 3070955 | C90: Pedestal rectangular 90cm (90cm x 30cm x 30cm) | D90: =IF('FERIAS 3 DIAS'!G$3=TRUE,'FERIAS DE 4 A 6 DIAS'!E90/'FERIAS 3 DIAS'!I$3,'FERIAS DE 4 A 6 DIAS'!E90) -> 44982 | E90: 44982
A91: =CONCATENATE(B91:B575," ",C91:C575) -> 3070521 Perchero básico 1 pedestal (120cm Ancho - Altura) graduable + 5 ganchos | B91: 3070521 | C91: Perchero básico 1 pedestal (120cm Ancho - Altura) graduable + 5 ganchos | D91: =IF('FERIAS 3 DIAS'!G$3=TRUE,'FERIAS DE 4 A 6 DIAS'!E91/'FERIAS 3 DIAS'!I$3,'FERIAS DE 4 A 6 DIAS'!E91) -> 77469 | E91: 77469
A92: =CONCATENATE(B92:B576," ",C92:C576) -> 3070521 Perchero doble 2 pedestal (120cm Ancho-Altura) graduable + 5 ganchos | B92: 3070521 | C92: Perchero doble 2 pedestal (120cm Ancho-Altura) graduable + 5 ganchos | D92: =IF('FERIAS 3 DIAS'!G$3=TRUE,'FERIAS DE 4 A 6 DIAS'!E92/'FERIAS 3 DIAS'!I$3,'FERIAS DE 4 A 6 DIAS'!E92) -> 89369 | E92: 89369
A93: =CONCATENATE(B93:B577," ",C93:C577) -> 30713201 Poltrona Buggy (72cm x 64cm) | B93: 30713201 | C93: Poltrona Buggy (72cm x 64cm) | D93: =IF('FERIAS 3 DIAS'!G$3=TRUE,'FERIAS DE 4 A 6 DIAS'!E93/'FERIAS 3 DIAS'!I$3,'FERIAS DE 4 A 6 DIAS'!E93) -> 155176 | E93: 155176
A94: =CONCATENATE(B94:B578," ",C94:C578) -> 3071059 Poltrona Levis (73cm x 86cm x 73cm) | B94: 3071059 | C94: Poltrona Levis (73cm x 86cm x 73cm) | D94: =IF('FERIAS 3 DIAS'!G$3=TRUE,'FERIAS DE 4 A 6 DIAS'!E94/'FERIAS 3 DIAS'!I$3,'FERIAS DE 4 A 6 DIAS'!E94) -> 197778 | E94: 197778
A95: =CONCATENATE(B95:B579," ",C95:C579) -> 3071325 Poste separador 120cm de alto | B95: 3071325 | C95: Poste separador 120cm de alto | D95: =IF('FERIAS 3 DIAS'!G$3=TRUE,'FERIAS DE 4 A 6 DIAS'!E95/'FERIAS 3 DIAS'!I$3,'FERIAS DE 4 A 6 DIAS'!E95) -> 46291 | E95: 46291
A96: =CONCATENATE(B96:B580," ",C96:C580) -> 3071090 Puff estandar cuadrado (43cm x 43cm x 43cm) | B96: 3071090 | C96: Puff estandar cuadrado (43cm x 43cm x 43cm) | D96: =IF('FERIAS 3 DIAS'!G$3=TRUE,'FERIAS DE 4 A 6 DIAS'!E96/'FERIAS 3 DIAS'!I$3,'FERIAS DE 4 A 6 DIAS'!E96) -> 55216 | E96: 55216
A97: =CONCATENATE(B97:B581," ",C97:C581) -> 3071091 Puff Trunk 2 cuerpos (48cm x 81cm x 40cm) | B97: 3071091 | C97: Puff Trunk 2 cuerpos (48cm x 81cm x 40cm) | D97: =IF('FERIAS 3 DIAS'!G$3=TRUE,'FERIAS DE 4 A 6 DIAS'!E97/'FERIAS 3 DIAS'!I$3,'FERIAS DE 4 A 6 DIAS'!E97) -> 105553 | E97: 105553
A98: =CONCATENATE(B98:B582," ",C98:C582) -> 3071114 Puff Trunk 3 cuerpos (46cm x 120cm x 54cm) | B98: 3071114 | C98: Puff Trunk 3 cuerpos (46cm x 120cm x 54cm) | D98: =IF('FERIAS 3 DIAS'!G$3=TRUE,'FERIAS DE 4 A 6 DIAS'!E98/'FERIAS 3 DIAS'!I$3,'FERIAS DE 4 A 6 DIAS'!E98) -> 105553 | E98: 105553
A99: =CONCATENATE(B99:B583," ",C99:C583) -> 3071370 Revistero plegable (140cm x 25cm x 29cm) | B99: 3071370 | C99: Revistero plegable (140cm x 25cm x 29cm) | D99: =IF('FERIAS 3 DIAS'!G$3=TRUE,'FERIAS DE 4 A 6 DIAS'!E99/'FERIAS 3 DIAS'!I$3,'FERIAS DE 4 A 6 DIAS'!E99) -> 78540 | E99: 78540
A100: =CONCATENATE(B100:B584," ",C100:C584) -> Sala de Juntas | C100: Sala de Juntas | D100: =IF('FERIAS 3 DIAS'!G$3=TRUE,'FERIAS DE 4 A 6 DIAS'!E100/'FERIAS 3 DIAS'!I$3,'FERIAS DE 4 A 6 DIAS'!E100) -> 297500 | E100: 297500
A101: =CONCATENATE(B101:B585," ",C101:C585) -> 3071113 Sala Osaka (1 sofá Toronto, 2 puffs Donna, 1 mesa centro cuadrada 2 niveles) | B101: 3071113 | C101: Sala Osaka (1 sofá Toronto, 2 puffs Donna, 1 mesa centro cuadrada 2 niveles) | D101: =IF('FERIAS 3 DIAS'!G$3=TRUE,'FERIAS DE 4 A 6 DIAS'!E101/'FERIAS 3 DIAS'!I$3,'FERIAS DE 4 A 6 DIAS'!E101) -> 461244 | E101: 461244
A102: =CONCATENATE(B102:B586," ",C102:C586) -> 3071095 Sala VIP (1 sofá Victoria derecho, 1 sofá Victoria izquierdo, 2 poltronas, 1 mesa centro cuadrada 2 niveles) | B102: 3071095 | C102: Sala VIP (1 sofá Victoria derecho, 1 sofá Victoria izquierdo, 2 poltronas, 1 mesa centro cuadrada 2 niveles) | D102: =IF('FERIAS 3 DIAS'!G$3=TRUE,'FERIAS DE 4 A 6 DIAS'!E102/'FERIAS 3 DIAS'!I$3,'FERIAS DE 4 A 6 DIAS'!E102) -> 690200 | E102: 690200
A103: =CONCATENATE(B103:B587," ",C103:C587) -> Silla Bombonera Roja | C103: Silla Bombonera Roja | D103: =IF('FERIAS 3 DIAS'!G$3=TRUE,'FERIAS DE 4 A 6 DIAS'!E103/'FERIAS 3 DIAS'!I$3,'FERIAS DE 4 A 6 DIAS'!E103) -> 65926 | E103: 65926
A104: =CONCATENATE(B104:B588," ",C104:C588) -> 3071081 Silla Ejecutiva Cuero (57cm x 93cm x 52cm) | B104: 3071081 | C104: Silla Ejecutiva Cuero (57cm x 93cm x 52cm) | D104: =IF('FERIAS 3 DIAS'!G$3=TRUE,'FERIAS DE 4 A 6 DIAS'!E104/'FERIAS 3 DIAS'!I$3,'FERIAS DE 4 A 6 DIAS'!E104) -> 75327 | E104: 75327
A105: =CONCATENATE(B105:B589," ",C105:C589) -> 3071081 Silla Ejecutiva Malla | B105: 3071081 | C105: Silla Ejecutiva Malla | D105: =IF('FERIAS 3 DIAS'!G$3=TRUE,'FERIAS DE 4 A 6 DIAS'!E105/'FERIAS 3 DIAS'!I$3,'FERIAS DE 4 A 6 DIAS'!E105) -> 155176 | E105: 155176
A106: =CONCATENATE(B106:B590," ",C106:C590) -> 3071061 Silla estandar Suiza (48cm x 46cm x 45cm) | B106: 3071061 | C106: Silla estandar Suiza (48cm x 46cm x 45cm) | D106: =IF('FERIAS 3 DIAS'!G$3=TRUE,'FERIAS DE 4 A 6 DIAS'!E106/'FERIAS 3 DIAS'!I$3,'FERIAS DE 4 A 6 DIAS'!E106) -> 68901 | E106: 68901
A107: =CONCATENATE(B107:B591," ",C107:C591) -> 3071008 Silla estandar Tipo Huevo (48cm x 46cm x 45cm) | B107: 3071008 | C107: Silla estandar Tipo Huevo (48cm x 46cm x 45cm) | D107: =IF('FERIAS 3 DIAS'!G$3=TRUE,'FERIAS DE 4 A 6 DIAS'!E107/'FERIAS 3 DIAS'!I$3,'FERIAS DE 4 A 6 DIAS'!E107) -> 68901 | E107: 68901
A108: =CONCATENATE(B108:B592," ",C108:C592) -> 30713198 Silla Gerencial (100cm x 49cm x 49cm) | B108: 30713198 | C108: Silla Gerencial (100cm x 49cm x 49cm) | D108: =IF('FERIAS 3 DIAS'!G$3=TRUE,'FERIAS DE 4 A 6 DIAS'!E108/'FERIAS 3 DIAS'!I$3,'FERIAS DE 4 A 6 DIAS'!E108) -> 155176 | E108: 155176
A109: =CONCATENATE(B109:B593," ",C109:C593) -> 3071006 Silla Interlocutora Negra (79cm x 53cm x 42cm) | B109: 3071006 | C109: Silla Interlocutora Negra (79cm x 53cm x 42cm) | D109: =IF('FERIAS 3 DIAS'!G$3=TRUE,'FERIAS DE 4 A 6 DIAS'!E109/'FERIAS 3 DIAS'!I$3,'FERIAS DE 4 A 6 DIAS'!E109) -> 49504 | E109: 49504
A110: =CONCATENATE(B110:B594," ",C110:C594) -> 3071077 Silla Neumática alta Marsella (80cm x 40cm x 40cm) | B110: 3071077 | C110: Silla Neumática alta Marsella (80cm x 40cm x 40cm) | D110: =IF('FERIAS 3 DIAS'!G$3=TRUE,'FERIAS DE 4 A 6 DIAS'!E110/'FERIAS 3 DIAS'!I$3,'FERIAS DE 4 A 6 DIAS'!E110) -> 82824 | E110: 82824
A111: =CONCATENATE(B111:B595," ",C111:C595) -> 3071022 Silla Neumatica alta Versalles (80cm x 40 cm x 40cm | B111: 3071022 | C111: Silla Neumatica alta Versalles (80cm x 40 cm x 40cm | D111: =IF('FERIAS 3 DIAS'!G$3=TRUE,'FERIAS DE 4 A 6 DIAS'!E111/'FERIAS 3 DIAS'!I$3,'FERIAS DE 4 A 6 DIAS'!E111) -> 104125 | E111: 104125
A112: =CONCATENATE(B112:B596," ",C112:C596) -> Silla Oslo Blanca | C112: Silla Oslo Blanca | D112: =IF('FERIAS 3 DIAS'!G$3=TRUE,'FERIAS DE 4 A 6 DIAS'!E112/'FERIAS 3 DIAS'!I$3,'FERIAS DE 4 A 6 DIAS'!E112) -> 75327 | E112: 75327
A113: =CONCATENATE(B113:B597," ",C113:C597) -> Silla Tipo Bar Madera | C113: Silla Tipo Bar Madera | D113: =IF('FERIAS 3 DIAS'!G$3=TRUE,'FERIAS DE 4 A 6 DIAS'!E113/'FERIAS 3 DIAS'!I$3,'FERIAS DE 4 A 6 DIAS'!E113) -> 81872 | E113: 81872
A114: =CONCATENATE(B114:B598," ",C114:C598) -> 3071085 Sofa Otawa 2 cuerpos (85cm x 120cm x 76cm) | B114: 3071085 | C114: Sofa Otawa 2 cuerpos (85cm x 120cm x 76cm) | D114: =IF('FERIAS 3 DIAS'!G$3=TRUE,'FERIAS DE 4 A 6 DIAS'!E114/'FERIAS 3 DIAS'!I$3,'FERIAS DE 4 A 6 DIAS'!E114) -> 210987 | E114: 210987
A115: =CONCATENATE(B115:B599," ",C115:C599) -> 3071031 Sofa Terranova 2 cuerpos (88cm x 173cm x 80cm) | B115: 3071031 | C115: Sofa Terranova 2 cuerpos (88cm x 173cm x 80cm) | D115: =IF('FERIAS 3 DIAS'!G$3=TRUE,'FERIAS DE 4 A 6 DIAS'!E115/'FERIAS 3 DIAS'!I$3,'FERIAS DE 4 A 6 DIAS'!E115) -> 224077 | E115: 224077
A116: =CONCATENATE(B116:B600," ",C116:C600) -> 3071083 Sofa Toronto 3 cuerpos (88cm x 173cm x 80cm) | B116: 3071083 | C116: Sofa Toronto 3 cuerpos (88cm x 173cm x 80cm) | D116: =IF('FERIAS 3 DIAS'!G$3=TRUE,'FERIAS DE 4 A 6 DIAS'!E116/'FERIAS 3 DIAS'!I$3,'FERIAS DE 4 A 6 DIAS'!E116) -> 224077 | E116: 224077
A117: =CONCATENATE(B117:B601," ",C117:C601) -> 3071013 Sofa Victoria derecho (70cm x 100cm x 75cm) | B117: 3071013 | C117: Sofa Victoria derecho (70cm x 100cm x 75cm) | D117: =IF('FERIAS 3 DIAS'!G$3=TRUE,'FERIAS DE 4 A 6 DIAS'!E117/'FERIAS 3 DIAS'!I$3,'FERIAS DE 4 A 6 DIAS'!E117) -> 182070 | E117: 182070
A118: =CONCATENATE(B118:B602," ",C118:C602) -> 3071023 Sofa Victoria izquierdo (70cm x 100cm x 75cm) | B118: 3071023 | C118: Sofa Victoria izquierdo (70cm x 100cm x 75cm) | D118: =IF('FERIAS 3 DIAS'!G$3=TRUE,'FERIAS DE 4 A 6 DIAS'!E118/'FERIAS 3 DIAS'!I$3,'FERIAS DE 4 A 6 DIAS'!E118) -> 182070 | E118: 182070
A119: =CONCATENATE(B119:B603," ",C119:C603) -> 3070505 Tarima 120x120x60, (Previa verificación con área de montaje) | B119: 3070505 | C119: Tarima 120x120x60, (Previa verificación con área de montaje) | D119: =IF('FERIAS 3 DIAS'!G$3=TRUE,'FERIAS DE 4 A 6 DIAS'!E119/'FERIAS 3 DIAS'!I$3,'FERIAS DE 4 A 6 DIAS'!E119) -> 247996 | E119: 247996
A120: =CONCATENATE(B120:B604," ",C120:C604) -> 3070535 Vitrina Isla 2E (200cm x 50cm x 50cm) | B120: 3070535 | C120: Vitrina Isla 2E (200cm x 50cm x 50cm) | D120: =IF('FERIAS 3 DIAS'!G$3=TRUE,'FERIAS DE 4 A 6 DIAS'!E120/'FERIAS 3 DIAS'!I$3,'FERIAS DE 4 A 6 DIAS'!E120) -> 286671 | E120: 286671
A121: =CONCATENATE(B121:B605," ",C121:C605) -> 3070517 Vitrina Mostrador 2E (100cm x 100cm x 40cm) | B121: 3070517 | C121: Vitrina Mostrador 2E (100cm x 100cm x 40cm) | D121: =IF('FERIAS 3 DIAS'!G$3=TRUE,'FERIAS DE 4 A 6 DIAS'!E121/'FERIAS 3 DIAS'!I$3,'FERIAS DE 4 A 6 DIAS'!E121) -> 214081 | E121: 214081
A122: =CONCATENATE(B122:B606," ",C122:C606) -> 3070518 Vitrina Mostrador Tipo 2 1E (92cm x 90 cm x 40cm) | B122: 3070518 | C122: Vitrina Mostrador Tipo 2 1E (92cm x 90 cm x 40cm) | D122: =IF('FERIAS 3 DIAS'!G$3=TRUE,'FERIAS DE 4 A 6 DIAS'!E122/'FERIAS 3 DIAS'!I$3,'FERIAS DE 4 A 6 DIAS'!E122) -> 214081 | E122: 214081
A123: =CONCATENATE(B123:B607," ",C123:C607) -> 3071111 Vitrina Rectangular 2E (200cm x 100cm x 40cm) | B123: 3071111 | C123: Vitrina Rectangular 2E (200cm x 100cm x 40cm) | D123: =IF('FERIAS 3 DIAS'!G$3=TRUE,'FERIAS DE 4 A 6 DIAS'!E123/'FERIAS 3 DIAS'!I$3,'FERIAS DE 4 A 6 DIAS'!E123) -> 286671 | E123: 286671
A124: =CONCATENATE(B124:B616," ",C124:C616) -> 3071375 Planta + matera plástica (Pequeña) | B124: 3071375 | C124: Planta + matera plástica (Pequeña) | D124: =IF('FERIAS 3 DIAS'!G$3=TRUE,'FERIAS DE 4 A 6 DIAS'!E124/'FERIAS 3 DIAS'!I$3,'FERIAS DE 4 A 6 DIAS'!E124) -> 20600 | E124: 20600
A125: =CONCATENATE(B125:B615," ",C125:C615) -> 3071376 Planta + matera plástica (Mediana) | B125: 3071376 | C125: Planta + matera plástica (Mediana) | D125: =IF('FERIAS 3 DIAS'!G$3=TRUE,'FERIAS DE 4 A 6 DIAS'!E125/'FERIAS 3 DIAS'!I$3,'FERIAS DE 4 A 6 DIAS'!E125) -> 46400 | E125: 46400
A126: =CONCATENATE(B126:B616," ",C126:C616) -> 3071377 Planta + matera plástica (Grande) | B126: 3071377 | C126: Planta + matera plástica (Grande) | D126: =IF('FERIAS 3 DIAS'!G$3=TRUE,'FERIAS DE 4 A 6 DIAS'!E126/'FERIAS 3 DIAS'!I$3,'FERIAS DE 4 A 6 DIAS'!E126) -> 59200 | E126: 59200
A127: =CONCATENATE(B127:B617," ",C127:C617) -> 3071378 Jardinera en madera + 3 Plantas grandes | B127: 3071378 | C127: Jardinera en madera + 3 Plantas grandes | D127: =IF('FERIAS 3 DIAS'!G$3=TRUE,'FERIAS DE 4 A 6 DIAS'!E127/'FERIAS 3 DIAS'!I$3,'FERIAS DE 4 A 6 DIAS'!E127) -> 100300 | E127: 100300
A128: =CONCATENATE(B128:B618," ",C128:C618) -> 3071379 Jardinera en madera + 3 Plantas medianas | B128: 3071379 | C128: Jardinera en madera + 3 Plantas medianas | D128: =IF('FERIAS 3 DIAS'!G$3=TRUE,'FERIAS DE 4 A 6 DIAS'!E128/'FERIAS 3 DIAS'!I$3,'FERIAS DE 4 A 6 DIAS'!E128) -> 81100 | E128: 81100
A129: =CONCATENATE(B129:B619," ",C129:C619) -> 3071380 Jardinera en madera + 7 Plantas pequeñas | B129: 3071380 | C129: Jardinera en madera + 7 Plantas pequeñas | D129: =IF('FERIAS 3 DIAS'!G$3=TRUE,'FERIAS DE 4 A 6 DIAS'!E129/'FERIAS 3 DIAS'!I$3,'FERIAS DE 4 A 6 DIAS'!E129) -> 83500 | E129: 83500
A130: =CONCATENATE(B130:B620," ",C130:C620) -> 3071381 Cajoneras con flores | B130: 3071381 | C130: Cajoneras con flores | D130: =IF('FERIAS 3 DIAS'!G$3=TRUE,'FERIAS DE 4 A 6 DIAS'!E130/'FERIAS 3 DIAS'!I$3,'FERIAS DE 4 A 6 DIAS'!E130) -> 155800 | E130: 155800
A131: =CONCATENATE(B131:B621," ",C131:C621) -> 3071314 Grandes (61cm x 120cm) | B131: 3071314 | C131: Grandes (61cm x 120cm) | D131: =IF('FERIAS 3 DIAS'!G$3=TRUE,'FERIAS DE 4 A 6 DIAS'!E131/'FERIAS 3 DIAS'!I$3,'FERIAS DE 4 A 6 DIAS'!E131) -> 31700 | E131: 31700
A132: =CONCATENATE(B132:B622," ",C132:C622) -> 3071301 Medianas (31cm x 120cm) | B132: 3071301 | C132: Medianas (31cm x 120cm) | D132: =IF('FERIAS 3 DIAS'!G$3=TRUE,'FERIAS DE 4 A 6 DIAS'!E132/'FERIAS 3 DIAS'!I$3,'FERIAS DE 4 A 6 DIAS'!E132) -> 25000 | E132: 25000
A133: =CONCATENATE(B133:B623," ",C133:C623) -> 3071317 Pequeñas (10cm x 30cm) | B133: 3071317 | C133: Pequeñas (10cm x 30cm) | D133: =IF('FERIAS 3 DIAS'!G$3=TRUE,'FERIAS DE 4 A 6 DIAS'!E133/'FERIAS 3 DIAS'!I$3,'FERIAS DE 4 A 6 DIAS'!E133) -> 11100 | E133: 11100
A134: =CONCATENATE(B134:B624," ",C134:C624) -> 3071382 Suculentas (10cm x 15cm) | B134: 3071382 | C134: Suculentas (10cm x 15cm) | D134: =IF('FERIAS 3 DIAS'!G$3=TRUE,'FERIAS DE 4 A 6 DIAS'!E134/'FERIAS 3 DIAS'!I$3,'FERIAS DE 4 A 6 DIAS'!E134) -> 11100 | E134: 11100
A135: =CONCATENATE(B135:B625," ",C135:C625) -> 3071383 Chamizos | B135: 3071383 | C135: Chamizos | D135: =IF('FERIAS 3 DIAS'!G$3=TRUE,'FERIAS DE 4 A 6 DIAS'!E135/'FERIAS 3 DIAS'!I$3,'FERIAS DE 4 A 6 DIAS'!E135) -> 11100 | E135: 11100
A136: =CONCATENATE(B136:B626," ",C136:C626) -> 3071355 De barro grande | B136: 3071355 | C136: De barro grande | D136: =IF('FERIAS 3 DIAS'!G$3=TRUE,'FERIAS DE 4 A 6 DIAS'!E136/'FERIAS 3 DIAS'!I$3,'FERIAS DE 4 A 6 DIAS'!E136) -> 30700 | E136: 30700
A137: =CONCATENATE(B137:B627," ",C137:C627) -> 3071356 De barro mediana | B137: 3071356 | C137: De barro mediana | D137: =IF('FERIAS 3 DIAS'!G$3=TRUE,'FERIAS DE 4 A 6 DIAS'!E137/'FERIAS 3 DIAS'!I$3,'FERIAS DE 4 A 6 DIAS'!E137) -> 23900 | E137: 23900
A138: =CONCATENATE(B138:B628," ",C138:C628) -> 3071384 De barro pequeña | B138: 3071384 | C138: De barro pequeña | D138: =IF('FERIAS 3 DIAS'!G$3=TRUE,'FERIAS DE 4 A 6 DIAS'!E138/'FERIAS 3 DIAS'!I$3,'FERIAS DE 4 A 6 DIAS'!E138) -> 10600 | E138: 10600
A139: =CONCATENATE(B139:B629," ",C139:C629) -> 3071357 Plástica grande | B139: 3071357 | C139: Plástica grande | D139: =IF('FERIAS 3 DIAS'!G$3=TRUE,'FERIAS DE 4 A 6 DIAS'!E139/'FERIAS 3 DIAS'!I$3,'FERIAS DE 4 A 6 DIAS'!E139) -> 30700 | E139: 30700
A140: =CONCATENATE(B140:B630," ",C140:C630) -> 3071358 Plástica mediana | B140: 3071358 | C140: Plástica mediana | D140: =IF('FERIAS 3 DIAS'!G$3=TRUE,'FERIAS DE 4 A 6 DIAS'!E140/'FERIAS 3 DIAS'!I$3,'FERIAS DE 4 A 6 DIAS'!E140) -> 23900 | E140: 23900
A141: =CONCATENATE(B141:B631," ",C141:C631) -> 3071359 Plástica pequeña | B141: 3071359 | C141: Plástica pequeña | D141: =IF('FERIAS 3 DIAS'!G$3=TRUE,'FERIAS DE 4 A 6 DIAS'!E141/'FERIAS 3 DIAS'!I$3,'FERIAS DE 4 A 6 DIAS'!E141) -> 10600 | E141: 10600
A142: =CONCATENATE(B142:B632," ",C142:C632) -> 3071360 Jardinera en madera (35cm x 100cm x 35cm) | B142: 3071360 | C142: Jardinera en madera (35cm x 100cm x 35cm) | D142: =IF('FERIAS 3 DIAS'!G$3=TRUE,'FERIAS DE 4 A 6 DIAS'!E142/'FERIAS 3 DIAS'!I$3,'FERIAS DE 4 A 6 DIAS'!E142) -> 10600 | E142: 10600
A143: =CONCATENATE(B143:B633," ",C143:C633) -> 3071352 Grandes | B143: 3071352 | C143: Grandes | D143: =IF('FERIAS 3 DIAS'!G$3=TRUE,'FERIAS DE 4 A 6 DIAS'!E143/'FERIAS 3 DIAS'!I$3,'FERIAS DE 4 A 6 DIAS'!E143) -> 93800 | E143: 93800
A144: =CONCATENATE(B144:B634," ",C144:C634) -> 3071353 Medianos | B144: 3071353 | C144: Medianos | D144: =IF('FERIAS 3 DIAS'!G$3=TRUE,'FERIAS DE 4 A 6 DIAS'!E144/'FERIAS 3 DIAS'!I$3,'FERIAS DE 4 A 6 DIAS'!E144) -> 54600 | E144: 54600
A145: =CONCATENATE(B145:B635," ",C145:C635) -> 3071354 Pequeños | B145: 3071354 | C145: Pequeños | D145: =IF('FERIAS 3 DIAS'!G$3=TRUE,'FERIAS DE 4 A 6 DIAS'!E145/'FERIAS 3 DIAS'!I$3,'FERIAS DE 4 A 6 DIAS'!E145) -> 24000 | E145: 24000
A146: =CONCATENATE(B146:B636," ",C146:C636) -> 3071364 Topiario en forma de animales o frutas | B146: 3071364 | C146: Topiario en forma de animales o frutas | D146: =IF('FERIAS 3 DIAS'!G$3=TRUE,'FERIAS DE 4 A 6 DIAS'!E146/'FERIAS 3 DIAS'!I$3,'FERIAS DE 4 A 6 DIAS'!E146) -> 228500 | E146: 228500
A147: =CONCATENATE(B147:B637," ",C147:C637) -> 3071365 Topiario en bolas grandes | B147: 3071365 | C147: Topiario en bolas grandes | D147: =IF('FERIAS 3 DIAS'!G$3=TRUE,'FERIAS DE 4 A 6 DIAS'!E147/'FERIAS 3 DIAS'!I$3,'FERIAS DE 4 A 6 DIAS'!E147) -> 228500 | E147: 228500
A148: =CONCATENATE(B148:B638," ",C148:C638) -> 3071385 Topiario en bolas pequeñas | B148: 3071385 | C148: Topiario en bolas pequeñas | D148: =IF('FERIAS 3 DIAS'!G$3=TRUE,'FERIAS DE 4 A 6 DIAS'!E148/'FERIAS 3 DIAS'!I$3,'FERIAS DE 4 A 6 DIAS'!E148) -> 207700 | E148: 207700
A149: =CONCATENATE(B149:B639," ",C149:C639) -> 3071363 Piedras (Por m2) | B149: 3071363 | C149: Piedras (Por m2) | D149: =IF('FERIAS 3 DIAS'!G$3=TRUE,'FERIAS DE 4 A 6 DIAS'!E149/'FERIAS 3 DIAS'!I$3,'FERIAS DE 4 A 6 DIAS'!E149) -> 23900 | E149: 23900
A150: =CONCATENATE(B150:B640," ",C150:C640) -> 3071367 Pino patula (Por bulto) | B150: 3071367 | C150: Pino patula (Por bulto) | D150: =IF('FERIAS 3 DIAS'!G$3=TRUE,'FERIAS DE 4 A 6 DIAS'!E150/'FERIAS 3 DIAS'!I$3,'FERIAS DE 4 A 6 DIAS'!E150) -> 10600 | E150: 10600
A151: =CONCATENATE(B151:B641," ",C151:C641) -> 3071361 Gravilla (Por m2) | B151: 3071361 | C151: Gravilla (Por m2) | D151: =IF('FERIAS 3 DIAS'!G$3=TRUE,'FERIAS DE 4 A 6 DIAS'!E151/'FERIAS 3 DIAS'!I$3,'FERIAS DE 4 A 6 DIAS'!E151) -> 10600 | E151: 10600
A152: =CONCATENATE(B152:B642," ",C152:C642) -> 3071386 Muros verticales (Por m2) | B152: 3071386 | C152: Muros verticales (Por m2) | D152: =IF('FERIAS 3 DIAS'!G$3=TRUE,'FERIAS DE 4 A 6 DIAS'!E152/'FERIAS 3 DIAS'!I$3,'FERIAS DE 4 A 6 DIAS'!E152) -> 328500 | E152: 328500
A153: =CONCATENATE(B153:B643," ",C153:C643) -> 3071366 Cascarilla (Por bulto) | B153: 3071366 | C153: Cascarilla (Por bulto) | D153: =IF('FERIAS 3 DIAS'!G$3=TRUE,'FERIAS DE 4 A 6 DIAS'!E153/'FERIAS 3 DIAS'!I$3,'FERIAS DE 4 A 6 DIAS'!E153) -> 10600 | E153: 10600
A154: =CONCATENATE(B154:B644," ",C154:C644) -> 3071362 Rocas (Por unidad) | B154: 3071362 | C154: Rocas (Por unidad) | D154: =IF('FERIAS 3 DIAS'!G$3=TRUE,'FERIAS DE 4 A 6 DIAS'!E154/'FERIAS 3 DIAS'!I$3,'FERIAS DE 4 A 6 DIAS'!E154) -> 63300 | E154: 63300
A155: =CONCATENATE(B155:B645," ",C155:C645) -> 3071346 Base para Tv Led - LCD adaptable (No Incluye Instalacion) Valor evento 1 día | B155: 3071346 | C155: Base para Tv Led - LCD adaptable (No Incluye Instalacion) Valor evento 1 día | D155: =IF('FERIAS 3 DIAS'!G$3=TRUE,'FERIAS DE 4 A 6 DIAS'!E155/'FERIAS 3 DIAS'!I$3,'FERIAS DE 4 A 6 DIAS'!E155) -> 44744 | E155: 44744
A156: =CONCATENATE(B156:B646," ",C156:C646) -> 3071346 Base para Tv Led - LCD adaptable (No Incluye Instalacion) Valor evento 2 dias (Valor dia) | B156: 3071346 | C156: Base para Tv Led - LCD adaptable (No Incluye Instalacion) Valor evento 2 dias (Valor dia) | D156: =IF('FERIAS 3 DIAS'!G$3=TRUE,'FERIAS DE 4 A 6 DIAS'!E156/'FERIAS 3 DIAS'!I$3,'FERIAS DE 4 A 6 DIAS'!E156) -> 44744 | E156: 44744
A157: =CONCATENATE(B157:B647," ",C157:C647) -> 3071346 Base para Tv Led - LCD adaptable (No Incluye Instalacion) Valor de 3 a 6 dias (Valor dia) | B157: 3071346 | C157: Base para Tv Led - LCD adaptable (No Incluye Instalacion) Valor de 3 a 6 dias (Valor dia) | D157: =IF('FERIAS 3 DIAS'!G$3=TRUE,'FERIAS DE 4 A 6 DIAS'!E157/'FERIAS 3 DIAS'!I$3,'FERIAS DE 4 A 6 DIAS'!E157) -> 40698 | E157: 40698
A158: =CONCATENATE(B158:B648," ",C158:C648) -> 3071346 Base para Tv Led - LCD adaptable (No Incluye Instalacion) Valor de 7 a 18 días (Valor feria) | B158: 3071346 | C158: Base para Tv Led - LCD adaptable (No Incluye Instalacion) Valor de 7 a 18 días (Valor feria) | D158: =IF('FERIAS 3 DIAS'!G$3=TRUE,'FERIAS DE 4 A 6 DIAS'!E158/'FERIAS 3 DIAS'!I$3,'FERIAS DE 4 A 6 DIAS'!E158) -> 289765 | E158: 289765
A159: =CONCATENATE(B159:B649," ",C159:C649) -> 3071204 Tv Smart 42" 106cms ( Incluye base para tv / cable de corriente / 1 cable HDMI) IN: HDMI, USB Valor evento 1 día | B159: 3071204 | C159: Tv Smart 42" 106cms ( Incluye base para tv / cable de corriente / 1 cable HDMI) IN: HDMI, USB Valor evento 1 día | D159: =IF('FERIAS 3 DIAS'!G$3=TRUE,'FERIAS DE 4 A 6 DIAS'!E159/'FERIAS 3 DIAS'!I$3,'FERIAS DE 4 A 6 DIAS'!E159) -> 149226 | E159: 149226
A160: =CONCATENATE(B160:B650," ",C160:C650) -> 3071204 Tv Smart 42" 106cms ( Incluye base para tv / cable de corriente / 1 cable HDMI) IN: HDMI, USB Valor evento 2 dias (Valor dia) | B160: 3071204 | C160: Tv Smart 42" 106cms ( Incluye base para tv / cable de corriente / 1 cable HDMI) IN: HDMI, USB Valor evento 2 dias (Valor dia) | D160: =IF('FERIAS 3 DIAS'!G$3=TRUE,'FERIAS DE 4 A 6 DIAS'!E160/'FERIAS 3 DIAS'!I$3,'FERIAS DE 4 A 6 DIAS'!E160) -> 149226 | E160: 149226
A161: =CONCATENATE(B161:B651," ",C161:C651) -> 3071204 Tv Smart 42" 106cms ( Incluye base para tv / cable de corriente / 1 cable HDMI) IN: HDMI, USB Valor de 3 a 6 dias (Valor dia) | B161: 3071204 | C161: Tv Smart 42" 106cms ( Incluye base para tv / cable de corriente / 1 cable HDMI) IN: HDMI, USB Valor de 3 a 6 dias (Valor dia) | D161: =IF('FERIAS 3 DIAS'!G$3=TRUE,'FERIAS DE 4 A 6 DIAS'!E161/'FERIAS 3 DIAS'!I$3,'FERIAS DE 4 A 6 DIAS'!E161) -> 136136 | E161: 136136
A162: =CONCATENATE(B162:B652," ",C162:C652) -> 3071204 Tv Smart 42" 106cms ( Incluye base para tv / cable de corriente / 1 cable HDMI) IN: HDMI, USB Valor de 7 a 18 días (Valor feria) | B162: 3071204 | C162: Tv Smart 42" 106cms ( Incluye base para tv / cable de corriente / 1 cable HDMI) IN: HDMI, USB Valor de 7 a 18 días (Valor feria) | D162: =IF('FERIAS 3 DIAS'!G$3=TRUE,'FERIAS DE 4 A 6 DIAS'!E162/'FERIAS 3 DIAS'!I$3,'FERIAS DE 4 A 6 DIAS'!E162) -> 971635 | E162: 971635
A163: =CONCATENATE(B163:B653," ",C163:C653) -> 3071206 Tv Smart 55" 140cms ( Incluye base para tv / cable de corriente / 1 cable HDMI) IN: HDMI, USB Valor evento 1 día | B163: 3071206 | C163: Tv Smart 55" 140cms ( Incluye base para tv / cable de corriente / 1 cable HDMI) IN: HDMI, USB Valor evento 1 día | D163: =IF('FERIAS 3 DIAS'!G$3=TRUE,'FERIAS DE 4 A 6 DIAS'!E163/'FERIAS 3 DIAS'!I$3,'FERIAS DE 4 A 6 DIAS'!E163) -> 223839 | E163: 223839
A164: =CONCATENATE(B164:B654," ",C164:C654) -> 3071206 Tv Smart 55" 140cms ( Incluye base para tv / cable de corriente / 1 cable HDMI) IN: HDMI, USB Valor evento 2 dias (Valor dia) | B164: 3071206 | C164: Tv Smart 55" 140cms ( Incluye base para tv / cable de corriente / 1 cable HDMI) IN: HDMI, USB Valor evento 2 dias (Valor dia) | D164: =IF('FERIAS 3 DIAS'!G$3=TRUE,'FERIAS DE 4 A 6 DIAS'!E164/'FERIAS 3 DIAS'!I$3,'FERIAS DE 4 A 6 DIAS'!E164) -> 223839 | E164: 223839
A165: =CONCATENATE(B165:B655," ",C165:C655) -> 3071206 Tv Smart 55" 140cms ( Incluye base para tv / cable de corriente / 1 cable HDMI) IN: HDMI, USB Valor de 3 a 6 dias (Valor dia) | B165: 3071206 | C165: Tv Smart 55" 140cms ( Incluye base para tv / cable de corriente / 1 cable HDMI) IN: HDMI, USB Valor de 3 a 6 dias (Valor dia) | D165: =IF('FERIAS 3 DIAS'!G$3=TRUE,'FERIAS DE 4 A 6 DIAS'!E165/'FERIAS 3 DIAS'!I$3,'FERIAS DE 4 A 6 DIAS'!E165) -> 203966 | E165: 203966
A166: =CONCATENATE(B166:B656," ",C166:C656) -> 3071206 Tv Smart 55" 140cms ( Incluye base para tv / cable de corriente / 1 cable HDMI) IN: HDMI, USB Valor de 7 a 18 días (Valor feria) | B166: 3071206 | C166: Tv Smart 55" 140cms ( Incluye base para tv / cable de corriente / 1 cable HDMI) IN: HDMI, USB Valor de 7 a 18 días (Valor feria) | D166: =IF('FERIAS 3 DIAS'!G$3=TRUE,'FERIAS DE 4 A 6 DIAS'!E166/'FERIAS 3 DIAS'!I$3,'FERIAS DE 4 A 6 DIAS'!E166) -> 1455251 | E166: 1455251
A167: =CONCATENATE(B167:B657," ",C167:C657) -> 30713202 Tv Smart 65" 165cms ( Incluye base para tv / cable de corriente /1 cable HDMI) IN: HDMI, USB Valor evento 1 día | B167: 30713202 | C167: Tv Smart 65" 165cms ( Incluye base para tv / cable de corriente /1 cable HDMI) IN: HDMI, USB Valor evento 1 día | D167: =IF('FERIAS 3 DIAS'!G$3=TRUE,'FERIAS DE 4 A 6 DIAS'!E167/'FERIAS 3 DIAS'!I$3,'FERIAS DE 4 A 6 DIAS'!E167) -> 348194 | E167: 348194
A168: =CONCATENATE(B168:B658," ",C168:C658) -> 30713202 Tv Smart 65" 165cms ( Incluye base para tv / cable de corriente /1 cable HDMI) IN: HDMI, USB Valor evento 2 dias (Valor dia) | B168: 30713202 | C168: Tv Smart 65" 165cms ( Incluye base para tv / cable de corriente /1 cable HDMI) IN: HDMI, USB Valor evento 2 dias (Valor dia) | D168: =IF('FERIAS 3 DIAS'!G$3=TRUE,'FERIAS DE 4 A 6 DIAS'!E168/'FERIAS 3 DIAS'!I$3,'FERIAS DE 4 A 6 DIAS'!E168) -> 348194 | E168: 348194
A169: =CONCATENATE(B169:B659," ",C169:C659) -> 30713202 Tv Smart 65" 165cms ( Incluye base para tv / cable de corriente /1 cable HDMI) IN: HDMI, USB Valor de 3 a 6 dias (Valor dia) | B169: 30713202 | C169: Tv Smart 65" 165cms ( Incluye base para tv / cable de corriente /1 cable HDMI) IN: HDMI, USB Valor de 3 a 6 dias (Valor dia) | D169: =IF('FERIAS 3 DIAS'!G$3=TRUE,'FERIAS DE 4 A 6 DIAS'!E169/'FERIAS 3 DIAS'!I$3,'FERIAS DE 4 A 6 DIAS'!E169) -> 329035 | E169: 329035
A170: =CONCATENATE(B170:B660," ",C170:C660) -> 30713202 Tv Smart 65" 165cms ( Incluye base para tv / cable de corriente /1 cable HDMI) IN: HDMI, USB Valor de 7 a 18 días (Valor feria) | B170: 30713202 | C170: Tv Smart 65" 165cms ( Incluye base para tv / cable de corriente /1 cable HDMI) IN: HDMI, USB Valor de 7 a 18 días (Valor feria) | D170: =IF('FERIAS 3 DIAS'!G$3=TRUE,'FERIAS DE 4 A 6 DIAS'!E170/'FERIAS 3 DIAS'!I$3,'FERIAS DE 4 A 6 DIAS'!E170) -> 1666595 | E170: 1666595
A171: =CONCATENATE(B171:B661," ",C171:C661) -> 3071279 Tv Smart 70" 177,8cms ( Incluye base para tv / cable de corriente /1 cable HDMI) IN: HDMI, USB Valor evento 1 día | B171: 3071279 | C171: Tv Smart 70" 177,8cms ( Incluye base para tv / cable de corriente /1 cable HDMI) IN: HDMI, USB Valor evento 1 día | D171: =IF('FERIAS 3 DIAS'!G$3=TRUE,'FERIAS DE 4 A 6 DIAS'!E171/'FERIAS 3 DIAS'!I$3,'FERIAS DE 4 A 6 DIAS'!E171) -> 559657 | E171: 559657
A172: =CONCATENATE(B172:B662," ",C172:C662) -> 3071279 Tv Smart 70" 177,8cms ( Incluye base para tv / cable de corriente /1 cable HDMI) IN: HDMI, USB Valor evento 2 dias (Valor dia) | B172: 3071279 | C172: Tv Smart 70" 177,8cms ( Incluye base para tv / cable de corriente /1 cable HDMI) IN: HDMI, USB Valor evento 2 dias (Valor dia) | D172: =IF('FERIAS 3 DIAS'!G$3=TRUE,'FERIAS DE 4 A 6 DIAS'!E172/'FERIAS 3 DIAS'!I$3,'FERIAS DE 4 A 6 DIAS'!E172) -> 559657 | E172: 559657
A173: =CONCATENATE(B173:B663," ",C173:C663) -> 3071279 Tv Smart 70" 177,8cms ( Incluye base para tv / cable de corriente /1 cable HDMI) IN: HDMI, USB Valor de 3 a 6 dias (Valor dia) | B173: 3071279 | C173: Tv Smart 70" 177,8cms ( Incluye base para tv / cable de corriente /1 cable HDMI) IN: HDMI, USB Valor de 3 a 6 dias (Valor dia) | D173: =IF('FERIAS 3 DIAS'!G$3=TRUE,'FERIAS DE 4 A 6 DIAS'!E173/'FERIAS 3 DIAS'!I$3,'FERIAS DE 4 A 6 DIAS'!E173) -> 509320 | E173: 509320
A174: =CONCATENATE(B174:B664," ",C174:C664) -> 3071279 Tv Smart 70" 177,8cms ( Incluye base para tv / cable de corriente /1 cable HDMI) IN: HDMI, USB Valor de 7 a 18 días (Valor feria) | B174: 3071279 | C174: Tv Smart 70" 177,8cms ( Incluye base para tv / cable de corriente /1 cable HDMI) IN: HDMI, USB Valor de 7 a 18 días (Valor feria) | D174: =IF('FERIAS 3 DIAS'!G$3=TRUE,'FERIAS DE 4 A 6 DIAS'!E174/'FERIAS 3 DIAS'!I$3,'FERIAS DE 4 A 6 DIAS'!E174) -> 3637711 | E174: 3637711
A175: =CONCATENATE(B175:B665," ",C175:C665) -> 3071222 Tv Smart 82" 204cms ( Incluye base para tv / cable de corriente /1 cable HDMI) IN: HDMI, USB Valor evento 1 día | B175: 3071222 | C175: Tv Smart 82" 204cms ( Incluye base para tv / cable de corriente /1 cable HDMI) IN: HDMI, USB Valor evento 1 día | D175: =IF('FERIAS 3 DIAS'!G$3=TRUE,'FERIAS DE 4 A 6 DIAS'!E175/'FERIAS 3 DIAS'!I$3,'FERIAS DE 4 A 6 DIAS'!E175) -> 1039584 | E175: 1039584
A176: =CONCATENATE(B176:B666," ",C176:C666) -> 3071222 Tv Smart 82" 204cms ( Incluye base para tv / cable de corriente /1 cable HDMI) IN: HDMI, USB Valor evento 2 dias (Valor dia) | B176: 3071222 | C176: Tv Smart 82" 204cms ( Incluye base para tv / cable de corriente /1 cable HDMI) IN: HDMI, USB Valor evento 2 dias (Valor dia) | D176: =IF('FERIAS 3 DIAS'!G$3=TRUE,'FERIAS DE 4 A 6 DIAS'!E176/'FERIAS 3 DIAS'!I$3,'FERIAS DE 4 A 6 DIAS'!E176) -> 1039584 | E176: 1039584
A177: =CONCATENATE(B177:B667," ",C177:C667) -> 3071222 Tv Smart 82" 204cms ( Incluye base para tv / cable de corriente /1 cable HDMI) IN: HDMI, USB Valor de 3 a 6 dias (Valor dia) | B177: 3071222 | C177: Tv Smart 82" 204cms ( Incluye base para tv / cable de corriente /1 cable HDMI) IN: HDMI, USB Valor de 3 a 6 dias (Valor dia) | D177: =IF('FERIAS 3 DIAS'!G$3=TRUE,'FERIAS DE 4 A 6 DIAS'!E177/'FERIAS 3 DIAS'!I$3,'FERIAS DE 4 A 6 DIAS'!E177) -> 945931 | E177: 945931
A178: =CONCATENATE(B178:B668," ",C178:C668) -> 3071222 Tv Smart 82" 204cms ( Incluye base para tv / cable de corriente /1 cable HDMI) IN: HDMI, USB Valor de 7 a 18 días (Valor feria) | B178: 3071222 | C178: Tv Smart 82" 204cms ( Incluye base para tv / cable de corriente /1 cable HDMI) IN: HDMI, USB Valor de 7 a 18 días (Valor feria) | D178: =IF('FERIAS 3 DIAS'!G$3=TRUE,'FERIAS DE 4 A 6 DIAS'!E178/'FERIAS 3 DIAS'!I$3,'FERIAS DE 4 A 6 DIAS'!E178) -> 6755273 | E178: 6755273
A179: =CONCATENATE(B179:B669," ",C179:C669) -> 3071261 Monitor tactil 65" 165cms ( Incluye base para monitor / cableado) IN: HDMI Valor evento 1 día | B179: 3071261 | C179: Monitor tactil 65" 165cms ( Incluye base para monitor / cableado) IN: HDMI Valor evento 1 día | D179: =IF('FERIAS 3 DIAS'!G$3=TRUE,'FERIAS DE 4 A 6 DIAS'!E179/'FERIAS 3 DIAS'!I$3,'FERIAS DE 4 A 6 DIAS'!E179) -> 702100 | E179: 702100
A180: =CONCATENATE(B180:B670," ",C180:C670) -> 3071261 Monitor tactil 65" 165cms ( Incluye base para monitor / cableado) IN: HDMI Valor evento 2 dias (Valor dia) | B180: 3071261 | C180: Monitor tactil 65" 165cms ( Incluye base para monitor / cableado) IN: HDMI Valor evento 2 dias (Valor dia) | D180: =IF('FERIAS 3 DIAS'!G$3=TRUE,'FERIAS DE 4 A 6 DIAS'!E180/'FERIAS 3 DIAS'!I$3,'FERIAS DE 4 A 6 DIAS'!E180) -> 702100 | E180: 702100
A181: =CONCATENATE(B181:B671," ",C181:C671) -> 3071261 Monitor tactil 65" 165cms ( Incluye base para monitor / cableado) IN: HDMI Valor de 3 a 6 dias (Valor dia) | B181: 3071261 | C181: Monitor tactil 65" 165cms ( Incluye base para monitor / cableado) IN: HDMI Valor de 3 a 6 dias (Valor dia) | D181: =IF('FERIAS 3 DIAS'!G$3=TRUE,'FERIAS DE 4 A 6 DIAS'!E181/'FERIAS 3 DIAS'!I$3,'FERIAS DE 4 A 6 DIAS'!E181) -> 511462 | E181: 511462
A182: =CONCATENATE(B182:B672," ",C182:C672) -> 3071261 Monitor tactil 65" 165cms ( Incluye base para monitor / cableado) IN: HDMI Valor de 7 a 18 días (Valor feria) | B182: 3071261 | C182: Monitor tactil 65" 165cms ( Incluye base para monitor / cableado) IN: HDMI Valor de 7 a 18 días (Valor feria) | D182: =IF('FERIAS 3 DIAS'!G$3=TRUE,'FERIAS DE 4 A 6 DIAS'!E182/'FERIAS 3 DIAS'!I$3,'FERIAS DE 4 A 6 DIAS'!E182) -> 5105100 | E182: 5105100
A183: =CONCATENATE(B183:B673," ",C183:C673) -> 3071284 Tablet tactil 7" RAM:1GB / Conectividad: 3G / Sistema Operativo Android 9.0 Valor evento 1 día | B183: 3071284 | C183: Tablet tactil 7" RAM:1GB / Conectividad: 3G / Sistema Operativo Android 9.0 Valor evento 1 día | D183: =IF('FERIAS 3 DIAS'!G$3=TRUE,'FERIAS DE 4 A 6 DIAS'!E183/'FERIAS 3 DIAS'!I$3,'FERIAS DE 4 A 6 DIAS'!E183) -> 87108 | E183: 87108
A184: =CONCATENATE(B184:B674," ",C184:C674) -> 3071284 Tablet tactil 7" RAM:1GB / Conectividad: 3G / Sistema Operativo Android 9.0 Valor evento 2 dias (Valor dia) | B184: 3071284 | C184: Tablet tactil 7" RAM:1GB / Conectividad: 3G / Sistema Operativo Android 9.0 Valor evento 2 dias (Valor dia) | D184: =IF('FERIAS 3 DIAS'!G$3=TRUE,'FERIAS DE 4 A 6 DIAS'!E184/'FERIAS 3 DIAS'!I$3,'FERIAS DE 4 A 6 DIAS'!E184) -> 87108 | E184: 87108
A185: =CONCATENATE(B185:B675," ",C185:C675) -> 3071284 Tablet tactil 7" RAM:1GB / Conectividad: 3G / Sistema Operativo Android 9.0 Valor de 3 a 6 dias (Valor dia) | B185: 3071284 | C185: Tablet tactil 7" RAM:1GB / Conectividad: 3G / Sistema Operativo Android 9.0 Valor de 3 a 6 dias (Valor dia) | D185: =IF('FERIAS 3 DIAS'!G$3=TRUE,'FERIAS DE 4 A 6 DIAS'!E185/'FERIAS 3 DIAS'!I$3,'FERIAS DE 4 A 6 DIAS'!E185) -> 79373 | E185: 79373
A186: =CONCATENATE(B186:B676," ",C186:C676) -> 3071284 Tablet tactil 7" RAM:1GB / Conectividad: 3G / Sistema Operativo Android 9.0 Valor de 7 a 18 días (Valor feria) | B186: 3071284 | C186: Tablet tactil 7" RAM:1GB / Conectividad: 3G / Sistema Operativo Android 9.0 Valor de 7 a 18 días (Valor feria) | D186: =IF('FERIAS 3 DIAS'!G$3=TRUE,'FERIAS DE 4 A 6 DIAS'!E186/'FERIAS 3 DIAS'!I$3,'FERIAS DE 4 A 6 DIAS'!E186) -> 565845 | E186: 565845
A187: =CONCATENATE(B187:B677," ",C187:C677) -> 3071260 Pantalla Led Full Hd Indoor / Medida 3,20mts x 2,96mts / Pitch 3,9 / No incluye estructura para montaje Valor evento 1 día | B187: 3071260 | C187: Pantalla Led Full Hd Indoor / Medida 3,20mts x 2,96mts / Pitch 3,9 / No incluye estructura para montaje Valor evento 1 día | D187: =IF('FERIAS 3 DIAS'!G$3=TRUE,'FERIAS DE 4 A 6 DIAS'!E187/'FERIAS 3 DIAS'!I$3,'FERIAS DE 4 A 6 DIAS'!E187) -> 1545453 | E187: 1545453
A188: =CONCATENATE(B188:B678," ",C188:C678) -> 3071260 Pantalla Led Full Hd Indoor / Medida 3,20mts x 2,96mts / Pitch 3,9 / No incluye estructura para montaje Valor evento 2 dias (Valor dia) | B188: 3071260 | C188: Pantalla Led Full Hd Indoor / Medida 3,20mts x 2,96mts / Pitch 3,9 / No incluye estructura para montaje Valor evento 2 dias (Valor dia) | D188: =IF('FERIAS 3 DIAS'!G$3=TRUE,'FERIAS DE 4 A 6 DIAS'!E188/'FERIAS 3 DIAS'!I$3,'FERIAS DE 4 A 6 DIAS'!E188) -> 1545453 | E188: 1545453
A189: =CONCATENATE(B189:B679," ",C189:C679) -> 3071260 Pantalla Led Full Hd Indoor / Medida 3,20mts x 2,96mts / Pitch 3,9 / No incluye estructura para montaje Valor de 3 a 6 dias (Valor dia) | B189: 3071260 | C189: Pantalla Led Full Hd Indoor / Medida 3,20mts x 2,96mts / Pitch 3,9 / No incluye estructura para montaje Valor de 3 a 6 dias (Valor dia) | D189: =IF('FERIAS 3 DIAS'!G$3=TRUE,'FERIAS DE 4 A 6 DIAS'!E189/'FERIAS 3 DIAS'!I$3,'FERIAS DE 4 A 6 DIAS'!E189) -> 1390872 | E189: 1390872
A190: =CONCATENATE(B190:B680," ",C190:C680) -> 3071260 Pantalla Led Full Hd Indoor / Medida 3,20mts x 2,96mts / Pitch 3,9 / No incluye estructura para montaje Valor de 7 a 18 días (Valor feria) | B190: 3071260 | C190: Pantalla Led Full Hd Indoor / Medida 3,20mts x 2,96mts / Pitch 3,9 / No incluye estructura para montaje Valor de 7 a 18 días (Valor feria) | D190: =IF('FERIAS 3 DIAS'!G$3=TRUE,'FERIAS DE 4 A 6 DIAS'!E190/'FERIAS 3 DIAS'!I$3,'FERIAS DE 4 A 6 DIAS'!E190) -> 13078100 | E190: 13078100
A191: =CONCATENATE(B191:B681," ",C191:C681) -> 3071260 Pantalla Led Full Hd Indoor / Medida 4,48mts x 3,20mts / Pitch 3,9 / No incluye estructura para montaje Valor evento 1 día | B191: 3071260 | C191: Pantalla Led Full Hd Indoor / Medida 4,48mts x 3,20mts / Pitch 3,9 / No incluye estructura para montaje Valor evento 1 día | D191: =IF('FERIAS 3 DIAS'!G$3=TRUE,'FERIAS DE 4 A 6 DIAS'!E191/'FERIAS 3 DIAS'!I$3,'FERIAS DE 4 A 6 DIAS'!E191) -> 1790831 | E191: 1790831
A192: =CONCATENATE(B192:B682," ",C192:C682) -> 3071260 Pantalla Led Full Hd Indoor / Medida 4,48mts x 3,20mts / Pitch 3,9 / No incluye estructura para montaje Valor evento 2 dias (Valor dia) | B192: 3071260 | C192: Pantalla Led Full Hd Indoor / Medida 4,48mts x 3,20mts / Pitch 3,9 / No incluye estructura para montaje Valor evento 2 dias (Valor dia) | D192: =IF('FERIAS 3 DIAS'!G$3=TRUE,'FERIAS DE 4 A 6 DIAS'!E192/'FERIAS 3 DIAS'!I$3,'FERIAS DE 4 A 6 DIAS'!E192) -> 1790831 | E192: 1790831
A193: =CONCATENATE(B193:B683," ",C193:C683) -> 3071260 Pantalla Led Full Hd Indoor / Medida 4,48mts x 3,20mts / Pitch 3,9 / No incluye estructura para montaje Valor de 3 a 6 dias (Valor dia) | B193: 3071260 | C193: Pantalla Led Full Hd Indoor / Medida 4,48mts x 3,20mts / Pitch 3,9 / No incluye estructura para montaje Valor de 3 a 6 dias (Valor dia) | D193: =IF('FERIAS 3 DIAS'!G$3=TRUE,'FERIAS DE 4 A 6 DIAS'!E193/'FERIAS 3 DIAS'!I$3,'FERIAS DE 4 A 6 DIAS'!E193) -> 1611736 | E193: 1611736
A194: =CONCATENATE(B194:B684," ",C194:C684) -> 3071260 Pantalla Led Full Hd Indoor / Medida 4,48mts x 3,20mts / Pitch 3,9 / No incluye estructura para montaje Valor de 7 a 18 días (Valor feria) | B194: 3071260 | C194: Pantalla Led Full Hd Indoor / Medida 4,48mts x 3,20mts / Pitch 3,9 / No incluye estructura para montaje Valor de 7 a 18 días (Valor feria) | D194: =IF('FERIAS 3 DIAS'!G$3=TRUE,'FERIAS DE 4 A 6 DIAS'!E194/'FERIAS 3 DIAS'!I$3,'FERIAS DE 4 A 6 DIAS'!E194) -> 18857811 | E194: 18857811
A195: =CONCATENATE(B195:B685," ",C195:C685) -> 3071260 Pantalla Led Full Hd Indoor / Medida 6,4mts x 3,20mts /mts2: 20,48 / Pitch 3,9 / No incluye estructura para montaje Valor evento 1 día | B195: 3071260 | C195: Pantalla Led Full Hd Indoor / Medida 6,4mts x 3,20mts /mts2: 20,48 / Pitch 3,9 / No incluye estructura para montaje Valor evento 1 día | D195: =IF('FERIAS 3 DIAS'!G$3=TRUE,'FERIAS DE 4 A 6 DIAS'!E195/'FERIAS 3 DIAS'!I$3,'FERIAS DE 4 A 6 DIAS'!E195) -> 2126530 | E195: 2126530
A196: =CONCATENATE(B196:B678," ",C196:C678) -> 3071260 Pantalla Led Full Hd Indoor / Medida 6,4mts x 3,20mts /mts2: 20,48 / Pitch 3,9 / No incluye estructura para montaje Valor evento 2 dias (Valor dia) | B196: 3071260 | C196: Pantalla Led Full Hd Indoor / Medida 6,4mts x 3,20mts /mts2: 20,48 / Pitch 3,9 / No incluye estructura para montaje Valor evento 2 dias (Valor dia) | D196: =IF('FERIAS 3 DIAS'!G$3=TRUE,'FERIAS DE 4 A 6 DIAS'!E196/'FERIAS 3 DIAS'!I$3,'FERIAS DE 4 A 6 DIAS'!E196) -> 2126530 | E196: 2126530
A197: =CONCATENATE(B197:B679," ",C197:C679) -> 3071260 Pantalla Led Full Hd Indoor / Medida 6,4mts x 3,20mts /mts2: 20,48 / Pitch 3,9 / No incluye estructura para montaje Valor de 3 a 6 dias (Valor dia) | B197: 3071260 | C197: Pantalla Led Full Hd Indoor / Medida 6,4mts x 3,20mts /mts2: 20,48 / Pitch 3,9 / No incluye estructura para montaje Valor de 3 a 6 dias (Valor dia) | D197: =IF('FERIAS 3 DIAS'!G$3=TRUE,'FERIAS DE 4 A 6 DIAS'!E197/'FERIAS 3 DIAS'!I$3,'FERIAS DE 4 A 6 DIAS'!E197) -> 1926015 | E197: 1926015
A198: =CONCATENATE(B198:B680," ",C198:C680) -> 3071260 Pantalla Led Full Hd Indoor / Medida 6,4mts x 3,20mts /mts2: 20,48 / Pitch 3,9 / No incluye estructura para montaje Valor de 7 a 18 días (Valor feria) | B198: 3071260 | C198: Pantalla Led Full Hd Indoor / Medida 6,4mts x 3,20mts /mts2: 20,48 / Pitch 3,9 / No incluye estructura para montaje Valor de 7 a 18 días (Valor feria) | D198: =IF('FERIAS 3 DIAS'!G$3=TRUE,'FERIAS DE 4 A 6 DIAS'!E198/'FERIAS 3 DIAS'!I$3,'FERIAS DE 4 A 6 DIAS'!E198) -> 13756043 | E198: 13756043
A199: =CONCATENATE(B199:B681," ",C199:C681) -> 3071264 Pantalla Led Full Hd Indoor / Medida 6,4mts x 4,48mts /mts2: 28,67 / Pitch 3,9 / No incluye estructura para montaje Valor evento 1 día | B199: 3071264 | C199: Pantalla Led Full Hd Indoor / Medida 6,4mts x 4,48mts /mts2: 28,67 / Pitch 3,9 / No incluye estructura para montaje Valor evento 1 día | D199: =IF('FERIAS 3 DIAS'!G$3=TRUE,'FERIAS DE 4 A 6 DIAS'!E199/'FERIAS 3 DIAS'!I$3,'FERIAS DE 4 A 6 DIAS'!E199) -> 2835294 | E199: 2835294
A200: =CONCATENATE(B200:B682," ",C200:C682) -> 3071264 Pantalla Led Full Hd Indoor / Medida 6,4mts x 4,48mts /mts2: 28,67 / Pitch 3,9 / No incluye estructura para montaje Valor evento 2 dias (Valor dia) | B200: 3071264 | C200: Pantalla Led Full Hd Indoor / Medida 6,4mts x 4,48mts /mts2: 28,67 / Pitch 3,9 / No incluye estructura para montaje Valor evento 2 dias (Valor dia) | D200: =IF('FERIAS 3 DIAS'!G$3=TRUE,'FERIAS DE 4 A 6 DIAS'!E200/'FERIAS 3 DIAS'!I$3,'FERIAS DE 4 A 6 DIAS'!E200) -> 2835294 | E200: 2835294
... 248 more rows

Sheet FERIAS DE 7 DIAS EN ADELANTE (hidden)
A1: CLAVE | B1: CODIGO | C1: DESCRIPCIÓN | D1: FORMULA | E1: VALOR
A2: =CONCATENATE(B2:B492," ",C2:C492) -> 3070101 Instalación Monofásica (Toma corriente doble, consumo hasta 2KW/110V) valor de 7 dias en adelante | B2: 3070101 | C2: Instalación Monofásica (Toma corriente doble, consumo hasta 2KW/110V) valor de 7 dias en adelante | D2: =IF('FERIAS 3 DIAS'!G$3=TRUE,'FERIAS DE 7 DIAS EN ADELANTE'!E2/'FERIAS 3 DIAS'!I$3,E2) -> 397460 | E2: 397460
A3: =CONCATENATE(B3:B493," ",C3:C493) -> 3070103 Instalación kilovatio adicional monofásico (Debe contar con punto principal, MAX 2KW por punto) | B3: 3070103 | C3: Instalación kilovatio adicional monofásico (Debe contar con punto principal, MAX 2KW por punto) | D3: =IF('FERIAS 3 DIAS'!G$3=TRUE,'FERIAS DE 7 DIAS EN ADELANTE'!E3/'FERIAS 3 DIAS'!I$3,E3) -> 127092 | E3: 127092
A4: =CONCATENATE(B4:B494," ",C4:C494) -> 3070102 Instalación trifásica (Regleta plastica, consumo hasta 4KW/208V) | B4: 3070102 | C4: Instalación trifásica (Regleta plastica, consumo hasta 4KW/208V) | D4: =IF('FERIAS 3 DIAS'!G$3=TRUE,'FERIAS DE 7 DIAS EN ADELANTE'!E4/'FERIAS 3 DIAS'!I$3,E4) -> 678062 | E4: 678062
A5: =CONCATENATE(B5:B495," ",C5:C495) -> 3070104 Instalación kilovatio adicional trifásico (Debe contar con punto principal) | B5: 3070104 | C5: Instalación kilovatio adicional trifásico (Debe contar con punto principal) | D5: =IF('FERIAS 3 DIAS'!G$3=TRUE,'FERIAS DE 7 DIAS EN ADELANTE'!E5/'FERIAS 3 DIAS'!I$3,E5) -> 165886 | E5: 165886
A6: =CONCATENATE(B6:B496," ",C6:C496) -> 3071372 De 21 a 50 kilovatios adicionales trifásicos (Valor por KW) (Debe contar con punto principal) | B6: 3071372 | C6: De 21 a 50 kilovatios adicionales trifásicos (Valor por KW) (Debe contar con punto principal) | D6: =IF('FERIAS 3 DIAS'!G$3=TRUE,'FERIAS DE 7 DIAS EN ADELANTE'!E6/'FERIAS 3 DIAS'!I$3,E6) -> 150892 | E6: 150892
A7: =CONCATENATE(B7:B497," ",C7:C497) -> 3071373 De 51 a 100 kilovatios adicionales trifásicos (Valor por KW) (Debe contar con punto principal) | B7: 3071373 | C7: De 51 a 100 kilovatios adicionales trifásicos (Valor por KW) (Debe contar con punto principal) | D7: =IF('FERIAS 3 DIAS'!G$3=TRUE,'FERIAS DE 7 DIAS EN ADELANTE'!E7/'FERIAS 3 DIAS'!I$3,E7) -> 144228 | E7: 144228
A8: =CONCATENATE(B8:B498," ",C8:C498) -> 3071374 Mas de100 kilovatios adicionales trifásicos (Valor por KW) (Debe contar con punto principal) | B8: 3071374 | C8: Mas de100 kilovatios adicionales trifásicos (Valor por KW) (Debe contar con punto principal) | D8: =IF('FERIAS 3 DIAS'!G$3=TRUE,'FERIAS DE 7 DIAS EN ADELANTE'!E8/'FERIAS 3 DIAS'!I$3,E8) -> 138278 | E8: 138278
A9: =CONCATENATE(B9:B499," ",C9:C499) -> 3070402 Lampara de pared ajustable (150W/110V) | B9: 3070402 | C9: Lampara de pared ajustable (150W/110V) | D9: =IF('FERIAS 3 DIAS'!G$3=TRUE,'FERIAS DE 7 DIAS EN ADELANTE'!E9/'FERIAS 3 DIAS'!I$3,E9) -> 73542 | E9: 73542
A10: =CONCATENATE(B10:B500," ",C10:C500) -> 3070405 Reflector Led (50W- mltV) | B10: 3070405 | C10: Reflector Led (50W- mltV) | D10: =IF('FERIAS 3 DIAS'!G$3=TRUE,'FERIAS DE 7 DIAS EN ADELANTE'!E10/'FERIAS 3 DIAS'!I$3,E10) -> 77350 | E10: 77350
A11: =CONCATENATE(B11:B501," ",C11:C501) -> 3070403 Extensión – tomacorriente doble con polo a tierra (1500W/110V) MAX 6mts | B11: 3070403 | C11: Extensión – tomacorriente doble con polo a tierra (1500W/110V) MAX 6mts | D11: =IF('FERIAS 3 DIAS'!G$3=TRUE,'FERIAS DE 7 DIAS EN ADELANTE'!E11/'FERIAS 3 DIAS'!I$3,E11) -> 38080 | E11: 38080
A12: =CONCATENATE(B12:B502," ",C12:C502) -> 3071345 Lavaplatos 90XL* 60XH* 90 (No incluye agua y desague) valor de 7 dias en adelante | B12: 3071345 | C12: Lavaplatos 90XL* 60XH* 90 (No incluye agua y desague) valor de 7 dias en adelante | D12: =IF('FERIAS 3 DIAS'!G$3=TRUE,'FERIAS DE 7 DIAS EN ADELANTE'!E12/'FERIAS 3 DIAS'!I$3,E12) -> 181832 | E12: 181832
A13: =CONCATENATE(B13:B503," ",C13:C503) -> 3070301 Punto de Agua en 1/2" (incluye consumo) valor de 7 dias en adelante | B13: 3070301 | C13: Punto de Agua en 1/2" (incluye consumo) valor de 7 dias en adelante | D13: =IF('FERIAS 3 DIAS'!G$3=TRUE,'FERIAS DE 7 DIAS EN ADELANTE'!E13/'FERIAS 3 DIAS'!I$3,E13) -> 460054 | E13: 460054
A14: =CONCATENATE(B14:B504," ",C14:C504) -> 3070302 Desagüe en 1 1/2" Por toda la feria (Ubicación asignada por Corferias en su stand) valor de 7 dias en adelante | B14: 3070302 | C14: Desagüe en 1 1/2" Por toda la feria (Ubicación asignada por Corferias en su stand) valor de 7 dias en adelante | D14: =IF('FERIAS 3 DIAS'!G$3=TRUE,'FERIAS DE 7 DIAS EN ADELANTE'!E14/'FERIAS 3 DIAS'!I$3,E14) -> 404838 | E14: 404838
A15: =CONCATENATE(B15:B505," ",C15:C505) -> 3071341 Aire comprimido para punto con presión máx. de 100 PSI, y caudal máx. 35CFM. valor de 7 dias en adelante | B15: 3071341 | C15: Aire comprimido para punto con presión máx. de 100 PSI, y caudal máx. 35CFM. valor de 7 dias en adelante | D15: =IF('FERIAS 3 DIAS'!G$3=TRUE,'FERIAS DE 7 DIAS EN ADELANTE'!E15/'FERIAS 3 DIAS'!I$3,E15) -> 565488 | E15: 565488
A16: =CONCATENATE(B16:B506," ",C16:C506) -> 3070307 Punto de Agua en 1/2" (Incluye consumo) + Desagüe en 1 1/2" + Lavaplatos valor de 7 dias en adelante | B16: 3070307 | C16: Punto de Agua en 1/2" (Incluye consumo) + Desagüe en 1 1/2" + Lavaplatos valor de 7 dias en adelante | D16: =IF('FERIAS 3 DIAS'!G$3=TRUE,'FERIAS DE 7 DIAS EN ADELANTE'!E16/'FERIAS 3 DIAS'!I$3,E16) -> 951524 | E16: 951524
A17: =CONCATENATE(B17:B507," ",C17:C507) -> 3071321 Instalación de UN (1) punto de gas propano por UN (1) Equipo (Incluye materiales y mano de obra) (No incluye consumo de gas, este será liquidado a través de un medidor una vez finalice la feria y/o evento) | B17: 3071321 | C17: Instalación de UN (1) punto de gas propano por UN (1) Equipo (Incluye materiales y mano de obra) (No incluye consumo de gas, este será liquidado a través de un medidor una vez finalice la feria y/o evento) | D17: =IF('FERIAS 3 DIAS'!G$3=TRUE,'FERIAS DE 7 DIAS EN ADELANTE'!E17/'FERIAS 3 DIAS'!I$3,E17) -> 204680 | E17: =172000*1.19 -> 204680
A18: =CONCATENATE(B18:B508," ",C18:C508) -> 3070601 Panel adicional sistema cfe 100cm x 240cm | B18: 3070601 | C18: Panel adicional sistema cfe 100cm x 240cm | D18: =IF('FERIAS 3 DIAS'!G$3=TRUE,'FERIAS DE 7 DIAS EN ADELANTE'!E18/'FERIAS 3 DIAS'!I$3,E18) -> 39151 | E18: 39151
A19: =CONCATENATE(B19:B509," ",C19:C509) -> 3070801 Puerta sistema cfe 90cm x 240cm | B19: 3070801 | C19: Puerta sistema cfe 90cm x 240cm | D19: =IF('FERIAS 3 DIAS'!G$3=TRUE,'FERIAS DE 7 DIAS EN ADELANTE'!E19/'FERIAS 3 DIAS'!I$3,E19) -> 97104 | E19: 97104
A20: =CONCATENATE(B20:B510," ",C20:C510) -> 3070803 Bodega estándar con puerta 150cm x 150cm (Sistema Corferias) | B20: 3070803 | C20: Bodega estándar con puerta 150cm x 150cm (Sistema Corferias) | D20: =IF('FERIAS 3 DIAS'!G$3=TRUE,'FERIAS DE 7 DIAS EN ADELANTE'!E20/'FERIAS 3 DIAS'!I$3,E20) -> 154938 | E20: 154938
A21: =CONCATENATE(B21:B511," ",C21:C511) -> 3071319 Brazo Mecánico por Fracciòn de 15 min (Solo para primer nivel) | B21: 3071319 | C21: Brazo Mecánico por Fracciòn de 15 min (Solo para primer nivel) | D21: =IF('FERIAS 3 DIAS'!G$3=TRUE,'FERIAS DE 7 DIAS EN ADELANTE'!E21/'FERIAS 3 DIAS'!I$3,E21) -> 66400 | E21: 66400
A22: =CONCATENATE(B22:B512," ",C22:C512) -> 3071319 Brazo Mecánico por Fracciòn de 30 min (Solo para primer nivel) | B22: 3071319 | C22: Brazo Mecánico por Fracciòn de 30 min (Solo para primer nivel) | D22: =IF('FERIAS 3 DIAS'!G$3=TRUE,'FERIAS DE 7 DIAS EN ADELANTE'!E22/'FERIAS 3 DIAS'!I$3,E22) -> 113500 | E22: 113500
A23: =CONCATENATE(B23:B514," ",C23:C514) -> 3071319 Brazo Mecánico por Fracciòn de 60 min (Solo para primer nivel) | B23: 3071319 | C23: Brazo Mecánico por Fracciòn de 60 min (Solo para primer nivel) | D23: =IF('FERIAS 3 DIAS'!G$3=TRUE,'FERIAS DE 7 DIAS EN ADELANTE'!E23/'FERIAS 3 DIAS'!I$3,E23) -> 201700 | E23: 201700
A24: =CONCATENATE(B24:B515," ",C24:C515) -> 3070413 Diferencial (Cap. 1 Ton.) + Brazo mecánico (Montaje y desmontaje) | B24: 3070413 | C24: Diferencial (Cap. 1 Ton.) + Brazo mecánico (Montaje y desmontaje) | D24: =IF('FERIAS 3 DIAS'!G$3=TRUE,'FERIAS DE 7 DIAS EN ADELANTE'!E24/'FERIAS 3 DIAS'!I$3,E24) -> 313300 | E24: 313300
A25: =CONCATENATE(B25:B516," ",C25:C516) -> 3070414 Plataforma Tijera eléctrica por Fracciòn /30 min (Uso para segundos niveles) | B25: 3070414 | C25: Plataforma Tijera eléctrica por Fracciòn /30 min (Uso para segundos niveles) | D25: =IF('FERIAS 3 DIAS'!G$3=TRUE,'FERIAS DE 7 DIAS EN ADELANTE'!E25/'FERIAS 3 DIAS'!I$3,E25) -> 78000 | E25: 78000
A26: =CONCATENATE(B26:B517," ",C26:C517) -> 3071387 Brazo mecánico + Diferencial + TRUSS 2,60 X 2,60 | B26: 3071387 | C26: Brazo mecánico + Diferencial + TRUSS 2,60 X 2,60 | D26: =IF('FERIAS 3 DIAS'!G$3=TRUE,'FERIAS DE 7 DIAS EN ADELANTE'!E26/'FERIAS 3 DIAS'!I$3,E26) -> 2668000 | E26: 2668000
A27: =CONCATENATE(B27:B518," ",C27:C518) -> 3071351 Brazo mecánico + Diferencial + TRUSS 3,60 X 2,60 | B27: 3071351 | C27: Brazo mecánico + Diferencial + TRUSS 3,60 X 2,60 | D27: =IF('FERIAS 3 DIAS'!G$3=TRUE,'FERIAS DE 7 DIAS EN ADELANTE'!E27/'FERIAS 3 DIAS'!I$3,E27) -> 2668000 | E27: 2668000
A28: =CONCATENATE(B28:B519," ",C28:C519) -> 3071395 Brazo mecánico + Diferencial + TRUSS 3,60 X 3,60 | B28: 3071395 | C28: Brazo mecánico + Diferencial + TRUSS 3,60 X 3,60 | D28: =IF('FERIAS 3 DIAS'!G$3=TRUE,'FERIAS DE 7 DIAS EN ADELANTE'!E28/'FERIAS 3 DIAS'!I$3,E28) -> 2668000 | E28: 2668000
A29: =CONCATENATE(B29:B520," ",C29:C520) -> 3071324 Brazo mecánico + Diferencial + TRUSS 5,90 X 5,90 | B29: 3071324 | C29: Brazo mecánico + Diferencial + TRUSS 5,90 X 5,90 | D29: =IF('FERIAS 3 DIAS'!G$3=TRUE,'FERIAS DE 7 DIAS EN ADELANTE'!E29/'FERIAS 3 DIAS'!I$3,E29) -> 3335000 | E29: 3335000
A30: =CONCATENATE(B30:B521," ",C30:C521) -> 3071436 Brazo mecánico + Diferencial + TRUSS 6,90 X 6,90 | B30: 3071436 | C30: Brazo mecánico + Diferencial + TRUSS 6,90 X 6,90 | D30: =IF('FERIAS 3 DIAS'!G$3=TRUE,'FERIAS DE 7 DIAS EN ADELANTE'!E30/'FERIAS 3 DIAS'!I$3,E30) -> 3335000 | E30: 3335000
A31: =CONCATENATE(B31:B522," ",C31:C522) -> 3071350 Brazo mecánico + Diferencial + TRUSS 5,60 X 5,60 | B31: 3071350 | C31: Brazo mecánico + Diferencial + TRUSS 5,60 X 5,60 | D31: =IF('FERIAS 3 DIAS'!G$3=TRUE,'FERIAS DE 7 DIAS EN ADELANTE'!E31/'FERIAS 3 DIAS'!I$3,E31) -> 3335000 | E31: 3335000
A32: =CONCATENATE(B32:B523," ",C32:C523) -> 3071371 Brazo mecánico + Diferencial + TRUSS 6,60 X 6,60 | B32: 3071371 | C32: Brazo mecánico + Diferencial + TRUSS 6,60 X 6,60 | D32: =IF('FERIAS 3 DIAS'!G$3=TRUE,'FERIAS DE 7 DIAS EN ADELANTE'!E32/'FERIAS 3 DIAS'!I$3,E32) -> 3335000 | E32: 3335000
A33: =CONCATENATE(B33:B524," ",C33:C524) -> 3071393 Brazo mecánico + Diferencial + TRUSS 9,60 X 2,60 | B33: 3071393 | C33: Brazo mecánico + Diferencial + TRUSS 9,60 X 2,60 | D33: =IF('FERIAS 3 DIAS'!G$3=TRUE,'FERIAS DE 7 DIAS EN ADELANTE'!E33/'FERIAS 3 DIAS'!I$3,E33) -> 3335000 | E33: 3335000
A34: =CONCATENATE(B34:B525," ",C34:C525) -> 3071394 Brazo mecánico + Diferencial + TRUSS 9,60 X 3,60 | B34: 3071394 | C34: Brazo mecánico + Diferencial + TRUSS 9,60 X 3,60 | D34: =IF('FERIAS 3 DIAS'!G$3=TRUE,'FERIAS DE 7 DIAS EN ADELANTE'!E34/'FERIAS 3 DIAS'!I$3,E34) -> 3335000 | E34: 3335000
A35: =CONCATENATE(B35:B526," ",C35:C526) -> 3071396 Brazo mecánico + Diferencial + TRUSS 9,60 X 5,60 | B35: 3071396 | C35: Brazo mecánico + Diferencial + TRUSS 9,60 X 5,60 | D35: =IF('FERIAS 3 DIAS'!G$3=TRUE,'FERIAS DE 7 DIAS EN ADELANTE'!E35/'FERIAS 3 DIAS'!I$3,E35) -> 4416000 | E35: 4416000
A36: =CONCATENATE(B36:B527," ",C36:C527) -> 3071397 Brazo mecánico + Diferencial + TRUSS 9,60 X 6,60 | B36: 3071397 | C36: Brazo mecánico + Diferencial + TRUSS 9,60 X 6,60 | D36: =IF('FERIAS 3 DIAS'!G$3=TRUE,'FERIAS DE 7 DIAS EN ADELANTE'!E36/'FERIAS 3 DIAS'!I$3,E36) -> 4416000 | E36: 4416000
A37: =CONCATENATE(B37:B528," ",C37:C528) -> 3071418 Servicio de Internet Cableado "PARA UN EQUIPO - DURANTE UN DÍA" | B37: 3071418 | C37: Servicio de Internet Cableado "PARA UN EQUIPO - DURANTE UN DÍA" | D37: =IF('FERIAS 3 DIAS'!G$3=TRUE,'FERIAS DE 7 DIAS EN ADELANTE'!E37/'FERIAS 3 DIAS'!I$3,E37) -> 74970 | E37: 74970
A38: =CONCATENATE(B38:B529," ",C38:C529) -> 3071419 Clave de acceso para la red WiFi "PARA UN EQUIPO - DURANTE UN DÍA" | B38: 3071419 | C38: Clave de acceso para la red WiFi "PARA UN EQUIPO - DURANTE UN DÍA" | D38: =IF('FERIAS 3 DIAS'!G$3=TRUE,'FERIAS DE 7 DIAS EN ADELANTE'!E38/'FERIAS 3 DIAS'!I$3,E38) -> 74970 | E38: 74970
A39: =CONCATENATE(B39:B530," ",C39:C530) -> 3071417 Servicio de Internet Cableado "PARA UN EQUIPO - DURANTE TODA LA FERIA" valor a partir de 7 dias | B39: 3071417 | C39: Servicio de Internet Cableado "PARA UN EQUIPO - DURANTE TODA LA FERIA" valor a partir de 7 dias | D39: =IF('FERIAS 3 DIAS'!G$3=TRUE,'FERIAS DE 7 DIAS EN ADELANTE'!E39/'FERIAS 3 DIAS'!I$3,E39) -> 278460 | E39: 278460
A40: =CONCATENATE(B40:B531," ",C40:C531) -> 3071420 Clave de acceso para la Red WiFi "PARA UN EQUIPO - DURANTE TODA LA FERIA" valor a partir de 7 dias | B40: 3071420 | C40: Clave de acceso para la Red WiFi "PARA UN EQUIPO - DURANTE TODA LA FERIA" valor a partir de 7 dias | D40: =IF('FERIAS 3 DIAS'!G$3=TRUE,'FERIAS DE 7 DIAS EN ADELANTE'!E40/'FERIAS 3 DIAS'!I$3,E40) -> 278460 | E40: 278460
A41: =CONCATENATE(B41:B532," ",C41:C532) -> 3071423 Conexión para Datafono + Clave de acceso WIFI (Para un equipo durante toda la feria) valor a partir de 7 dias | B41: 3071423 | C41: Conexión para Datafono + Clave de acceso WIFI (Para un equipo durante toda la feria) valor a partir de 7 dias | D41: =IF('FERIAS 3 DIAS'!G$3=TRUE,'FERIAS DE 7 DIAS EN ADELANTE'!E41/'FERIAS 3 DIAS'!I$3,E41) -> 385322 | E41: 385322
A42: =CONCATENATE(B42:B260," ",C42:C260) -> 3071424 Conexión para Datafono + Servicio de Internet Cableado (Para un equipo durante toda la feria) valor a partir de 7 dias | B42: 3071424 | C42: Conexión para Datafono + Servicio de Internet Cableado (Para un equipo durante toda la feria) valor a partir de 7 dias | D42: =IF('FERIAS 3 DIAS'!G$3=TRUE,'FERIAS DE 7 DIAS EN ADELANTE'!E42/'FERIAS 3 DIAS'!I$3,E42) -> 385322 | E42: 385322
A43: =CONCATENATE(B43:B261," ",C43:C261) -> 3071425 Servicio de Internet Cableado + Clave de acceso WIFI (Para un equipo durante toda la feria) valor a partir de 7 dias | B43: 3071425 | C43: Servicio de Internet Cableado + Clave de acceso WIFI (Para un equipo durante toda la feria) valor a partir de 7 dias | D43: =IF('FERIAS 3 DIAS'!G$3=TRUE,'FERIAS DE 7 DIAS EN ADELANTE'!E43/'FERIAS 3 DIAS'!I$3,E43) -> 501228 | E43: 501228
A44: =CONCATENATE(B44:B262," ",C44:C262) -> 3071437 Internet Dedicado: Si requiere conexión banda ancha para diferentes servicios o redes locales, contáctese con serviciosplus@corferias.com para brindarle asesoria y cotización. | B44: 3071437 | C44: Internet Dedicado: Si requiere conexión banda ancha para diferentes servicios o redes locales, contáctese con serviciosplus@corferias.com para brindarle asesoria y cotización. | D44: =IF('FERIAS 3 DIAS'!G$3=TRUE,'FERIAS DE 7 DIAS EN ADELANTE'!E44/'FERIAS 3 DIAS'!I$3,E44) -> Según cotización | E44: Según cotización
A45: =CONCATENATE(B45:B263," ",C45:C263) -> 3071406 Instalación Punto de Red:Incluye un cable UTP por punto | B45: 3071406 | C45: Instalación Punto de Red:Incluye un cable UTP por punto | D45: =IF('FERIAS 3 DIAS'!G$3=TRUE,'FERIAS DE 7 DIAS EN ADELANTE'!E45/'FERIAS 3 DIAS'!I$3,E45) -> 90797 | E45: 90797
A46: =CONCATENATE(B46:B264," ",C46:C264) -> 3071407 Switch VALOR POR FERIA | B46: 3071407 | C46: Switch VALOR POR FERIA | D46: =IF('FERIAS 3 DIAS'!G$3=TRUE,'FERIAS DE 7 DIAS EN ADELANTE'!E46/'FERIAS 3 DIAS'!I$3,E46) -> 87346 | E46: 87346
A47: =CONCATENATE(B47:B265," ",C47:C265) -> 3071402 Servicio de VLAN: Servicio virtual de red. VALOR POR FERIA | B47: 3071402 | C47: Servicio de VLAN: Servicio virtual de red. VALOR POR FERIA | D47: =IF('FERIAS 3 DIAS'!G$3=TRUE,'FERIAS DE 7 DIAS EN ADELANTE'!E47/'FERIAS 3 DIAS'!I$3,E47) -> 367115 | E47: 367115
A48: =CONCATENATE(B48:B266," ",C48:C266) -> 3071430 Extension LAN VALOR POR FERIA (Incluye punto de red y aplica para extender el servicio de internet contratado con terceros) | B48: 3071430 | C48: Extension LAN VALOR POR FERIA (Incluye punto de red y aplica para extender el servicio de internet contratado con terceros) | D48: =IF('FERIAS 3 DIAS'!G$3=TRUE,'FERIAS DE 7 DIAS EN ADELANTE'!E48/'FERIAS 3 DIAS'!I$3,E48) -> 1401344 | E48: 1401344
A49: =CONCATENATE(B49:B267," ",C49:C267) -> 3071442 Soporte técnico permanente (Por espacio de 8 horas) de un técnico. VALOR DÍARIO | B49: 3071442 | C49: Soporte técnico permanente (Por espacio de 8 horas) de un técnico. VALOR DÍARIO | D49: =IF('FERIAS 3 DIAS'!G$3=TRUE,'FERIAS DE 7 DIAS EN ADELANTE'!E49/'FERIAS 3 DIAS'!I$3,E49) -> 243474 | E49: 243474
A50: =CONCATENATE(B50:B268," ",C50:C268) -> 3070202 Servicio Telefónico Urbano con Aparato (Incluye consumo local ilimitado) | B50: 3070202 | C50: Servicio Telefónico Urbano con Aparato (Incluye consumo local ilimitado) | D50: =IF('FERIAS 3 DIAS'!G$3=TRUE,'FERIAS DE 7 DIAS EN ADELANTE'!E50/'FERIAS 3 DIAS'!I$3,E50) -> 42483 | E50: 42483
A51: =CONCATENATE(B51:B269," ",C51:C269) -> 3070203 Servicio Telefónico Larga Distancia con aparato | B51: 3070203 | C51: Servicio Telefónico Larga Distancia con aparato | D51: =IF('FERIAS 3 DIAS'!G$3=TRUE,'FERIAS DE 7 DIAS EN ADELANTE'!E51/'FERIAS 3 DIAS'!I$3,E51) -> 42483 | E51: 42483
A52: =CONCATENATE(B52:B270," ",C52:C270) -> 3070201 Línea Externa no conmutada (Previa solicitud a Etb, Claro, EPM, Colomsat u otro operador) | B52: 3070201 | C52: Línea Externa no conmutada (Previa solicitud a Etb, Claro, EPM, Colomsat u otro operador) | D52: =IF('FERIAS 3 DIAS'!G$3=TRUE,'FERIAS DE 7 DIAS EN ADELANTE'!E52/'FERIAS 3 DIAS'!I$3,E52) -> 120071 | E52: 120071
A53: =CONCATENATE(B53:B271," ",C53:C271) -> 3070207 Conexión cableada para Datafono:(No incluye Datafono) | B53: 3070207 | C53: Conexión cableada para Datafono:(No incluye Datafono) | D53: =IF('FERIAS 3 DIAS'!G$3=TRUE,'FERIAS DE 7 DIAS EN ADELANTE'!E53/'FERIAS 3 DIAS'!I$3,E53) -> 127092 | E53: 127092
A54: =CONCATENATE(B54:B526," ",C54:C526) -> 3071107 Archivador Regina (70cm x 37cm x50cm) | B54: 3071107 | C54: Archivador Regina (70cm x 37cm x50cm) | D54: =IF('FERIAS 3 DIAS'!G$3=TRUE,'FERIAS DE 7 DIAS EN ADELANTE'!E54/'FERIAS 3 DIAS'!I$3,E54) -> 158151 | E54: 158151
A55: =CONCATENATE(B55:B527," ",C55:C527) -> 3070954 Counter Mónaco (Melaminico) (100cm x 100cm x 30cm) | B55: 3070954 | C55: Counter Mónaco (Melaminico) (100cm x 100cm x 30cm) | D55: =IF('FERIAS 3 DIAS'!G$3=TRUE,'FERIAS DE 7 DIAS EN ADELANTE'!E55/'FERIAS 3 DIAS'!I$3,E55) -> 171241 | E55: 171241
A56: =CONCATENATE(B56:B528," ",C56:C528) -> 3070954 Counter Mónaco (Miel) (100cm x 100cm x 30cm) | B56: 3070954 | C56: Counter Mónaco (Miel) (100cm x 100cm x 30cm) | D56: =IF('FERIAS 3 DIAS'!G$3=TRUE,'FERIAS DE 7 DIAS EN ADELANTE'!E56/'FERIAS 3 DIAS'!I$3,E56) -> 171241 | E56: 171241
A57: =CONCATENATE(B57:B529," ",C57:C529) -> 3070954 Counter Mónaco (Roble Gris) (100cm x 100cm x 30cm) | B57: 3070954 | C57: Counter Mónaco (Roble Gris) (100cm x 100cm x 30cm) | D57: =IF('FERIAS 3 DIAS'!G$3=TRUE,'FERIAS DE 7 DIAS EN ADELANTE'!E57/'FERIAS 3 DIAS'!I$3,E57) -> 171241 | E57: 171241
A58: =CONCATENATE(B58:B530," ",C58:C530) -> 3070954 Counter Mónaco (Rovere) (100cm x 100cm x 30cm) | B58: 3070954 | C58: Counter Mónaco (Rovere) (100cm x 100cm x 30cm) | D58: =IF('FERIAS 3 DIAS'!G$3=TRUE,'FERIAS DE 7 DIAS EN ADELANTE'!E58/'FERIAS 3 DIAS'!I$3,E58) -> 171241 | E58: 171241
A59: =CONCATENATE(B59:B531," ",C59:C531) -> 3070714 Cubo de exhibición (40cm x 40cm x 25cm) | B59: 3070714 | C59: Cubo de exhibición (40cm x 40cm x 25cm) | D59: =IF('FERIAS 3 DIAS'!G$3=TRUE,'FERIAS DE 7 DIAS EN ADELANTE'!E59/'FERIAS 3 DIAS'!I$3,E59) -> 35700 | E59: 35700
A60: =CONCATENATE(B60:B532," ",C60:C532) -> 3070503 Estantería Polo (Melaminico) (200cm x 93cm x 35cm) | B60: 3070503 | C60: Estantería Polo (Melaminico) (200cm x 93cm x 35cm) | D60: =IF('FERIAS 3 DIAS'!G$3=TRUE,'FERIAS DE 7 DIAS EN ADELANTE'!E60/'FERIAS 3 DIAS'!I$3,E60) -> 181951 | E60: 181951
A61: =CONCATENATE(B61:B533," ",C61:C533) -> 3070503 Estantería Polo (Miel) (200cm x 93cm x 35cm) | B61: 3070503 | C61: Estantería Polo (Miel) (200cm x 93cm x 35cm) | D61: =IF('FERIAS 3 DIAS'!G$3=TRUE,'FERIAS DE 7 DIAS EN ADELANTE'!E61/'FERIAS 3 DIAS'!I$3,E61) -> 181951 | E61: 181951
A62: =CONCATENATE(B62:B534," ",C62:C534) -> 3070503 Estantería Polo (OSB) (200cm x 93cm x 35cm) | B62: 3070503 | C62: Estantería Polo (OSB) (200cm x 93cm x 35cm) | D62: =IF('FERIAS 3 DIAS'!G$3=TRUE,'FERIAS DE 7 DIAS EN ADELANTE'!E62/'FERIAS 3 DIAS'!I$3,E62) -> 181951 | E62: 181951
A63: =CONCATENATE(B63:B535," ",C63:C535) -> 3070503 Estantería Polo (Roble Gris) (200cm x 93cm x 35cm) | B63: 3070503 | C63: Estantería Polo (Roble Gris) (200cm x 93cm x 35cm) | D63: =IF('FERIAS 3 DIAS'!G$3=TRUE,'FERIAS DE 7 DIAS EN ADELANTE'!E63/'FERIAS 3 DIAS'!I$3,E63) -> 181951 | E63: 181951
A64: =CONCATENATE(B64:B536," ",C64:C536) -> 3070503 Estantería Polo (Rovere) (200cm x 93cm x 35cm) | B64: 3070503 | C64: Estantería Polo (Rovere) (200cm x 93cm x 35cm) | D64: =IF('FERIAS 3 DIAS'!G$3=TRUE,'FERIAS DE 7 DIAS EN ADELANTE'!E64/'FERIAS 3 DIAS'!I$3,E64) -> 181951 | E64: 181951
A65: =CONCATENATE(B65:B537," ",C65:C537) -> 3071108 Estantería Shelf 4E (190cm x 125cm x 41cm) | B65: 3071108 | C65: Estantería Shelf 4E (190cm x 125cm x 41cm) | D65: =IF('FERIAS 3 DIAS'!G$3=TRUE,'FERIAS DE 7 DIAS EN ADELANTE'!E65/'FERIAS 3 DIAS'!I$3,E65) -> 151606 | E65: 151606
A66: =CONCATENATE(B66:B539," ",C66:C539) -> 3071105 KIT básico oficina 2 (2 sillas interlocutoras negras, 1 silla ejecutiva cuero, 1 mesa oficina) | B66: 3071105 | C66: KIT básico oficina 2 (2 sillas interlocutoras negras, 1 silla ejecutiva cuero, 1 mesa oficina) | D66: =IF('FERIAS 3 DIAS'!G$3=TRUE,'FERIAS DE 7 DIAS EN ADELANTE'!E66/'FERIAS 3 DIAS'!I$3,E66) -> 237286 | E66: 237286
A67: =CONCATENATE(B67:B540," ",C67:C540) -> 3070512 Locker 12 puestos | B67: 3070512 | C67: Locker 12 puestos | D67: =IF('FERIAS 3 DIAS'!G$3=TRUE,'FERIAS DE 7 DIAS EN ADELANTE'!E67/'FERIAS 3 DIAS'!I$3,E67) -> 357000 | E67: 357000
A68: =CONCATENATE(B68:B542," ",C68:C542) -> 3070512 Mesa alta Daysa (Melaminico) (100cm x 60cm) | B68: 3070512 | C68: Mesa alta Daysa (Melaminico) (100cm x 60cm) | D68: =IF('FERIAS 3 DIAS'!G$3=TRUE,'FERIAS DE 7 DIAS EN ADELANTE'!E68/'FERIAS 3 DIAS'!I$3,E68) -> 105553 | E68: 105553
A69: =CONCATENATE(B69:B543," ",C69:C543) -> 3071115 Mesa alta Daysa (Miel) (100cm x 60cm) | B69: 3071115 | C69: Mesa alta Daysa (Miel) (100cm x 60cm) | D69: =IF('FERIAS 3 DIAS'!G$3=TRUE,'FERIAS DE 7 DIAS EN ADELANTE'!E69/'FERIAS 3 DIAS'!I$3,E69) -> 105553 | E69: 105553
A70: =CONCATENATE(B70:B544," ",C70:C544) -> 3071115 Mesa alta Daysa (Roble Gris) (100cm x 60cm) | B70: 3071115 | C70: Mesa alta Daysa (Roble Gris) (100cm x 60cm) | D70: =IF('FERIAS 3 DIAS'!G$3=TRUE,'FERIAS DE 7 DIAS EN ADELANTE'!E70/'FERIAS 3 DIAS'!I$3,E70) -> 105553 | E70: 105553
A71: =CONCATENATE(B71:B545," ",C71:C545) -> 3071115 Mesa alta Daysa (Rovere) (100cm x 60cm) | B71: 3071115 | C71: Mesa alta Daysa (Rovere) (100cm x 60cm) | D71: =IF('FERIAS 3 DIAS'!G$3=TRUE,'FERIAS DE 7 DIAS EN ADELANTE'!E71/'FERIAS 3 DIAS'!I$3,E71) -> 105553 | E71: 105553
A72: =CONCATENATE(B72:B546," ",C72:C546) -> 3071039 Mesa alta Daysa + 2 sillas neumaticas altas marsella | B72: 3071039 | C72: Mesa alta Daysa + 2 sillas neumaticas altas marsella | D72: =IF('FERIAS 3 DIAS'!G$3=TRUE,'FERIAS DE 7 DIAS EN ADELANTE'!E72/'FERIAS 3 DIAS'!I$3,E72) -> 247163 | E72: 247163
A73: =CONCATENATE(B73:B547," ",C73:C547) -> 3071093 Mesa alta Daysa vidrio (100cm x 60cm) | B73: 3071093 | C73: Mesa alta Daysa vidrio (100cm x 60cm) | D73: =IF('FERIAS 3 DIAS'!G$3=TRUE,'FERIAS DE 7 DIAS EN ADELANTE'!E73/'FERIAS 3 DIAS'!I$3,E73) -> 118643 | E73: 118643
A74: =CONCATENATE(B74:B548," ",C74:C548) -> 3071100 Mesa Centro Circular doble nivel (melaminico) (50cm x 110cm x 60cm) | B74: 3071100 | C74: Mesa Centro Circular doble nivel (melaminico) (50cm x 110cm x 60cm) | D74: =IF('FERIAS 3 DIAS'!G$3=TRUE,'FERIAS DE 7 DIAS EN ADELANTE'!E74/'FERIAS 3 DIAS'!I$3,E74) -> 117453 | E74: 117453
A75: =CONCATENATE(B75:B549," ",C75:C549) -> 3071104 Mesa Centro Cuadrada 2 Niveles (melaminico) (50cm x 60cm x 60) | B75: 3071104 | C75: Mesa Centro Cuadrada 2 Niveles (melaminico) (50cm x 60cm x 60) | D75: =IF('FERIAS 3 DIAS'!G$3=TRUE,'FERIAS DE 7 DIAS EN ADELANTE'!E75/'FERIAS 3 DIAS'!I$3,E75) -> 85442 | E75: 85442
A76: =CONCATENATE(B76:B550," ",C76:C550) -> 3071068 Mesa Centro Rectangular doble nivel (melaminico) (50cm x 75cm x 50cm) | B76: 3071068 | C76: Mesa Centro Rectangular doble nivel (melaminico) (50cm x 75cm x 50cm) | D76: =IF('FERIAS 3 DIAS'!G$3=TRUE,'FERIAS DE 7 DIAS EN ADELANTE'!E76/'FERIAS 3 DIAS'!I$3,E76) -> 85442 | E76: 85442
A77: =CONCATENATE(B77:B551," ",C77:C551) -> 3071098 Mesa estandar Chia Blanca | B77: 3071098 | C77: Mesa estandar Chia Blanca | D77: =IF('FERIAS 3 DIAS'!G$3=TRUE,'FERIAS DE 7 DIAS EN ADELANTE'!E77/'FERIAS 3 DIAS'!I$3,E77) -> 105553 | E77: 105553
A78: =CONCATENATE(B78:B552," ",C78:C552) -> 3071098 Mesa estandar Chia Negra | B78: 3071098 | C78: Mesa estandar Chia Negra | D78: =IF('FERIAS 3 DIAS'!G$3=TRUE,'FERIAS DE 7 DIAS EN ADELANTE'!E78/'FERIAS 3 DIAS'!I$3,E78) -> 105553 | E78: 105553
A79: =CONCATENATE(B79:B553," ",C79:C553) -> 3071097 Mesa estandar Daysa (76cm x 60cm) | B79: 3071097 | C79: Mesa estandar Daysa (76cm x 60cm) | D79: =IF('FERIAS 3 DIAS'!G$3=TRUE,'FERIAS DE 7 DIAS EN ADELANTE'!E79/'FERIAS 3 DIAS'!I$3,E79) -> 105553 | E79: 105553
A80: =CONCATENATE(B80:B554," ",C80:C554) -> 3071116 Mesa estandar Lotus (70cm x 64cm x 81cm) | B80: 3071116 | C80: Mesa estandar Lotus (70cm x 64cm x 81cm) | D80: =IF('FERIAS 3 DIAS'!G$3=TRUE,'FERIAS DE 7 DIAS EN ADELANTE'!E80/'FERIAS 3 DIAS'!I$3,E80) -> 158151 | E80: 158151
A81: =CONCATENATE(B81:B555," ",C81:C555) -> 3071054 Mesa estandar lotus vidrio + 2 sillas tipo huevo | B81: 3071054 | C81: Mesa estandar lotus vidrio + 2 sillas tipo huevo | D81: =IF('FERIAS 3 DIAS'!G$3=TRUE,'FERIAS DE 7 DIAS EN ADELANTE'!E81/'FERIAS 3 DIAS'!I$3,E81) -> 272153 | E81: 272153
A82: =CONCATENATE(B82:B556," ",C82:C556) -> 30713200 Mesa Oficina (78cm x 120cm x 50cm) | B82: 30713200 | C82: Mesa Oficina (78cm x 120cm x 50cm) | D82: =IF('FERIAS 3 DIAS'!G$3=TRUE,'FERIAS DE 7 DIAS EN ADELANTE'!E82/'FERIAS 3 DIAS'!I$3,E82) -> 133042 | E82: 133042
A83: =CONCATENATE(B83:B557," ",C83:C557) -> 3071036 Mesa plegable plastico + 2 sillas interlocutoras negras | B83: 3071036 | C83: Mesa plegable plastico + 2 sillas interlocutoras negras | D83: =IF('FERIAS 3 DIAS'!G$3=TRUE,'FERIAS DE 7 DIAS EN ADELANTE'!E83/'FERIAS 3 DIAS'!I$3,E83) -> 190400 | E83: 190400
A84: =CONCATENATE(B84:B558," ",C84:C558) -> 3070936 Mesón plegable plástico (Gris o blanco) (73cm x 182cm x 76cm) | B84: 3070936 | C84: Mesón plegable plástico (Gris o blanco) (73cm x 182cm x 76cm) | D84: =IF('FERIAS 3 DIAS'!G$3=TRUE,'FERIAS DE 7 DIAS EN ADELANTE'!E84/'FERIAS 3 DIAS'!I$3,E84) -> 104601 | E84: 104601
A85: =CONCATENATE(B85:B559," ",C85:C559) -> 3071103 Nevera Estandar 230LT ( 55.6cm X 157.6cm X 67cm) | B85: 3071103 | C85: Nevera Estandar 230LT ( 55.6cm X 157.6cm X 67cm) | D85: =IF('FERIAS 3 DIAS'!G$3=TRUE,'FERIAS DE 7 DIAS EN ADELANTE'!E85/'FERIAS 3 DIAS'!I$3,E85) -> 299999 | E85: 299999
A86: =CONCATENATE(B86:B560," ",C86:C560) -> 3071103 Nevera Minibar 121 LT (48.5cm X 85.1cm X 60cm) | B86: 3071103 | C86: Nevera Minibar 121 LT (48.5cm X 85.1cm X 60cm) | D86: =IF('FERIAS 3 DIAS'!G$3=TRUE,'FERIAS DE 7 DIAS EN ADELANTE'!E86/'FERIAS 3 DIAS'!I$3,E86) -> 203371 | E86: 203371
A87: =CONCATENATE(B87:B561," ",C87:C561) -> 3071302 Papelera plastica negra | B87: 3071302 | C87: Papelera plastica negra | D87: =IF('FERIAS 3 DIAS'!G$3=TRUE,'FERIAS DE 7 DIAS EN ADELANTE'!E87/'FERIAS 3 DIAS'!I$3,E87) -> 23443 | E87: 23443
A88: =CONCATENATE(B88:B562," ",C88:C562) -> 3070957 Pedestal cuadrado (30cm x 30cm x 30cm) | B88: 3070957 | C88: Pedestal cuadrado (30cm x 30cm x 30cm) | D88: =IF('FERIAS 3 DIAS'!G$3=TRUE,'FERIAS DE 7 DIAS EN ADELANTE'!E88/'FERIAS 3 DIAS'!I$3,E88) -> 34391 | E88: 34391
A89: =CONCATENATE(B89:B563," ",C89:C563) -> 3070956 Pedestal rectangular 60cm (60cm x 30cm x 30cm) | B89: 3070956 | C89: Pedestal rectangular 60cm (60cm x 30cm x 30cm) | D89: =IF('FERIAS 3 DIAS'!G$3=TRUE,'FERIAS DE 7 DIAS EN ADELANTE'!E89/'FERIAS 3 DIAS'!I$3,E89) -> 39627 | E89: 39627
A90: =CONCATENATE(B90:B564," ",C90:C564) -> 3070955 Pedestal rectangular 90cm (90cm x 30cm x 30cm) | B90: 3070955 | C90: Pedestal rectangular 90cm (90cm x 30cm x 30cm) | D90: =IF('FERIAS 3 DIAS'!G$3=TRUE,'FERIAS DE 7 DIAS EN ADELANTE'!E90/'FERIAS 3 DIAS'!I$3,E90) -> 44982 | E90: 44982
A91: =CONCATENATE(B91:B565," ",C91:C565) -> 3070521 Perchero básico 1 pedestal (120cm Ancho - Altura) graduable + 5 ganchos | B91: 3070521 | C91: Perchero básico 1 pedestal (120cm Ancho - Altura) graduable + 5 ganchos | D91: =IF('FERIAS 3 DIAS'!G$3=TRUE,'FERIAS DE 7 DIAS EN ADELANTE'!E91/'FERIAS 3 DIAS'!I$3,E91) -> 77469 | E91: 77469
A92: =CONCATENATE(B92:B566," ",C92:C566) -> 3070521 Perchero doble 2 pedestal (120cm Ancho-Altura) graduable + 5 ganchos | B92: 3070521 | C92: Perchero doble 2 pedestal (120cm Ancho-Altura) graduable + 5 ganchos | D92: =IF('FERIAS 3 DIAS'!G$3=TRUE,'FERIAS DE 7 DIAS EN ADELANTE'!E92/'FERIAS 3 DIAS'!I$3,E92) -> 89369 | E92: 89369
A93: =CONCATENATE(B93:B567," ",C93:C567) -> 30713201 Poltrona Buggy (72cm x 64cm) | B93: 30713201 | C93: Poltrona Buggy (72cm x 64cm) | D93: =IF('FERIAS 3 DIAS'!G$3=TRUE,'FERIAS DE 7 DIAS EN ADELANTE'!E93/'FERIAS 3 DIAS'!I$3,E93) -> 155176 | E93: 155176
A94: =CONCATENATE(B94:B568," ",C94:C568) -> 3071059 Poltrona Levis (73cm x 86cm x 73cm) | B94: 3071059 | C94: Poltrona Levis (73cm x 86cm x 73cm) | D94: =IF('FERIAS 3 DIAS'!G$3=TRUE,'FERIAS DE 7 DIAS EN ADELANTE'!E94/'FERIAS 3 DIAS'!I$3,E94) -> 197778 | E94: 197778
A95: =CONCATENATE(B95:B569," ",C95:C569) -> 3071325 Poste separador 120cm de alto | B95: 3071325 | C95: Poste separador 120cm de alto | D95: =IF('FERIAS 3 DIAS'!G$3=TRUE,'FERIAS DE 7 DIAS EN ADELANTE'!E95/'FERIAS 3 DIAS'!I$3,E95) -> 46291 | E95: 46291
A96: =CONCATENATE(B96:B570," ",C96:C570) -> 3071090 Puff estandar cuadrado (43cm x 43cm x 43cm) | B96: 3071090 | C96: Puff estandar cuadrado (43cm x 43cm x 43cm) | D96: =IF('FERIAS 3 DIAS'!G$3=TRUE,'FERIAS DE 7 DIAS EN ADELANTE'!E96/'FERIAS 3 DIAS'!I$3,E96) -> 55216 | E96: 55216
A97: =CONCATENATE(B97:B571," ",C97:C571) -> 3071091 Puff Trunk 2 cuerpos (48cm x 81cm x 40cm) | B97: 3071091 | C97: Puff Trunk 2 cuerpos (48cm x 81cm x 40cm) | D97: =IF('FERIAS 3 DIAS'!G$3=TRUE,'FERIAS DE 7 DIAS EN ADELANTE'!E97/'FERIAS 3 DIAS'!I$3,E97) -> 105553 | E97: 105553
A98: =CONCATENATE(B98:B572," ",C98:C572) -> 3071114 Puff Trunk 3 cuerpos (46cm x 120cm x 54cm) | B98: 3071114 | C98: Puff Trunk 3 cuerpos (46cm x 120cm x 54cm) | D98: =IF('FERIAS 3 DIAS'!G$3=TRUE,'FERIAS DE 7 DIAS EN ADELANTE'!E98/'FERIAS 3 DIAS'!I$3,E98) -> 105553 | E98: 105553
A99: =CONCATENATE(B99:B573," ",C99:C573) -> 3071370 Revistero plegable (140cm x 25cm x 29cm) | B99: 3071370 | C99: Revistero plegable (140cm x 25cm x 29cm) | D99: =IF('FERIAS 3 DIAS'!G$3=TRUE,'FERIAS DE 7 DIAS EN ADELANTE'!E99/'FERIAS 3 DIAS'!I$3,E99) -> 78540 | E99: 78540
A100: =CONCATENATE(B100:B574," ",C100:C574) -> Sala de Juntas | C100: Sala de Juntas | D100: =IF('FERIAS 3 DIAS'!G$3=TRUE,'FERIAS DE 7 DIAS EN ADELANTE'!E100/'FERIAS 3 DIAS'!I$3,E100) -> 297500 | E100: 297500
A101: =CONCATENATE(B101:B575," ",C101:C575) -> 3071113 Sala Osaka (1 sofá Toronto, 2 puffs Donna, 1 mesa centro cuadrada 2 niveles) | B101: 3071113 | C101: Sala Osaka (1 sofá Toronto, 2 puffs Donna, 1 mesa centro cuadrada 2 niveles) | D101: =IF('FERIAS 3 DIAS'!G$3=TRUE,'FERIAS DE 7 DIAS EN ADELANTE'!E101/'FERIAS 3 DIAS'!I$3,E101) -> 461244 | E101: 461244
A102: =CONCATENATE(B102:B576," ",C102:C576) -> 3071095 Sala VIP (1 sofá Victoria derecho, 1 sofá Victoria izquierdo, 2 poltronas, 1 mesa centro cuadrada 2 niveles) | B102: 3071095 | C102: Sala VIP (1 sofá Victoria derecho, 1 sofá Victoria izquierdo, 2 poltronas, 1 mesa centro cuadrada 2 niveles) | D102: =IF('FERIAS 3 DIAS'!G$3=TRUE,'FERIAS DE 7 DIAS EN ADELANTE'!E102/'FERIAS 3 DIAS'!I$3,E102) -> 690200 | E102: 690200
A103: =CONCATENATE(B103:B577," ",C103:C577) -> Silla Bombonera Roja | C103: Silla Bombonera Roja | D103: =IF('FERIAS 3 DIAS'!G$3=TRUE,'FERIAS DE 7 DIAS EN ADELANTE'!E103/'FERIAS 3 DIAS'!I$3,E103) -> 65926 | E103: 65926
A104: =CONCATENATE(B104:B578," ",C104:C578) -> 3071081 Silla Ejecutiva Cuero (57cm x 93cm x 52cm) | B104: 3071081 | C104: Silla Ejecutiva Cuero (57cm x 93cm x 52cm) | D104: =IF('FERIAS 3 DIAS'!G$3=TRUE,'FERIAS DE 7 DIAS EN ADELANTE'!E104/'FERIAS 3 DIAS'!I$3,E104) -> 75327 | E104: 75327
A105: =CONCATENATE(B105:B579," ",C105:C579) -> 3071081 Silla Ejecutiva Malla | B105: 3071081 | C105: Silla Ejecutiva Malla | D105: =IF('FERIAS 3 DIAS'!G$3=TRUE,'FERIAS DE 7 DIAS EN ADELANTE'!E105/'FERIAS 3 DIAS'!I$3,E105) -> 155176 | E105: 155176
A106: =CONCATENATE(B106:B580," ",C106:C580) -> 3071061 Silla estandar Suiza (48cm x 46cm x 45cm) | B106: 3071061 | C106: Silla estandar Suiza (48cm x 46cm x 45cm) | D106: =IF('FERIAS 3 DIAS'!G$3=TRUE,'FERIAS DE 7 DIAS EN ADELANTE'!E106/'FERIAS 3 DIAS'!I$3,E106) -> 68901 | E106: 68901
A107: =CONCATENATE(B107:B581," ",C107:C581) -> 3071008 Silla estandar Tipo Huevo (48cm x 46cm x 45cm) | B107: 3071008 | C107: Silla estandar Tipo Huevo (48cm x 46cm x 45cm) | D107: =IF('FERIAS 3 DIAS'!G$3=TRUE,'FERIAS DE 7 DIAS EN ADELANTE'!E107/'FERIAS 3 DIAS'!I$3,E107) -> 68901 | E107: 68901
A108: =CONCATENATE(B108:B582," ",C108:C582) -> 30713198 Silla Gerencial (100cm x 49cm x 49cm) | B108: 30713198 | C108: Silla Gerencial (100cm x 49cm x 49cm) | D108: =IF('FERIAS 3 DIAS'!G$3=TRUE,'FERIAS DE 7 DIAS EN ADELANTE'!E108/'FERIAS 3 DIAS'!I$3,E108) -> 155176 | E108: 155176
A109: =CONCATENATE(B109:B583," ",C109:C583) -> 3071006 Silla Interlocutora Negra (79cm x 53cm x 42cm) | B109: 3071006 | C109: Silla Interlocutora Negra (79cm x 53cm x 42cm) | D109: =IF('FERIAS 3 DIAS'!G$3=TRUE,'FERIAS DE 7 DIAS EN ADELANTE'!E109/'FERIAS 3 DIAS'!I$3,E109) -> 49504 | E109: 49504
A110: =CONCATENATE(B110:B584," ",C110:C584) -> 3071077 Silla Neumática alta Marsella (80cm x 40cm x 40cm) | B110: 3071077 | C110: Silla Neumática alta Marsella (80cm x 40cm x 40cm) | D110: =IF('FERIAS 3 DIAS'!G$3=TRUE,'FERIAS DE 7 DIAS EN ADELANTE'!E110/'FERIAS 3 DIAS'!I$3,E110) -> 82824 | E110: 82824
A111: =CONCATENATE(B111:B585," ",C111:C585) -> 3071022 Silla Neumatica alta Versalles (80cm x 40 cm x 40cm | B111: 3071022 | C111: Silla Neumatica alta Versalles (80cm x 40 cm x 40cm | D111: =IF('FERIAS 3 DIAS'!G$3=TRUE,'FERIAS DE 7 DIAS EN ADELANTE'!E111/'FERIAS 3 DIAS'!I$3,E111) -> 104125 | E111: 104125
A112: =CONCATENATE(B112:B586," ",C112:C586) -> Silla Oslo Blanca | C112: Silla Oslo Blanca | D112: =IF('FERIAS 3 DIAS'!G$3=TRUE,'FERIAS DE 7 DIAS EN ADELANTE'!E112/'FERIAS 3 DIAS'!I$3,E112) -> 75327 | E112: 75327
A113: =CONCATENATE(B113:B587," ",C113:C587) -> Silla Tipo Bar Madera | C113: Silla Tipo Bar Madera | D113: =IF('FERIAS 3 DIAS'!G$3=TRUE,'FERIAS DE 7 DIAS EN ADELANTE'!E113/'FERIAS 3 DIAS'!I$3,E113) -> 81872 | E113: 81872
A114: =CONCATENATE(B114:B588," ",C114:C588) -> 3071085 Sofa Otawa 2 cuerpos (85cm x 120cm x 76cm) | B114: 3071085 | C114: Sofa Otawa 2 cuerpos (85cm x 120cm x 76cm) | D114: =IF('FERIAS 3 DIAS'!G$3=TRUE,'FERIAS DE 7 DIAS EN ADELANTE'!E114/'FERIAS 3 DIAS'!I$3,E114) -> 210987 | E114: 210987
A115: =CONCATENATE(B115:B589," ",C115:C589) -> 3071031 Sofa Terranova 2 cuerpos (88cm x 173cm x 80cm) | B115: 3071031 | C115: Sofa Terranova 2 cuerpos (88cm x 173cm x 80cm) | D115: =IF('FERIAS 3 DIAS'!G$3=TRUE,'FERIAS DE 7 DIAS EN ADELANTE'!E115/'FERIAS 3 DIAS'!I$3,E115) -> 224077 | E115: 224077
A116: =CONCATENATE(B116:B590," ",C116:C590) -> 3071083 Sofa Toronto 3 cuerpos (88cm x 173cm x 80cm) | B116: 3071083 | C116: Sofa Toronto 3 cuerpos (88cm x 173cm x 80cm) | D116: =IF('FERIAS 3 DIAS'!G$3=TRUE,'FERIAS DE 7 DIAS EN ADELANTE'!E116/'FERIAS 3 DIAS'!I$3,E116) -> 224077 | E116: 224077
A117: =CONCATENATE(B117:B591," ",C117:C591) -> 3071013 Sofa Victoria derecho (70cm x 100cm x 75cm) | B117: 3071013 | C117: Sofa Victoria derecho (70cm x 100cm x 75cm) | D117: =IF('FERIAS 3 DIAS'!G$3=TRUE,'FERIAS DE 7 DIAS EN ADELANTE'!E117/'FERIAS 3 DIAS'!I$3,E117) -> 182070 | E117: 182070
A118: =CONCATENATE(B118:B592," ",C118:C592) -> 3071023 Sofa Victoria izquierdo (70cm x 100cm x 75cm) | B118: 3071023 | C118: Sofa Victoria izquierdo (70cm x 100cm x 75cm) | D118: =IF('FERIAS 3 DIAS'!G$3=TRUE,'FERIAS DE 7 DIAS EN ADELANTE'!E118/'FERIAS 3 DIAS'!I$3,E118) -> 182070 | E118: 182070
A119: =CONCATENATE(B119:B593," ",C119:C593) -> 3070505 Tarima 120x120x60, (Previa verificación con área de montaje) | B119: 3070505 | C119: Tarima 120x120x60, (Previa verificación con área de montaje) | D119: =IF('FERIAS 3 DIAS'!G$3=TRUE,'FERIAS DE 7 DIAS EN ADELANTE'!E119/'FERIAS 3 DIAS'!I$3,E119) -> 247996 | E119: 247996
A120: =CONCATENATE(B120:B594," ",C120:C594) -> 3070535 Vitrina Isla 2E (200cm x 50cm x 50cm) | B120: 3070535 | C120: Vitrina Isla 2E (200cm x 50cm x 50cm) | D120: =IF('FERIAS 3 DIAS'!G$3=TRUE,'FERIAS DE 7 DIAS EN ADELANTE'!E120/'FERIAS 3 DIAS'!I$3,E120) -> 286671 | E120: 286671
A121: =CONCATENATE(B121:B595," ",C121:C595) -> 3070517 Vitrina Mostrador 2E (100cm x 100cm x 40cm) | B121: 3070517 | C121: Vitrina Mostrador 2E (100cm x 100cm x 40cm) | D121: =IF('FERIAS 3 DIAS'!G$3=TRUE,'FERIAS DE 7 DIAS EN ADELANTE'!E121/'FERIAS 3 DIAS'!I$3,E121) -> 214081 | E121: 214081
A122: =CONCATENATE(B122:B596," ",C122:C596) -> 3070518 Vitrina Mostrador Tipo 2 1E (92cm x 90 cm x 40cm) | B122: 3070518 | C122: Vitrina Mostrador Tipo 2 1E (92cm x 90 cm x 40cm) | D122: =IF('FERIAS 3 DIAS'!G$3=TRUE,'FERIAS DE 7 DIAS EN ADELANTE'!E122/'FERIAS 3 DIAS'!I$3,E122) -> 214081 | E122: 214081
A123: =CONCATENATE(B123:B597," ",C123:C597) -> 3071111 Vitrina Rectangular 2E (200cm x 100cm x 40cm) | B123: 3071111 | C123: Vitrina Rectangular 2E (200cm x 100cm x 40cm) | D123: =IF('FERIAS 3 DIAS'!G$3=TRUE,'FERIAS DE 7 DIAS EN ADELANTE'!E123/'FERIAS 3 DIAS'!I$3,E123) -> 286671 | E123: 286671
A124: =CONCATENATE(B124:B350," ",C124:C350) -> 3071375 Planta + matera plástica (Pequeña) | B124: 3071375 | C124: Planta + matera plástica (Pequeña) | D124: =IF('FERIAS 3 DIAS'!G$3=TRUE,'FERIAS DE 7 DIAS EN ADELANTE'!E124/'FERIAS 3 DIAS'!I$3,E124) -> 20600 | E124: 20600
A125: =CONCATENATE(B125:B351," ",C125:C351) -> 3071376 Planta + matera plástica (Mediana) | B125: 3071376 | C125: Planta + matera plástica (Mediana) | D125: =IF('FERIAS 3 DIAS'!G$3=TRUE,'FERIAS DE 7 DIAS EN ADELANTE'!E125/'FERIAS 3 DIAS'!I$3,E125) -> 46400 | E125: 46400
A126: =CONCATENATE(B126:B352," ",C126:C352) -> 3071377 Planta + matera plástica (Grande) | B126: 3071377 | C126: Planta + matera plástica (Grande) | D126: =IF('FERIAS 3 DIAS'!G$3=TRUE,'FERIAS DE 7 DIAS EN ADELANTE'!E126/'FERIAS 3 DIAS'!I$3,E126) -> 59200 | E126: 59200
A127: =CONCATENATE(B127:B353," ",C127:C353) -> 3071378 Jardinera en madera + 3 Plantas grandes | B127: 3071378 | C127: Jardinera en madera + 3 Plantas grandes | D127: =IF('FERIAS 3 DIAS'!G$3=TRUE,'FERIAS DE 7 DIAS EN ADELANTE'!E127/'FERIAS 3 DIAS'!I$3,E127) -> 100300 | E127: 100300
A128: =CONCATENATE(B128:B354," ",C128:C354) -> 3071379 Jardinera en madera + 3 Plantas medianas | B128: 3071379 | C128: Jardinera en madera + 3 Plantas medianas | D128: =IF('FERIAS 3 DIAS'!G$3=TRUE,'FERIAS DE 7 DIAS EN ADELANTE'!E128/'FERIAS 3 DIAS'!I$3,E128) -> 81100 | E128: 81100
A129: =CONCATENATE(B129:B355," ",C129:C355) -> 3071380 Jardinera en madera + 7 Plantas pequeñas | B129: 3071380 | C129: Jardinera en madera + 7 Plantas pequeñas | D129: =IF('FERIAS 3 DIAS'!G$3=TRUE,'FERIAS DE 7 DIAS EN ADELANTE'!E129/'FERIAS 3 DIAS'!I$3,E129) -> 83500 | E129: 83500
A130: =CONCATENATE(B130:B356," ",C130:C356) -> 3071381 Cajoneras con flores | B130: 3071381 | C130: Cajoneras con flores | D130: =IF('FERIAS 3 DIAS'!G$3=TRUE,'FERIAS DE 7 DIAS EN ADELANTE'!E130/'FERIAS 3 DIAS'!I$3,E130) -> 155800 | E130: 155800
A131: =CONCATENATE(B131:B357," ",C131:C357) -> 3071314 Grandes (61cm x 120cm) | B131: 3071314 | C131: Grandes (61cm x 120cm) | D131: =IF('FERIAS 3 DIAS'!G$3=TRUE,'FERIAS DE 7 DIAS EN ADELANTE'!E131/'FERIAS 3 DIAS'!I$3,E131) -> 31700 | E131: 31700
A132: =CONCATENATE(B132:B358," ",C132:C358) -> 3071301 Medianas (31cm x 120cm) | B132: 3071301 | C132: Medianas (31cm x 120cm) | D132: =IF('FERIAS 3 DIAS'!G$3=TRUE,'FERIAS DE 7 DIAS EN ADELANTE'!E132/'FERIAS 3 DIAS'!I$3,E132) -> 25000 | E132: 25000
A133: =CONCATENATE(B133:B359," ",C133:C359) -> 3071317 Pequeñas (10cm x 30cm) | B133: 3071317 | C133: Pequeñas (10cm x 30cm) | D133: =IF('FERIAS 3 DIAS'!G$3=TRUE,'FERIAS DE 7 DIAS EN ADELANTE'!E133/'FERIAS 3 DIAS'!I$3,E133) -> 11100 | E133: 11100
A134: =CONCATENATE(B134:B360," ",C134:C360) -> 3071382 Suculentas (10cm x 15cm) | B134: 3071382 | C134: Suculentas (10cm x 15cm) | D134: =IF('FERIAS 3 DIAS'!G$3=TRUE,'FERIAS DE 7 DIAS EN ADELANTE'!E134/'FERIAS 3 DIAS'!I$3,E134) -> 11100 | E134: 11100
A135: =CONCATENATE(B135:B361," ",C135:C361) -> 3071383 Chamizos | B135: 3071383 | C135: Chamizos | D135: =IF('FERIAS 3 DIAS'!G$3=TRUE,'FERIAS DE 7 DIAS EN ADELANTE'!E135/'FERIAS 3 DIAS'!I$3,E135) -> 11100 | E135: 11100
A136: =CONCATENATE(B136:B362," ",C136:C362) -> 3071355 De barro grande | B136: 3071355 | C136: De barro grande | D136: =IF('FERIAS 3 DIAS'!G$3=TRUE,'FERIAS DE 7 DIAS EN ADELANTE'!E136/'FERIAS 3 DIAS'!I$3,E136) -> 30700 | E136: 30700
A137: =CONCATENATE(B137:B363," ",C137:C363) -> 3071356 De barro mediana | B137: 3071356 | C137: De barro mediana | D137: =IF('FERIAS 3 DIAS'!G$3=TRUE,'FERIAS DE 7 DIAS EN ADELANTE'!E137/'FERIAS 3 DIAS'!I$3,E137) -> 23900 | E137: 23900
A138: =CONCATENATE(B138:B364," ",C138:C364) -> 3071384 De barro pequeña | B138: 3071384 | C138: De barro pequeña | D138: =IF('FERIAS 3 DIAS'!G$3=TRUE,'FERIAS DE 7 DIAS EN ADELANTE'!E138/'FERIAS 3 DIAS'!I$3,E138) -> 10600 | E138: 10600
A139: =CONCATENATE(B139:B365," ",C139:C365) -> 3071357 Plástica grande | B139: 3071357 | C139: Plástica grande | D139: =IF('FERIAS 3 DIAS'!G$3=TRUE,'FERIAS DE 7 DIAS EN ADELANTE'!E139/'FERIAS 3 DIAS'!I$3,E139) -> 30700 | E139: 30700
A140: =CONCATENATE(B140:B366," ",C140:C366) -> 3071358 Plástica mediana | B140: 3071358 | C140: Plástica mediana | D140: =IF('FERIAS 3 DIAS'!G$3=TRUE,'FERIAS DE 7 DIAS EN ADELANTE'!E140/'FERIAS 3 DIAS'!I$3,E140) -> 23900 | E140: 23900
A141: =CONCATENATE(B141:B367," ",C141:C367) -> 3071359 Plástica pequeña | B141: 3071359 | C141: Plástica pequeña | D141: =IF('FERIAS 3 DIAS'!G$3=TRUE,'FERIAS DE 7 DIAS EN ADELANTE'!E141/'FERIAS 3 DIAS'!I$3,E141) -> 10600 | E141: 10600
A142: =CONCATENATE(B142:B368," ",C142:C368) -> 3071360 Jardinera en madera (35cm x 100cm x 35cm) | B142: 3071360 | C142: Jardinera en madera (35cm x 100cm x 35cm) | D142: =IF('FERIAS 3 DIAS'!G$3=TRUE,'FERIAS DE 7 DIAS EN ADELANTE'!E142/'FERIAS 3 DIAS'!I$3,E142) -> 10600 | E142: 10600
A143: =CONCATENATE(B143:B369," ",C143:C369) -> 3071352 Grandes | B143: 3071352 | C143: Grandes | D143: =IF('FERIAS 3 DIAS'!G$3=TRUE,'FERIAS DE 7 DIAS EN ADELANTE'!E143/'FERIAS 3 DIAS'!I$3,E143) -> 93800 | E143: 93800
A144: =CONCATENATE(B144:B370," ",C144:C370) -> 3071353 Medianos | B144: 3071353 | C144: Medianos | D144: =IF('FERIAS 3 DIAS'!G$3=TRUE,'FERIAS DE 7 DIAS EN ADELANTE'!E144/'FERIAS 3 DIAS'!I$3,E144) -> 54600 | E144: 54600
A145: =CONCATENATE(B145:B371," ",C145:C371) -> 3071354 Pequeños | B145: 3071354 | C145: Pequeños | D145: =IF('FERIAS 3 DIAS'!G$3=TRUE,'FERIAS DE 7 DIAS EN ADELANTE'!E145/'FERIAS 3 DIAS'!I$3,E145) -> 24000 | E145: 24000
A146: =CONCATENATE(B146:B372," ",C146:C372) -> 3071364 Topiario en forma de animales o frutas | B146: 3071364 | C146: Topiario en forma de animales o frutas | D146: =IF('FERIAS 3 DIAS'!G$3=TRUE,'FERIAS DE 7 DIAS EN ADELANTE'!E146/'FERIAS 3 DIAS'!I$3,E146) -> 228500 | E146: 228500
A147: =CONCATENATE(B147:B373," ",C147:C373) -> 3071365 Topiario en bolas grandes | B147: 3071365 | C147: Topiario en bolas grandes | D147: =IF('FERIAS 3 DIAS'!G$3=TRUE,'FERIAS DE 7 DIAS EN ADELANTE'!E147/'FERIAS 3 DIAS'!I$3,E147) -> 228500 | E147: 228500
A148: =CONCATENATE(B148:B374," ",C148:C374) -> 3071385 Topiario en bolas pequeñas | B148: 3071385 | C148: Topiario en bolas pequeñas | D148: =IF('FERIAS 3 DIAS'!G$3=TRUE,'FERIAS DE 7 DIAS EN ADELANTE'!E148/'FERIAS 3 DIAS'!I$3,E148) -> 207700 | E148: 207700
A149: =CONCATENATE(B149:B375," ",C149:C375) -> 3071363 Piedras (Por m2) | B149: 3071363 | C149: Piedras (Por m2) | D149: =IF('FERIAS 3 DIAS'!G$3=TRUE,'FERIAS DE 7 DIAS EN ADELANTE'!E149/'FERIAS 3 DIAS'!I$3,E149) -> 23900 | E149: 23900
A150: =CONCATENATE(B150:B376," ",C150:C376) -> 3071367 Pino patula (Por bulto) | B150: 3071367 | C150: Pino patula (Por bulto) | D150: =IF('FERIAS 3 DIAS'!G$3=TRUE,'FERIAS DE 7 DIAS EN ADELANTE'!E150/'FERIAS 3 DIAS'!I$3,E150) -> 10600 | E150: 10600
A151: =CONCATENATE(B151:B377," ",C151:C377) -> 3071361 Gravilla (Por m2) | B151: 3071361 | C151: Gravilla (Por m2) | D151: =IF('FERIAS 3 DIAS'!G$3=TRUE,'FERIAS DE 7 DIAS EN ADELANTE'!E151/'FERIAS 3 DIAS'!I$3,E151) -> 10600 | E151: 10600
A152: =CONCATENATE(B152:B378," ",C152:C378) -> 3071386 Muros verticales (Por m2) | B152: 3071386 | C152: Muros verticales (Por m2) | D152: =IF('FERIAS 3 DIAS'!G$3=TRUE,'FERIAS DE 7 DIAS EN ADELANTE'!E152/'FERIAS 3 DIAS'!I$3,E152) -> 328500 | E152: 328500
A153: =CONCATENATE(B153:B379," ",C153:C379) -> 3071366 Cascarilla (Por bulto) | B153: 3071366 | C153: Cascarilla (Por bulto) | D153: =IF('FERIAS 3 DIAS'!G$3=TRUE,'FERIAS DE 7 DIAS EN ADELANTE'!E153/'FERIAS 3 DIAS'!I$3,E153) -> 10600 | E153: 10600
A154: =CONCATENATE(B154:B380," ",C154:C380) -> 3071362 Rocas (Por unidad) | B154: 3071362 | C154: Rocas (Por unidad) | D154: =IF('FERIAS 3 DIAS'!G$3=TRUE,'FERIAS DE 7 DIAS EN ADELANTE'!E154/'FERIAS 3 DIAS'!I$3,E154) -> 63300 | E154: 63300
A155: =CONCATENATE(B155:B381," ",C155:C381) -> 3071346 Base para Tv Led - LCD adaptable (No Incluye Instalacion) Valor evento 1 día | B155: 3071346 | C155: Base para Tv Led - LCD adaptable (No Incluye Instalacion) Valor evento 1 día | D155: =IF('FERIAS 3 DIAS'!G$3=TRUE,'FERIAS DE 7 DIAS EN ADELANTE'!E155/'FERIAS 3 DIAS'!I$3,E155) -> 44744 | E155: 44744
A156: =CONCATENATE(B156:B382," ",C156:C382) -> 3071346 Base para Tv Led - LCD adaptable (No Incluye Instalacion) Valor evento 2 dias (Valor dia) | B156: 3071346 | C156: Base para Tv Led - LCD adaptable (No Incluye Instalacion) Valor evento 2 dias (Valor dia) | D156: =IF('FERIAS 3 DIAS'!G$3=TRUE,'FERIAS DE 7 DIAS EN ADELANTE'!E156/'FERIAS 3 DIAS'!I$3,E156) -> 44744 | E156: 44744
A157: =CONCATENATE(B157:B383," ",C157:C383) -> 3071346 Base para Tv Led - LCD adaptable (No Incluye Instalacion) Valor de 3 a 6 dias (Valor dia) | B157: 3071346 | C157: Base para Tv Led - LCD adaptable (No Incluye Instalacion) Valor de 3 a 6 dias (Valor dia) | D157: =IF('FERIAS 3 DIAS'!G$3=TRUE,'FERIAS DE 7 DIAS EN ADELANTE'!E157/'FERIAS 3 DIAS'!I$3,E157) -> 40698 | E157: 40698
A158: =CONCATENATE(B158:B384," ",C158:C384) -> 3071346 Base para Tv Led - LCD adaptable (No Incluye Instalacion) Valor de 7 a 18 días (Valor feria) | B158: 3071346 | C158: Base para Tv Led - LCD adaptable (No Incluye Instalacion) Valor de 7 a 18 días (Valor feria) | D158: =IF('FERIAS 3 DIAS'!G$3=TRUE,'FERIAS DE 7 DIAS EN ADELANTE'!E158/'FERIAS 3 DIAS'!I$3,E158) -> 289765 | E158: 289765
A159: =CONCATENATE(B159:B385," ",C159:C385) -> 3071204 Tv Smart 42" 106cms ( Incluye base para tv / cable de corriente / 1 cable HDMI) IN: HDMI, USB Valor evento 1 día | B159: 3071204 | C159: Tv Smart 42" 106cms ( Incluye base para tv / cable de corriente / 1 cable HDMI) IN: HDMI, USB Valor evento 1 día | D159: =IF('FERIAS 3 DIAS'!G$3=TRUE,'FERIAS DE 7 DIAS EN ADELANTE'!E159/'FERIAS 3 DIAS'!I$3,E159) -> 149226 | E159: 149226
A160: =CONCATENATE(B160:B386," ",C160:C386) -> 3071204 Tv Smart 42" 106cms ( Incluye base para tv / cable de corriente / 1 cable HDMI) IN: HDMI, USB Valor evento 2 dias (Valor dia) | B160: 3071204 | C160: Tv Smart 42" 106cms ( Incluye base para tv / cable de corriente / 1 cable HDMI) IN: HDMI, USB Valor evento 2 dias (Valor dia) | D160: =IF('FERIAS 3 DIAS'!G$3=TRUE,'FERIAS DE 7 DIAS EN ADELANTE'!E160/'FERIAS 3 DIAS'!I$3,E160) -> 149226 | E160: 149226
A161: =CONCATENATE(B161:B387," ",C161:C387) -> 3071204 Tv Smart 42" 106cms ( Incluye base para tv / cable de corriente / 1 cable HDMI) IN: HDMI, USB Valor de 3 a 6 dias (Valor dia) | B161: 3071204 | C161: Tv Smart 42" 106cms ( Incluye base para tv / cable de corriente / 1 cable HDMI) IN: HDMI, USB Valor de 3 a 6 dias (Valor dia) | D161: =IF('FERIAS 3 DIAS'!G$3=TRUE,'FERIAS DE 7 DIAS EN ADELANTE'!E161/'FERIAS 3 DIAS'!I$3,E161) -> 136136 | E161: 136136
A162: =CONCATENATE(B162:B388," ",C162:C388) -> 3071204 Tv Smart 42" 106cms ( Incluye base para tv / cable de corriente / 1 cable HDMI) IN: HDMI, USB Valor de 7 a 18 días (Valor feria) | B162: 3071204 | C162: Tv Smart 42" 106cms ( Incluye base para tv / cable de corriente / 1 cable HDMI) IN: HDMI, USB Valor de 7 a 18 días (Valor feria) | D162: =IF('FERIAS 3 DIAS'!G$3=TRUE,'FERIAS DE 7 DIAS EN ADELANTE'!E162/'FERIAS 3 DIAS'!I$3,E162) -> 971635 | E162: 971635
A163: =CONCATENATE(B163:B389," ",C163:C389) -> 3071206 Tv Smart 55" 140cms ( Incluye base para tv / cable de corriente / 1 cable HDMI) IN: HDMI, USB Valor evento 1 día | B163: 3071206 | C163: Tv Smart 55" 140cms ( Incluye base para tv / cable de corriente / 1 cable HDMI) IN: HDMI, USB Valor evento 1 día | D163: =IF('FERIAS 3 DIAS'!G$3=TRUE,'FERIAS DE 7 DIAS EN ADELANTE'!E163/'FERIAS 3 DIAS'!I$3,E163) -> 223839 | E163: 223839
A164: =CONCATENATE(B164:B390," ",C164:C390) -> 3071206 Tv Smart 55" 140cms ( Incluye base para tv / cable de corriente / 1 cable HDMI) IN: HDMI, USB Valor evento 2 dias (Valor dia) | B164: 3071206 | C164: Tv Smart 55" 140cms ( Incluye base para tv / cable de corriente / 1 cable HDMI) IN: HDMI, USB Valor evento 2 dias (Valor dia) | D164: =IF('FERIAS 3 DIAS'!G$3=TRUE,'FERIAS DE 7 DIAS EN ADELANTE'!E164/'FERIAS 3 DIAS'!I$3,E164) -> 223839 | E164: 223839
A165: =CONCATENATE(B165:B391," ",C165:C391) -> 3071206 Tv Smart 55" 140cms ( Incluye base para tv / cable de corriente / 1 cable HDMI) IN: HDMI, USB Valor de 3 a 6 dias (Valor dia) | B165: 3071206 | C165: Tv Smart 55" 140cms ( Incluye base para tv / cable de corriente / 1 cable HDMI) IN: HDMI, USB Valor de 3 a 6 dias (Valor dia) | D165: =IF('FERIAS 3 DIAS'!G$3=TRUE,'FERIAS DE 7 DIAS EN ADELANTE'!E165/'FERIAS 3 DIAS'!I$3,E165) -> 203966 | E165: 203966
A166: =CONCATENATE(B166:B392," ",C166:C392) -> 3071206 Tv Smart 55" 140cms ( Incluye base para tv / cable de corriente / 1 cable HDMI) IN: HDMI, USB Valor de 7 a 18 días (Valor feria) | B166: 3071206 | C166: Tv Smart 55" 140cms ( Incluye base para tv / cable de corriente / 1 cable HDMI) IN: HDMI, USB Valor de 7 a 18 días (Valor feria) | D166: =IF('FERIAS 3 DIAS'!G$3=TRUE,'FERIAS DE 7 DIAS EN ADELANTE'!E166/'FERIAS 3 DIAS'!I$3,E166) -> 1455251 | E166: 1455251
A167: =CONCATENATE(B167:B393," ",C167:C393) -> 30713202 Tv Smart 65" 165cms ( Incluye base para tv / cable de corriente /1 cable HDMI) IN: HDMI, USB Valor evento 1 día | B167: 30713202 | C167: Tv Smart 65" 165cms ( Incluye base para tv / cable de corriente /1 cable HDMI) IN: HDMI, USB Valor evento 1 día | D167: =IF('FERIAS 3 DIAS'!G$3=TRUE,'FERIAS DE 7 DIAS EN ADELANTE'!E167/'FERIAS 3 DIAS'!I$3,E167) -> 348194 | E167: 348194
A168: =CONCATENATE(B168:B394," ",C168:C394) -> 30713202 Tv Smart 65" 165cms ( Incluye base para tv / cable de corriente /1 cable HDMI) IN: HDMI, USB Valor evento 2 dias (Valor dia) | B168: 30713202 | C168: Tv Smart 65" 165cms ( Incluye base para tv / cable de corriente /1 cable HDMI) IN: HDMI, USB Valor evento 2 dias (Valor dia) | D168: =IF('FERIAS 3 DIAS'!G$3=TRUE,'FERIAS DE 7 DIAS EN ADELANTE'!E168/'FERIAS 3 DIAS'!I$3,E168) -> 348194 | E168: 348194
A169: =CONCATENATE(B169:B395," ",C169:C395) -> 30713202 Tv Smart 65" 165cms ( Incluye base para tv / cable de corriente /1 cable HDMI) IN: HDMI, USB Valor de 3 a 6 dias (Valor dia) | B169: 30713202 | C169: Tv Smart 65" 165cms ( Incluye base para tv / cable de corriente /1 cable HDMI) IN: HDMI, USB Valor de 3 a 6 dias (Valor dia) | D169: =IF('FERIAS 3 DIAS'!G$3=TRUE,'FERIAS DE 7 DIAS EN ADELANTE'!E169/'FERIAS 3 DIAS'!I$3,E169) -> 329035 | E169: 329035
A170: =CONCATENATE(B170:B396," ",C170:C396) -> 30713202 Tv Smart 65" 165cms ( Incluye base para tv / cable de corriente /1 cable HDMI) IN: HDMI, USB Valor de 7 a 18 días (Valor feria) | B170: 30713202 | C170: Tv Smart 65" 165cms ( Incluye base para tv / cable de corriente /1 cable HDMI) IN: HDMI, USB Valor de 7 a 18 días (Valor feria) | D170: =IF('FERIAS 3 DIAS'!G$3=TRUE,'FERIAS DE 7 DIAS EN ADELANTE'!E170/'FERIAS 3 DIAS'!I$3,E170) -> 1666595 | E170: 1666595
A171: =CONCATENATE(B171:B397," ",C171:C397) -> 3071279 Tv Smart 70" 177,8cms ( Incluye base para tv / cable de corriente /1 cable HDMI) IN: HDMI, USB Valor evento 1 día | B171: 3071279 | C171: Tv Smart 70" 177,8cms ( Incluye base para tv / cable de corriente /1 cable HDMI) IN: HDMI, USB Valor evento 1 día | D171: =IF('FERIAS 3 DIAS'!G$3=TRUE,'FERIAS DE 7 DIAS EN ADELANTE'!E171/'FERIAS 3 DIAS'!I$3,E171) -> 559657 | E171: 559657
A172: =CONCATENATE(B172:B398," ",C172:C398) -> 3071279 Tv Smart 70" 177,8cms ( Incluye base para tv / cable de corriente /1 cable HDMI) IN: HDMI, USB Valor evento 2 dias (Valor dia) | B172: 3071279 | C172: Tv Smart 70" 177,8cms ( Incluye base para tv / cable de corriente /1 cable HDMI) IN: HDMI, USB Valor evento 2 dias (Valor dia) | D172: =IF('FERIAS 3 DIAS'!G$3=TRUE,'FERIAS DE 7 DIAS EN ADELANTE'!E172/'FERIAS 3 DIAS'!I$3,E172) -> 559657 | E172: 559657
A173: =CONCATENATE(B173:B399," ",C173:C399) -> 3071279 Tv Smart 70" 177,8cms ( Incluye base para tv / cable de corriente /1 cable HDMI) IN: HDMI, USB Valor de 3 a 6 dias (Valor dia) | B173: 3071279 | C173: Tv Smart 70" 177,8cms ( Incluye base para tv / cable de corriente /1 cable HDMI) IN: HDMI, USB Valor de 3 a 6 dias (Valor dia) | D173: =IF('FERIAS 3 DIAS'!G$3=TRUE,'FERIAS DE 7 DIAS EN ADELANTE'!E173/'FERIAS 3 DIAS'!I$3,E173) -> 509320 | E173: 509320
A174: =CONCATENATE(B174:B400," ",C174:C400) -> 3071279 Tv Smart 70" 177,8cms ( Incluye base para tv / cable de corriente /1 cable HDMI) IN: HDMI, USB Valor de 7 a 18 días (Valor feria) | B174: 3071279 | C174: Tv Smart 70" 177,8cms ( Incluye base para tv / cable de corriente /1 cable HDMI) IN: HDMI, USB Valor de 7 a 18 días (Valor feria) | D174: =IF('FERIAS 3 DIAS'!G$3=TRUE,'FERIAS DE 7 DIAS EN ADELANTE'!E174/'FERIAS 3 DIAS'!I$3,E174) -> 3637711 | E174: 3637711
A175: =CONCATENATE(B175:B401," ",C175:C401) -> 3071222 Tv Smart 82" 204cms ( Incluye base para tv / cable de corriente /1 cable HDMI) IN: HDMI, USB Valor evento 1 día | B175: 3071222 | C175: Tv Smart 82" 204cms ( Incluye base para tv / cable de corriente /1 cable HDMI) IN: HDMI, USB Valor evento 1 día | D175: =IF('FERIAS 3 DIAS'!G$3=TRUE,'FERIAS DE 7 DIAS EN ADELANTE'!E175/'FERIAS 3 DIAS'!I$3,E175) -> 1039584 | E175: 1039584
A176: =CONCATENATE(B176:B402," ",C176:C402) -> 3071222 Tv Smart 82" 204cms ( Incluye base para tv / cable de corriente /1 cable HDMI) IN: HDMI, USB Valor evento 2 dias (Valor dia) | B176: 3071222 | C176: Tv Smart 82" 204cms ( Incluye base para tv / cable de corriente /1 cable HDMI) IN: HDMI, USB Valor evento 2 dias (Valor dia) | D176: =IF('FERIAS 3 DIAS'!G$3=TRUE,'FERIAS DE 7 DIAS EN ADELANTE'!E176/'FERIAS 3 DIAS'!I$3,E176) -> 1039584 | E176: 1039584
A177: =CONCATENATE(B177:B403," ",C177:C403) -> 3071222 Tv Smart 82" 204cms ( Incluye base para tv / cable de corriente /1 cable HDMI) IN: HDMI, USB Valor de 3 a 6 dias (Valor dia) | B177: 3071222 | C177: Tv Smart 82" 204cms ( Incluye base para tv / cable de corriente /1 cable HDMI) IN: HDMI, USB Valor de 3 a 6 dias (Valor dia) | D177: =IF('FERIAS 3 DIAS'!G$3=TRUE,'FERIAS DE 7 DIAS EN ADELANTE'!E177/'FERIAS 3 DIAS'!I$3,E177) -> 945931 | E177: 945931
A178: =CONCATENATE(B178:B404," ",C178:C404) -> 3071222 Tv Smart 82" 204cms ( Incluye base para tv / cable de corriente /1 cable HDMI) IN: HDMI, USB Valor de 7 a 18 días (Valor feria) | B178: 3071222 | C178: Tv Smart 82" 204cms ( Incluye base para tv / cable de corriente /1 cable HDMI) IN: HDMI, USB Valor de 7 a 18 días (Valor feria) | D178: =IF('FERIAS 3 DIAS'!G$3=TRUE,'FERIAS DE 7 DIAS EN ADELANTE'!E178/'FERIAS 3 DIAS'!I$3,E178) -> 6755273 | E178: 6755273
A179: =CONCATENATE(B179:B405," ",C179:C405) -> 3071261 Monitor tactil 65" 165cms ( Incluye base para monitor / cableado) IN: HDMI Valor evento 1 día | B179: 3071261 | C179: Monitor tactil 65" 165cms ( Incluye base para monitor / cableado) IN: HDMI Valor evento 1 día | D179: =IF('FERIAS 3 DIAS'!G$3=TRUE,'FERIAS DE 7 DIAS EN ADELANTE'!E179/'FERIAS 3 DIAS'!I$3,E179) -> 702100 | E179: 702100
A180: =CONCATENATE(B180:B406," ",C180:C406) -> 3071261 Monitor tactil 65" 165cms ( Incluye base para monitor / cableado) IN: HDMI Valor evento 2 dias (Valor dia) | B180: 3071261 | C180: Monitor tactil 65" 165cms ( Incluye base para monitor / cableado) IN: HDMI Valor evento 2 dias (Valor dia) | D180: =IF('FERIAS 3 DIAS'!G$3=TRUE,'FERIAS DE 7 DIAS EN ADELANTE'!E180/'FERIAS 3 DIAS'!I$3,E180) -> 702100 | E180: 702100
A181: =CONCATENATE(B181:B407," ",C181:C407) -> 3071261 Monitor tactil 65" 165cms ( Incluye base para monitor / cableado) IN: HDMI Valor de 3 a 6 dias (Valor dia) | B181: 3071261 | C181: Monitor tactil 65" 165cms ( Incluye base para monitor / cableado) IN: HDMI Valor de 3 a 6 dias (Valor dia) | D181: =IF('FERIAS 3 DIAS'!G$3=TRUE,'FERIAS DE 7 DIAS EN ADELANTE'!E181/'FERIAS 3 DIAS'!I$3,E181) -> 511462 | E181: 511462
A182: =CONCATENATE(B182:B408," ",C182:C408) -> 3071261 Monitor tactil 65" 165cms ( Incluye base para monitor / cableado) IN: HDMI Valor de 7 a 18 días (Valor feria) | B182: 3071261 | C182: Monitor tactil 65" 165cms ( Incluye base para monitor / cableado) IN: HDMI Valor de 7 a 18 días (Valor feria) | D182: =IF('FERIAS 3 DIAS'!G$3=TRUE,'FERIAS DE 7 DIAS EN ADELANTE'!E182/'FERIAS 3 DIAS'!I$3,E182) -> 5105100 | E182: 5105100
A183: =CONCATENATE(B183:B409," ",C183:C409) -> 3071284 Tablet tactil 7" RAM:1GB / Conectividad: 3G / Sistema Operativo Android 9.0 Valor evento 1 día | B183: 3071284 | C183: Tablet tactil 7" RAM:1GB / Conectividad: 3G / Sistema Operativo Android 9.0 Valor evento 1 día | D183: =IF('FERIAS 3 DIAS'!G$3=TRUE,'FERIAS DE 7 DIAS EN ADELANTE'!E183/'FERIAS 3 DIAS'!I$3,E183) -> 87108 | E183: 87108
A184: =CONCATENATE(B184:B410," ",C184:C410) -> 3071284 Tablet tactil 7" RAM:1GB / Conectividad: 3G / Sistema Operativo Android 9.0 Valor evento 2 dias (Valor dia) | B184: 3071284 | C184: Tablet tactil 7" RAM:1GB / Conectividad: 3G / Sistema Operativo Android 9.0 Valor evento 2 dias (Valor dia) | D184: =IF('FERIAS 3 DIAS'!G$3=TRUE,'FERIAS DE 7 DIAS EN ADELANTE'!E184/'FERIAS 3 DIAS'!I$3,E184) -> 87108 | E184: 87108
A185: =CONCATENATE(B185:B411," ",C185:C411) -> 3071284 Tablet tactil 7" RAM:1GB / Conectividad: 3G / Sistema Operativo Android 9.0 Valor de 3 a 6 dias (Valor dia) | B185: 3071284 | C185: Tablet tactil 7" RAM:1GB / Conectividad: 3G / Sistema Operativo Android 9.0 Valor de 3 a 6 dias (Valor dia) | D185: =IF('FERIAS 3 DIAS'!G$3=TRUE,'FERIAS DE 7 DIAS EN ADELANTE'!E185/'FERIAS 3 DIAS'!I$3,E185) -> 79373 | E185: 79373
A186: =CONCATENATE(B186:B412," ",C186:C412) -> 3071284 Tablet tactil 7" RAM:1GB / Conectividad: 3G / Sistema Operativo Android 9.0 Valor de 7 a 18 días (Valor feria) | B186: 3071284 | C186: Tablet tactil 7" RAM:1GB / Conectividad: 3G / Sistema Operativo Android 9.0 Valor de 7 a 18 días (Valor feria) | D186: =IF('FERIAS 3 DIAS'!G$3=TRUE,'FERIAS DE 7 DIAS EN ADELANTE'!E186/'FERIAS 3 DIAS'!I$3,E186) -> 565845 | E186: 565845
A187: =CONCATENATE(B187:B413," ",C187:C413) -> 3071260 Pantalla Led Full Hd Indoor / Medida 3,20mts x 2,96mts / Pitch 3,9 / No incluye estructura para montaje Valor evento 1 día | B187: 3071260 | C187: Pantalla Led Full Hd Indoor / Medida 3,20mts x 2,96mts / Pitch 3,9 / No incluye estructura para montaje Valor evento 1 día | D187: =IF('FERIAS 3 DIAS'!G$3=TRUE,'FERIAS DE 7 DIAS EN ADELANTE'!E187/'FERIAS 3 DIAS'!I$3,E187) -> 1545453 | E187: 1545453
A188: =CONCATENATE(B188:B414," ",C188:C414) -> 3071260 Pantalla Led Full Hd Indoor / Medida 3,20mts x 2,96mts / Pitch 3,9 / No incluye estructura para montaje Valor evento 2 dias (Valor dia) | B188: 3071260 | C188: Pantalla Led Full Hd Indoor / Medida 3,20mts x 2,96mts / Pitch 3,9 / No incluye estructura para montaje Valor evento 2 dias (Valor dia) | D188: =IF('FERIAS 3 DIAS'!G$3=TRUE,'FERIAS DE 7 DIAS EN ADELANTE'!E188/'FERIAS 3 DIAS'!I$3,E188) -> 1545453 | E188: 1545453
A189: =CONCATENATE(B189:B415," ",C189:C415) -> 3071260 Pantalla Led Full Hd Indoor / Medida 3,20mts x 2,96mts / Pitch 3,9 / No incluye estructura para montaje Valor de 3 a 6 dias (Valor dia) | B189: 3071260 | C189: Pantalla Led Full Hd Indoor / Medida 3,20mts x 2,96mts / Pitch 3,9 / No incluye estructura para montaje Valor de 3 a 6 dias (Valor dia) | D189: =IF('FERIAS 3 DIAS'!G$3=TRUE,'FERIAS DE 7 DIAS EN ADELANTE'!E189/'FERIAS 3 DIAS'!I$3,E189) -> 1390872 | E189: 1390872
A190: =CONCATENATE(B190:B416," ",C190:C416) -> 3071260 Pantalla Led Full Hd Indoor / Medida 3,20mts x 2,96mts / Pitch 3,9 / No incluye estructura para montaje Valor de 7 a 18 días (Valor feria) | B190: 3071260 | C190: Pantalla Led Full Hd Indoor / Medida 3,20mts x 2,96mts / Pitch 3,9 / No incluye estructura para montaje Valor de 7 a 18 días (Valor feria) | D190: =IF('FERIAS 3 DIAS'!G$3=TRUE,'FERIAS DE 7 DIAS EN ADELANTE'!E190/'FERIAS 3 DIAS'!I$3,E190) -> 13078100 | E190: 13078100
A191: =CONCATENATE(B191:B417," ",C191:C417) -> 3071260 Pantalla Led Full Hd Indoor / Medida 4,48mts x 3,20mts / Pitch 3,9 / No incluye estructura para montaje Valor evento 1 día | B191: 3071260 | C191: Pantalla Led Full Hd Indoor / Medida 4,48mts x 3,20mts / Pitch 3,9 / No incluye estructura para montaje Valor evento 1 día | D191: =IF('FERIAS 3 DIAS'!G$3=TRUE,'FERIAS DE 7 DIAS EN ADELANTE'!E191/'FERIAS 3 DIAS'!I$3,E191) -> 1790831 | E191: 1790831
A192: =CONCATENATE(B192:B418," ",C192:C418) -> 3071260 Pantalla Led Full Hd Indoor / Medida 4,48mts x 3,20mts / Pitch 3,9 / No incluye estructura para montaje Valor evento 2 dias (Valor dia) | B192: 3071260 | C192: Pantalla Led Full Hd Indoor / Medida 4,48mts x 3,20mts / Pitch 3,9 / No incluye estructura para montaje Valor evento 2 dias (Valor dia) | D192: =IF('FERIAS 3 DIAS'!G$3=TRUE,'FERIAS DE 7 DIAS EN ADELANTE'!E192/'FERIAS 3 DIAS'!I$3,E192) -> 1790831 | E192: 1790831
A193: =CONCATENATE(B193:B419," ",C193:C419) -> 3071260 Pantalla Led Full Hd Indoor / Medida 4,48mts x 3,20mts / Pitch 3,9 / No incluye estructura para montaje Valor de 3 a 6 dias (Valor dia) | B193: 3071260 | C193: Pantalla Led Full Hd Indoor / Medida 4,48mts x 3,20mts / Pitch 3,9 / No incluye estructura para montaje Valor de 3 a 6 dias (Valor dia) | D193: =IF('FERIAS 3 DIAS'!G$3=TRUE,'FERIAS DE 7 DIAS EN ADELANTE'!E193/'FERIAS 3 DIAS'!I$3,E193) -> 1611736 | E193: 1611736
A194: =CONCATENATE(B194:B420," ",C194:C420) -> 3071260 Pantalla Led Full Hd Indoor / Medida 4,48mts x 3,20mts / Pitch 3,9 / No incluye estructura para montaje Valor de 7 a 18 días (Valor feria) | B194: 3071260 | C194: Pantalla Led Full Hd Indoor / Medida 4,48mts x 3,20mts / Pitch 3,9 / No incluye estructura para montaje Valor de 7 a 18 días (Valor feria) | D194: =IF('FERIAS 3 DIAS'!G$3=TRUE,'FERIAS DE 7 DIAS EN ADELANTE'!E194/'FERIAS 3 DIAS'!I$3,E194) -> 18857811 | E194: 18857811
A195: =CONCATENATE(B195:B421," ",C195:C421) -> 3071260 Pantalla Led Full Hd Indoor / Medida 6,4mts x 3,20mts /mts2: 20,48 / Pitch 3,9 / No incluye estructura para montaje Valor evento 1 día | B195: 3071260 | C195: Pantalla Led Full Hd Indoor / Medida 6,4mts x 3,20mts /mts2: 20,48 / Pitch 3,9 / No incluye estructura para montaje Valor evento 1 día | D195: =IF('FERIAS 3 DIAS'!G$3=TRUE,'FERIAS DE 7 DIAS EN ADELANTE'!E195/'FERIAS 3 DIAS'!I$3,E195) -> 2126530 | E195: 2126530
A196: =CONCATENATE(B196:B418," ",C196:C418) -> 3071260 Pantalla Led Full Hd Indoor / Medida 6,4mts x 3,20mts /mts2: 20,48 / Pitch 3,9 / No incluye estructura para montaje Valor evento 2 dias (Valor dia) | B196: 3071260 | C196: Pantalla Led Full Hd Indoor / Medida 6,4mts x 3,20mts /mts2: 20,48 / Pitch 3,9 / No incluye estructura para montaje Valor evento 2 dias (Valor dia) | D196: =IF('FERIAS 3 DIAS'!G$3=TRUE,'FERIAS DE 7 DIAS EN ADELANTE'!E196/'FERIAS 3 DIAS'!I$3,E196) -> 2126530 | E196: 2126530
A197: =CONCATENATE(B197:B419," ",C197:C419) -> 3071260 Pantalla Led Full Hd Indoor / Medida 6,4mts x 3,20mts /mts2: 20,48 / Pitch 3,9 / No incluye estructura para montaje Valor de 3 a 6 dias (Valor dia) | B197: 3071260 | C197: Pantalla Led Full Hd Indoor / Medida 6,4mts x 3,20mts /mts2: 20,48 / Pitch 3,9 / No incluye estructura para montaje Valor de 3 a 6 dias (Valor dia) | D197: =IF('FERIAS 3 DIAS'!G$3=TRUE,'FERIAS DE 7 DIAS EN ADELANTE'!E197/'FERIAS 3 DIAS'!I$3,E197) -> 1926015 | E197: 1926015
A198: =CONCATENATE(B198:B420," ",C198:C420) -> 3071260 Pantalla Led Full Hd Indoor / Medida 6,4mts x 3,20mts /mts2: 20,48 / Pitch 3,9 / No incluye estructura para montaje Valor de 7 a 18 días (Valor feria) | B198: 3071260 | C198: Pantalla Led Full Hd Indoor / Medida 6,4mts x 3,20mts /mts2: 20,48 / Pitch 3,9 / No incluye estructura para montaje Valor de 7 a 18 días (Valor feria) | D198: =IF('FERIAS 3 DIAS'!G$3=TRUE,'FERIAS DE 7 DIAS EN ADELANTE'!E198/'FERIAS 3 DIAS'!I$3,E198) -> 13756043 | E198: 13756043
A199: =CONCATENATE(B199:B421," ",C199:C421) -> 3071264 Pantalla Led Full Hd Indoor / Medida 6,4mts x 4,48mts /mts2: 28,67 / Pitch 3,9 / No incluye estructura para montaje Valor evento 1 día | B199: 3071264 | C199: Pantalla Led Full Hd Indoor / Medida 6,4mts x 4,48mts /mts2: 28,67 / Pitch 3,9 / No incluye estructura para montaje Valor evento 1 día | D199: =IF('FERIAS 3 DIAS'!G$3=TRUE,'FERIAS DE 7 DIAS EN ADELANTE'!E199/'FERIAS 3 DIAS'!I$3,E199) -> 2835294 | E199: 2835294
A200: =CONCATENATE(B200:B422," ",C200:C422) -> 3071264 Pantalla Led Full Hd Indoor / Medida 6,4mts x 4,48mts /mts2: 28,67 / Pitch 3,9 / No incluye estructura para montaje Valor evento 2 dias (Valor dia) | B200: 3071264 | C200: Pantalla Led Full Hd Indoor / Medida 6,4mts x 4,48mts /mts2: 28,67 / Pitch 3,9 / No incluye estructura para montaje Valor evento 2 dias (Valor dia) | D200: =IF('FERIAS 3 DIAS'!G$3=TRUE,'FERIAS DE 7 DIAS EN ADELANTE'!E200/'FERIAS 3 DIAS'!I$3,E200) -> 2835294 | E200: 2835294
... 248 more rows

Sheet SOLICITUD DE SERVICIOS
B2: SOLICITUD DE SERVICIOS EN ALQUILER
B3: www.corferias.com
B4: Cra. 37 No. 24-67 BOGOTÁ, COLOMBIA
B5: PBX: 381 0000 Ext. 5613 - Correo electrónico: serviciosplus@corferias.com
B6: SOMOS AUTORETENEDORES RESOLUCIÓN No. 000006 Enero 21 de 1993 y GRANDES CONTRIBUYENTES RESOLUCIÓN No. 012635 Diciembre 14 de 2018. NIT: 860.002.464-3
B8: Recuerde diligenciar todos los campos de este formulario
B10: INFORMACIÓN DEL EXPOSITOR
B11: *No olvide diligenciar todos los campos
B12: Razón social del expositor: | E12: NIT / C.C:
B13: Facturar a nombre de: | E13: NIT / C.C:
B14: Feria: | E14: Pabellon: | G14: Nivel: | I14: Stand:
B16: SOLICITUD DE SERVICIOS EN ALQUILER
B17: Por favor seleccione el tipo de feria en la cual va a participar:
B19: Digite el codigo del servicio y seleccione el servicio que desea alquilar de acuerdo con el tipo de feria:
B20: CODIGO / DESCRIPCIÓN DEL SERVICIO | E20: OBSERVACIONES | G20: CANTIDAD | H20: CANTIDAD DE DIAS | I20: VALOR UNITARIO | K20: VALOR TOTAL
I21: =IF('FERIAS 3 DIAS'!$F$3=1,VLOOKUP('SOLICITUD DE SERVICIOS'!B21:D21,'FERIAS 3 DIAS'!$A$1:$D$494,4,FALSE),IF('FERIAS 3 DIAS'!$F$3=2,VLOOKUP('SOLICITUD DE SERVICIOS'!B21:D21,'FERIAS DE 4 A 6 DIAS'!$A$1:$D$495,4,FALSE),IF('FERIAS 3 DIAS'!$F$3=3,VLOOKUP('SOLICITUD DE SERVICIOS'!B21:D21,'FERIAS DE 7 DIAS EN ADELANTE'!$A$1:$D$517,4,FALSE),FALSE))) -> FALSE | J21: FALSE | K21: =PRODUCT(G21,H21,I21) -> 0
I22: =IF('FERIAS 3 DIAS'!$F$3=1,VLOOKUP('SOLICITUD DE SERVICIOS'!B22:D22,'FERIAS 3 DIAS'!$A$1:$D$494,4,FALSE),IF('FERIAS 3 DIAS'!$F$3=2,VLOOKUP('SOLICITUD DE SERVICIOS'!B22:D22,'FERIAS DE 4 A 6 DIAS'!$A$1:$D$495,4,FALSE),IF('FERIAS 3 DIAS'!$F$3=3,VLOOKUP('SOLICITUD DE SERVICIOS'!B22:D22,'FERIAS DE 7 DIAS EN ADELANTE'!$A$1:$D$517,4,FALSE),FALSE))) -> FALSE | J22: FALSE | K22: =PRODUCT(G22,H22,I22) -> 0
I23: =IF('FERIAS 3 DIAS'!$F$3=1,VLOOKUP('SOLICITUD DE SERVICIOS'!B23:D23,'FERIAS 3 DIAS'!$A$1:$D$494,4,FALSE),IF('FERIAS 3 DIAS'!$F$3=2,VLOOKUP('SOLICITUD DE SERVICIOS'!B23:D23,'FERIAS DE 4 A 6 DIAS'!$A$1:$D$495,4,FALSE),IF('FERIAS 3 DIAS'!$F$3=3,VLOOKUP('SOLICITUD DE SERVICIOS'!B23:D23,'FERIAS DE 7 DIAS EN ADELANTE'!$A$1:$D$517,4,FALSE),FALSE))) -> FALSE | J23: FALSE | K23: 0
I24: =IF('FERIAS 3 DIAS'!$F$3=1,VLOOKUP('SOLICITUD DE SERVICIOS'!B24:D24,'FERIAS 3 DIAS'!$A$1:$D$494,4,FALSE),IF('FERIAS 3 DIAS'!$F$3=2,VLOOKUP('SOLICITUD DE SERVICIOS'!B24:D24,'FERIAS DE 4 A 6 DIAS'!$A$1:$D$495,4,FALSE),IF('FERIAS 3 DIAS'!$F$3=3,VLOOKUP('SOLICITUD DE SERVICIOS'!B24:D24,'FERIAS DE 7 DIAS EN ADELANTE'!$A$1:$D$517,4,FALSE),FALSE))) -> FALSE | J24: FALSE | K24: 0
I25: =IF('FERIAS 3 DIAS'!$F$3=1,VLOOKUP('SOLICITUD DE SERVICIOS'!B25:D25,'FERIAS 3 DIAS'!$A$1:$D$494,4,FALSE),IF('FERIAS 3 DIAS'!$F$3=2,VLOOKUP('SOLICITUD DE SERVICIOS'!B25:D25,'FERIAS DE 4 A 6 DIAS'!$A$1:$D$495,4,FALSE),IF('FERIAS 3 DIAS'!$F$3=3,VLOOKUP('SOLICITUD DE SERVICIOS'!B25:D25,'FERIAS DE 7 DIAS EN ADELANTE'!$A$1:$D$517,4,FALSE),FALSE))) -> FALSE | J25: FALSE | K25: 0
I26: =IF('FERIAS 3 DIAS'!$F$3=1,VLOOKUP('SOLICITUD DE SERVICIOS'!B26:D26,'FERIAS 3 DIAS'!$A$1:$D$494,4,FALSE),IF('FERIAS 3 DIAS'!$F$3=2,VLOOKUP('SOLICITUD DE SERVICIOS'!B26:D26,'FERIAS DE 4 A 6 DIAS'!$A$1:$D$495,4,FALSE),IF('FERIAS 3 DIAS'!$F$3=3,VLOOKUP('SOLICITUD DE SERVICIOS'!B26:D26,'FERIAS DE 7 DIAS EN ADELANTE'!$A$1:$D$517,4,FALSE),FALSE))) -> FALSE | J26: FALSE | K26: 0
I27: =IF('FERIAS 3 DIAS'!$F$3=1,VLOOKUP('SOLICITUD DE SERVICIOS'!B27:D27,'FERIAS 3 DIAS'!$A$1:$D$494,4,FALSE),IF('FERIAS 3 DIAS'!$F$3=2,VLOOKUP('SOLICITUD DE SERVICIOS'!B27:D27,'FERIAS DE 4 A 6 DIAS'!$A$1:$D$495,4,FALSE),IF('FERIAS 3 DIAS'!$F$3=3,VLOOKUP('SOLICITUD DE SERVICIOS'!B27:D27,'FERIAS DE 7 DIAS EN ADELANTE'!$A$1:$D$517,4,FALSE),FALSE))) -> FALSE | J27: FALSE | K27: 0
I28: =IF('FERIAS 3 DIAS'!$F$3=1,VLOOKUP('SOLICITUD DE SERVICIOS'!B28:D28,'FERIAS 3 DIAS'!$A$1:$D$494,4,FALSE),IF('FERIAS 3 DIAS'!$F$3=2,VLOOKUP('SOLICITUD DE SERVICIOS'!B28:D28,'FERIAS DE 4 A 6 DIAS'!$A$1:$D$495,4,FALSE),IF('FERIAS 3 DIAS'!$F$3=3,VLOOKUP('SOLICITUD DE SERVICIOS'!B28:D28,'FERIAS DE 7 DIAS EN ADELANTE'!$A$1:$D$517,4,FALSE),FALSE))) -> FALSE | J28: FALSE | K28: 0
I29: =IF('FERIAS 3 DIAS'!$F$3=1,VLOOKUP('SOLICITUD DE SERVICIOS'!B29:D29,'FERIAS 3 DIAS'!$A$1:$D$494,4,FALSE),IF('FERIAS 3 DIAS'!$F$3=2,VLOOKUP('SOLICITUD DE SERVICIOS'!B29:D29,'FERIAS DE 4 A 6 DIAS'!$A$1:$D$495,4,FALSE),IF('FERIAS 3 DIAS'!$F$3=3,VLOOKUP('SOLICITUD DE SERVICIOS'!B29:D29,'FERIAS DE 7 DIAS EN ADELANTE'!$A$1:$D$517,4,FALSE),FALSE))) -> FALSE | J29: FALSE | K29: 0
I30: =IF('FERIAS 3 DIAS'!$F$3=1,VLOOKUP('SOLICITUD DE SERVICIOS'!B30:D30,'FERIAS 3 DIAS'!$A$1:$D$494,4,FALSE),IF('FERIAS 3 DIAS'!$F$3=2,VLOOKUP('SOLICITUD DE SERVICIOS'!B30:D30,'FERIAS DE 4 A 6 DIAS'!$A$1:$D$495,4,FALSE),IF('FERIAS 3 DIAS'!$F$3=3,VLOOKUP('SOLICITUD DE SERVICIOS'!B30:D30,'FERIAS DE 7 DIAS EN ADELANTE'!$A$1:$D$517,4,FALSE),FALSE))) -> FALSE | J30: FALSE | K30: 0
I31: =IF('FERIAS 3 DIAS'!$F$3=1,VLOOKUP('SOLICITUD DE SERVICIOS'!B31:D31,'FERIAS 3 DIAS'!$A$1:$D$494,4,FALSE),IF('FERIAS 3 DIAS'!$F$3=2,VLOOKUP('SOLICITUD DE SERVICIOS'!B31:D31,'FERIAS DE 4 A 6 DIAS'!$A$1:$D$495,4,FALSE),IF('FERIAS 3 DIAS'!$F$3=3,VLOOKUP('SOLICITUD DE SERVICIOS'!B31:D31,'FERIAS DE 7 DIAS EN ADELANTE'!$A$1:$D$517,4,FALSE),FALSE))) -> FALSE | J31: FALSE | K31: 0
I32: =IF('FERIAS 3 DIAS'!$F$3=1,VLOOKUP('SOLICITUD DE SERVICIOS'!B32:D32,'FERIAS 3 DIAS'!$A$1:$D$494,4,FALSE),IF('FERIAS 3 DIAS'!$F$3=2,VLOOKUP('SOLICITUD DE SERVICIOS'!B32:D32,'FERIAS DE 4 A 6 DIAS'!$A$1:$D$495,4,FALSE),IF('FERIAS 3 DIAS'!$F$3=3,VLOOKUP('SOLICITUD DE SERVICIOS'!B32:D32,'FERIAS DE 7 DIAS EN ADELANTE'!$A$1:$D$517,4,FALSE),FALSE))) -> FALSE | J32: FALSE | K32: 0
I33: =IF('FERIAS 3 DIAS'!$F$3=1,VLOOKUP('SOLICITUD DE SERVICIOS'!B33:D33,'FERIAS 3 DIAS'!$A$1:$D$494,4,FALSE),IF('FERIAS 3 DIAS'!$F$3=2,VLOOKUP('SOLICITUD DE SERVICIOS'!B33:D33,'FERIAS DE 4 A 6 DIAS'!$A$1:$D$495,4,FALSE),IF('FERIAS 3 DIAS'!$F$3=3,VLOOKUP('SOLICITUD DE SERVICIOS'!B33:D33,'FERIAS DE 7 DIAS EN ADELANTE'!$A$1:$D$517,4,FALSE),FALSE))) -> FALSE | J33: FALSE | K33: 0
I34: =IF('FERIAS 3 DIAS'!$F$3=1,VLOOKUP('SOLICITUD DE SERVICIOS'!B34:D34,'FERIAS 3 DIAS'!$A$1:$D$494,4,FALSE),IF('FERIAS 3 DIAS'!$F$3=2,VLOOKUP('SOLICITUD DE SERVICIOS'!B34:D34,'FERIAS DE 4 A 6 DIAS'!$A$1:$D$495,4,FALSE),IF('FERIAS 3 DIAS'!$F$3=3,VLOOKUP('SOLICITUD DE SERVICIOS'!B34:D34,'FERIAS DE 7 DIAS EN ADELANTE'!$A$1:$D$517,4,FALSE),FALSE))) -> FALSE | K34: 0
B35: Si desea la cotización en dólares de click en el botón → (Tenga en cuenta que la cotización quedará con la TRM del día en que se realice o se modifique) | G35: TRM | H35: =IF('FERIAS 3 DIAS'!G3=TRUE,'FERIAS 3 DIAS'!I3,"N/A") -> N/A | I35: ='FERIAS 3 DIAS'!G2 -> DÓLARES
B36: OBSERVACIONES GENERALES | F36: SUBTOTAL | G36: =IF('FERIAS 3 DIAS'!G3=TRUE,"VALOR USD","VALOR COP") -> VALOR COP | I36: =_xlfn.AGGREGATE(9,7,K21:K34) -> 0
B38: SOLICITUD DE CREDENCIALES E INVITACIONES ADICIONALES POR COMPRA
B39: CODIGO | C39: DESCRIPCION | E39: CANTIDAD | F39: VALOR | G39: Si desea verificar los precios de las Credenciales e Invitaciones, recuerde que puede consultarlos la Guia del Expositor de la feria que va a participar.
B40: 3040107 | C40: Credencial de expositor
B41: 3040107 | C41: Credencial de servicio
B42: 3040108 | C42: Invitación
B44: SOLICITUD DE BONO DE PARQUEADEO PARA EXPOSITORES
B45: CODIGO | C45: DESCRIPCION | E45: CANTIDAD | F45: VALOR CON IVA | G45: Este precio será indicado por el área del Plus Corferias o puede consultarlo en la guía del expositor El área de parqueo se habilita de acuerdo a la ubicación geográfica de la feria o evento: ● Parqueadero Torre: Carrera 40 # 22 - 60 ● Parqueadero Verde: Calle 25 # 33 - 60 ● Parqueadero Ágora: Calle 24 No 38-71
B46: 3050103 | C46: Bono de expositor
B47: IMPORTANTE 1.Esta tarjeta le da derecho al expositor a un cupo de parqueadero, durante el desarrollo de la Feria o Evento. 2.Señor Expositor tenga en cuenta que al ingresar a los parqueaderos de Corferias, usted está aceptando las CONDICIONES DE USO de parqueaderos, que se encuentran debidamente publicadas en los mismos 3. CORFERIAS no se hace responsable por la pérdida de la Tarjeta. En caso de pérdida de la Tarjeta, usted debe informar la perdida al personal del parqueadero y cancelar en las cajas del parqueadero el valor equivalente a ½ SMDLV. 5. Es requisito indispensable ubicar la Tarjeta en el lector de la talanquera para que esta suba, por cada ingreso y salida del vehículo. 6. Si llega a presentar alguna novedad con la tarjeta, se deberá reportar de inmediato con el líder de parqueaderos quien le brindara una solución. 7. Por favor NO tomar tiquete, esta acción genera cobro. 8. La validez de la tarjeta de parqueadero dará inicio al día siguiente de la compra. En caso de que la tarjeta sea adquirida durante la ejecución de la feria y/o evento, el expositor podrá solicitar al cajero del Plus el sello respectivo en el tiquete de entrada, el cual deberá presentar en las cajas del parqueadero para homologar el beneficio de la tarjeta por una única vez.
B49: TOTAL A PAGAR | G49: =I36+F40+F41+F42+F46 -> 0
B51: ACEPTO TERMINOS Y CONDICIONES
B52: *No olvide diligenciar todos los campos. | L52: PI-FO-2091 (V.6)
B53: Nombre Completo:
B54: Teléfono movíl:
B55: Correo Electrónico:
B57: *Corferias se reserva el derecho de realizar cambios a este formulario* | G57: Fecha | I57: =TODAY() -> 2022-05-31

Sheet TARIFAS SERVICIOS
D2: TARIFAS DE SERVICIOS EN ALQUILER
B5: Apreciado cliente, en este formulario podrá encontrar un completo listado con los servicios que Corferias pone a su disposición durante la planificación y desarrollo de la feria.
B7: Los valores a continuación incluyen IVA del 19% | D7: Pensando en nuestros expositores, Corferias lo invita a conocer los nuevos Combos de Servicios en alquiler para que ahorre entre 5% y 20% según sus necesidades | E7: Consulte las imágenes de referencia en nuestro catálogo: https://corferias.com/pdf/corferias-catalogo-de-servicios-2021.pdf
B9: SERVICIOS TÉCNICOS
B11: IMPORTANTE ● Recuerde que las instalaciones de servicios de Agua, Desagüe, Gas, Aire comprimido y Electricidad se hacen según especificaciones técinas de Corferias. ● Los equipos eléctricos deben estar protegidos por un estabilizador de voltaje, o supresor de picos, que el expositor debe proveer.
B12: ELECTRICIDAD | C12: CODIGO | D12: DESCRIPCIÓN DEL SERVICIO | E12: Ferias 1 a 6 días | G12: Ferias 7 días en adelante
C13: 3070101 | D13: Instalación Monofásica (Toma corriente doble, consumo hasta 2KW/110V) | E13: 364140 | F13: 397460 | G13: 397460 | H13: 397460
C14: 3070103 | D14: Instalación kilovatio adicional monofásico (Debe contar con punto principal, MAX 2KW por punto) | E14: 127092 | F14: 127092 | G14: 127092 | H14: 127092
C15: 3070102 | D15: Instalación trifásica (Regleta plastica, consumo hasta 4KW/208V) | E15: 678062 | F15: 678062 | G15: 678062 | H15: 678062
C16: 3070104 | D16: Instalación kilovatio adicional trifásico (Debe contar con punto principal) | E16: 165886 | F16: 165886 | G16: 165886 | H16: 165886
C17: 3071372 | D17: De 21 a 50 kilovatios adicionales trifásicos (Valor por KW) (Debe contar con punto principal) | E17: 150892 | F17: 150892 | G17: 150892 | H17: 150892
C18: 3071373 | D18: De 51 a 100 kilovatios adicionales trifásicos (Valor por KW) (Debe contar con punto principal) | E18: 144228 | F18: 144228 | G18: 144228 | H18: 144228
C19: 3071374 | D19: Mas de100 kilovatios adicionales trifásicos (Valor por KW) (Debe contar con punto principal) | E19: 138278 | F19: 138278 | G19: 138278 | H19: 138278
C20: 3070402 | D20: Lampara de pared ajustable (150W/110V) | E20: 73542 | F20: 73542 | G20: 73542 | H20: 73542
C21: 3070405 | D21: Reflector Led (50W- mltV) | E21: 77350 | F21: 77350 | G21: 77350 | H21: 77350
C22: 3070403 | D22: Extensión – tomacorriente doble con polo a tierra (1500W/110V) Máx 6mts No incluye electricidad | E22: 38080 | F22: 38080 | G22: 38080 | H22: 38080
B23: AGUA, AIRE Y GAS | C23: CODIGO | D23: DESCRIPCIÓN DEL SERVICIO | E23: Ferias 1 a 6 días | G23: Ferias 7 días en adelante
C24: 3071345 | D24: Lavaplatos 90XL* 60XH* 90 (No incluye agua y desagüe) | E24: 168028 | F24: 181832 | G24: 181832 | H24: 181832
C25: 3070301 | D25: Punto de Agua en 1/2" (incluye consumo) | E25: 355096 | F25: 355096 | G25: 460054 | H25: 460054
C26: 3070302 | D26: Desagüe en 1/2" Por toda la feria (Ubicación asignada por Corferias en su stand) | E26: 328678 | F26: 404838 | G26: 404838 | H26: 404838
C27: 3071341 | D27: Aire comprimido para punto con presión máx. de 100 PSI, y caudal máx. 35CFM. | E27: 475286 | F27: 565488 | G27: 565488 | H27: 565488
C28: 3070307 | D28: Punto de Agua en 1/2" (Incluye consumo) + Desagüe en 1 1/2" + Lavaplatos | E28: 766598 | F28: 766598 | G28: 951524 | H28: 951524
C29: 3071321 | D29: Instalación de UN (1) punto de gas propano por UN (1) Equipo (Incluye materiales y mano de obra) (No incluye consumo de gas, este será liquidado a través de un medidor una vez finalice la feria y/o evento) | E29: 102102 | F29: 306068 | G29: 204680 | H29: 306068
C30: Tenga en cuenta: ● El valor de los kilogramos de Gas Propano se liquida al final de la feria a través de un medidor de consumo que se instala en cada stand. ● El valor aproximado del consumo puede ser calculado teniendo en cuenta la información de la ficha tecnica del equipo que describe el consumo de kilogramos por hora.
B31: SISTEMA DIVISORIO | C31: CODIGO | D31: DESCRIPCIÓN DEL SERVICIO | E31: VALOR FERIA
C32: 3070601 | D32: Panel adicional sistema cfe 100cm x 240cm | E32: 39151 | F32: 39151 | G32: 39151 | H32: 39151
C33: 3070801 | D33: Puerta sistema cfe 90cm x 240cm | E33: 97104 | F33: 97104 | G33: 97104 | H33: 97104
C34: 3070803 | D34: Bodega estándar con puerta 150cm x 150cm (Sistema Corferias) | E34: 154938 | F34: 154938 | G34: 154938 | H34: 154938
B35: BRAZO MECÁNICO | C35: CODIGO | D35: DESCRIPCIÓN DEL SERVICIO | E35: VALOR FERIA
C36: 3071319 | D36: Brazo Mecánico por Fracciòn de 15 min (Solo para primer nivel) | E36: 66400 | F36: 66400 | G36: 66400 | H36: 66400
C37: 3071319 | D37: Brazo Mecánico por Fracciòn de 30 min (Solo para primer nivel) | E37: 113500 | F37: 113500 | G37: 113500 | H37: 113500
C38: 3071319 | D38: Brazo Mecánico por Fracciòn de 60 min (Solo para primer nivel) | E38: 201700 | F38: 201700 | G38: 201700 | H38: 201700
C39: 3070413 | D39: Diferencial (Cap. 1 Ton.) + Brazo mecánico (Montaje y desmontaje) | E39: 313300 | F39: 313300 | G39: 313300 | H39: 313300
C40: 3070414 | D40: Plataforma Tijera eléctrica por Fracciòn /30 min (Uso para segundos niveles) | E40: 78000 | F40: 78000 | G40: 78000 | H40: 78000
C41: El servicio de Brazo mecánico por fracciones aplica según disponibilidad para los días y horarios oficiales de montaje y desmontaje (entre 8:00 a.m y 8:00 p.m.); para servicios por fuera de estos horarios puede comunicarse con la oficina del PLUS para brindarle asesoría y cotización a través de nuestros asesores. La prestación del servicio se coordina con el operario de la máquina de acuerdo a disponibilidad. El tiempo de alquiler debe ser consumido en la feria.
B42: COMBOS | C42: CODIGO | D42: DESCRIPCIÓN DEL SERVICIO | E42: VALOR FERIA
C43: 3071387 | D43: Brazo mecánico + Diferencial + TRUSS 2,60 X 2,60 | E43: 3147920
C44: 3071351 | D44: Brazo mecánico + Diferencial + TRUSS 3,60 X 2,60 | E44: 3147920
C45: 3071395 | D45: Brazo mecánico + Diferencial + TRUSS 3,60 X 3,60 | E45: 3147920
C46: 3071324 | D46: Brazo mecánico + Diferencial + TRUSS 5,90 X 5,90 | E46: 3968650
C47: 3071436 | D47: Brazo mecánico + Diferencial + TRUSS 6,90 X 6,90 | E47: 3968650
C48: 3071350 | D48: Brazo mecánico + Diferencial + TRUSS 5,60 X 5,60 | E48: 3968650
C49: 3071371 | D49: Brazo mecánico + Diferencial + TRUSS 6,60 X 6,60 | E49: 3968650
C50: 3071393 | D50: Brazo mecánico + Diferencial + TRUSS 9,60 X 2,60 | E50: 3968650
C51: 3071394 | D51: Brazo mecánico + Diferencial + TRUSS 9,60 X 3,60 | E51: 3968650
C52: 3071396 | D52: Brazo mecánico + Diferencial + TRUSS 9,60 X 5,60 | E52: 5255040
C53: 3071397 | D53: Brazo mecánico + Diferencial + TRUSS 9,60 X 6,60 | E53: 5255040
C54: El alquiler de este servicio incluye: Equipo de elevación de alturas certificado,Operario certificado en alturas, Diferenciales, Eslingas,Grilletes y demas accesorios que se requieran para la instalación del truss. Incluye montaje y desmontaje.
B56: TELECOMUNICACIONES Y REDES
B58: IMPORTANTE ● El servicio de Internet ofrecido por Corferias tiene un ancho de banda compartido, Corferias entrega un PIN (Clave) como sistema de autenticación válido para un equipo. ● Requiere tecnologías con Tarjeta de red de 5 GHz o mínimo 2,4 802.11n, cobertura sobre los pabellones de la feria, excluyendo áreas libres. WiFi: Por su naturaleza inalámbria puede presentar algunas intermitencias en la efectividad de su conexión. Cableado: Aplica para equipos que cuenten con una tarjeta de red con puerto RJ45.
B59: SERVICIO DE INTERNET Y REDES | C59: CODIGO | D59: DESCRIPCIÓN DEL SERVICIO | E59: VALOR DÍA
C60: 3071418 | D60: Servicio de Internet Cableado "PARA UN EQUIPO - DURANTE UN DÍA" (Debe contar con puerto RJ45) *Ancho de banda compartido | E60: 74970 | F60: 74970 | G60: 74970 | H60: 74970
C61: 3071419 | D61: Clave de acceso para la red WiFi "PARA UN EQUIPO - DURANTE UN DÍA" (Incluye el servicio de navegación en Internet básico para consulta de correos y redes sociales) | E61: 74970 | F61: 74970 | G61: 74970 | H61: 74970
C62: CODIGO | D62: DESCRIPCIÓN DEL SERVICIO | E62: VALOR FERIAS DE 3 DÍAS | G62: VALOR FERIAS DE 4 A 6 DÍAS | H62: VALOR FERIAS A PARTIR DE 7 DÍAS EN ADELANTE
C63: 3071417 | D63: Servicio de Internet Cableado "PARA UN EQUIPO - DURANTE TODA LA FERIA" (Debe contar con puerto RJ45) *Ancho de banda compartido | E63: 180404 | F63: 203490 | G63: 203490 | H63: 278460
C64: 3071420 | D64: Clave de acceso para la Red WiFi "PARA UN EQUIPO - DURANTE TODA LA FERIA" (Incluye el servicio de navegación en Internet básico para consulta de correos y redes sociales) | E64: 180404 | F64: 203490 | G64: 203490 | H64: 278460
C65: 3071423 | D65: Conexión para Datafono + Clave de acceso WIFI (Para un equipo durante toda la feria) | E65: 289765 | F65: 314160 | G65: 314160 | H65: 385322
C66: 3071424 | D66: Conexión para Datafono + Servicio de Internet Cableado (Para un equipo durante toda la feria) | E66: 289765 | F66: 314160 | G66: 314160 | H66: 385322
C67: 3071425 | D67: Servicio de Internet Cableado + Clave de acceso WIFI (Para un equipo durante toda la feria) | E67: 324751 | F67: 366282 | G67: 366282 | H67: 501228
C68: 3071437 | D68: Internet Dedicado: Si requiere conexión banda ancha para diferentes servicios o redes locales, contáctese con el área del PLUS de Corferias para brindarle asesoria y cotización.
B69: SERVICIO DE INTERNET Y REDES | C69: CODIGO | D69: DESCRIPCIÓN DEL SERVICIO | E69: VALOR FERIA
C70: 3071406 | D70: Instalación Punto de Red: Incluye un cable UTP por punto,equipos de cominicación necesarios para la conexión de red (En caso de ser necesarios en calidad de prestamo), asesoria para el diseño de red). No incluye servicio de Internet. | E70: 90797 | F70: 90797 | G70: 90797 | H70: 90797
C71: 3071407 | D71: Switch: Equipos para soportar redes de datos. Incluye: Cable de poder (Necesita toma eléctrica), velocidad soportada 100/1000 BASE-T y capacidad de 1, 26 o 48 puertos. No incluye servicio de Internet, Incluye un punto de red. VALOR POR FERIA | E71: 87346 | F71: 87346 | G71: 87346 | H71: 87346
C72: 3071402 | D72: Servicio de VLAN: Servicio virtual de red. Permite la conexión de red interna, entre dispositivos en diferentes pabellones del Recinto Ferial. No incluye servicio de Internet, Incluye un punto de red. VALOR POR FERIA | E72: 367115 | F72: 367115 | G72: 367115 | H72: 367115
C73: 3071430 | D73: Extension LAN: Servicio virtual para la extensión de una red externa al interior del Recinto Ferial. Permite llevar el servicio a otro destino o ubicación dentro del recinto ferial. No incluye servicio de Internet. VALOR POR FERIA (Incluye punto de red y aplica para extender el servicio de internet contratado con terceros) | E73: 1401344 | F73: 1401344 | G73: 1401344 | H73: 1401344
C74: 3071442 | D74: Soporte técnico permanente (Por espacio de 8 horas) de un técnico. Solicitar con 24 horas de anterioridad VALOR DÍARIO | E74: 243474 | F74: 243474 | G74: 243474 | H74: 243474
B75: TELECOMUNICACIONES | C75: CODIGO | D75: DESCRIPCIÓN DEL SERVICIO | E75: VALOR FERIA
C76: 3070202 | D76: Servicio Telefónico Urbano con Aparato (Incluye consumo local ilimitado) | E76: 42483 | F76: 42483 | G76: 42483 | H76: 42483
C77: 3070203 | D77: Servicio Telefónico Larga Distancia con aparato: Incluye consumo local ilimitado. El valor no incluye los consumos de larga distacia nacional, local extendida, internacional o celular (Estos consumos se cobran al final de la feria) | E77: 42483 | F77: 42483 | G77: 42483 | H77: 42483
C78: 3070201 | D78: Línea Externa no conmutada (Previa solicitud a Etb, Claro, EPM, Colomsat u otro operador): Servicio para traer troncales de una empresa o líneas dedicadas, incluye el traslado del strip telefónico del operador al stand del expositor. | E78: 120071 | F78: 120071 | G78: 120071 | H78: 120071
C79: 3070207 | D79: Conexión cableada para Datafono: (No incluye Datafono) Para el datafono el expositor debe contactarse con la Red transaccional: Redeban o Credibanco | E79: 127092 | F79: 127092 | G79: 127092 | H79: 127092
B81: MOBILIARIO Y ELEMENTOS DE DECORACIÓN
B82: IMPORTANTE: El mobiliario será entregado por nuestro cotratista es su stand, en el desmontaje este mismo será el encargado de retirarlo.
B83: COMBOS | C83: CODIGO | D83: DESCRIPCIÓN DEL SERVICIO | E83: VALOR FERIA
C84: 3071105 | D84: KIT básico oficina 2 (2 sillas interlocutoras negras, 1 silla ejecutiva cuero, 1 mesa oficina) | E84: 237286 | F84: 199400 | G84: 199400 | H84: 199400
C85: 3071036 | D85: Mesa plegable plastico + 2 sillas interlocutoras negras | E85: 190400 | F85: 171100 | G85: 171100 | H85: 171100
C86: 3071039 | D86: Mesa alta Daysa + 2 sillas neumaticas altas marsella | E86: 247163 | F86: 227700 | G86: 227700 | H86: 227700
C87: 3071054 | D87: Mesa estandar lotus vidrio + 2 sillas tipo huevo | E87: 272153 | F87: 248800 | G87: 248800 | H87: 248800
B88: SILLAS | D88: Silla Bombonera Roja | E88: 65926
C89: 30713198 | D89: Silla Gerencial (100cm x 49cm x 49cm) | E89: 155176 | F89: 130400 | G89: 130400 | H89: 130400
C90: 3071081 | D90: Silla Ejecutiva Malla | E90: 155176 | F90: 130400 | G90: 130400 | H90: 130400
C91: 3071081 | D91: Silla Ejecutiva Cuero (57cm x 93cm x 52cm) | E91: 75327 | F91: 63300 | G91: 63300 | H91: 63300
C92: 3071061 | D92: Silla estandar Suiza (48cm x 46cm x 45cm) | E92: 68901 | F92: 57900 | G92: 57900 | H92: 57900
C93: 3071008 | D93: Silla estandar Tipo Huevo (48cm x 46cm x 45cm) | E93: 68901 | F93: 57900 | G93: 57900 | H93: 57900
C94: 3071006 | D94: Silla Interlocutora Negra (79cm x 53cm x 42cm) | E94: 49504 | F94: 41600 | G94: 41600 | H94: 41600
C95: 3071022 | D95: Silla Neumatica alta Versalles (80cm x 40 cm x 40cm | E95: 104125 | F95: 87500 | G95: 87500 | H95: 87500
C96: 3071077 | D96: Silla Neumática alta Marsella (80cm x 40cm x 40cm) | E96: 82824 | F96: 69600 | G96: 69600 | H96: 69600
D97: Silla Oslo Blanca | E97: 75327 | F97: 69600 | G97: 69600 | H97: 69600
D98: Silla Tipo Bar Madera | E98: 81872 | F98: 69600 | G98: 69600 | H98: 69600
B99: ESTANTERIAS | C99: 3070503 | D99: Estantería Polo (Melaminico) (200cm x 93cm x 35cm) | E99: 181951 | F99: 152900 | G99: 152900 | H99: 152900
D100: Estantería Polo (Miel) (200cm x 93cm x 35cm) | E100: 181951 | F100: 152900 | G100: 152900 | H100: 152900
D101: Estantería Polo (OSB) (200cm x 93cm x 35cm) | E101: 181951 | F101: 152900 | G101: 152900 | H101: 152900
D102: Estantería Polo (Roble Gris) (200cm x 93cm x 35cm) | E102: 181951 | F102: 152900 | G102: 152900 | H102: 152900
D103: Estantería Polo (Rovere) (200cm x 93cm x 35cm) | E103: 181951 | F103: 152900 | G103: 152900 | H103: 152900
C104: 3071108 | D104: Estantería Shelf 4E (190cm x 125cm x 41cm) | E104: 151606 | F104: 127400 | G104: 127400 | H104: 127400
B105: COUNTERS | C105: 3071107 | D105: Archivador Regina (70cm x 37cm x50cm) | E105: 158151 | F105: 132900 | G105: 132900 | H105: 132900
C106: 3070954 | D106: Counter Mónaco (Melaminico) (100cm x 100cm x 30cm) | E106: 171241 | F106: 179900 | G106: 179900 | H106: 179900
D107: Counter Mónaco (Miel) (100cm x 100cm x 30cm) | E107: 171241 | F107: 179900 | G107: 179900 | H107: 179900
D108: Counter Mónaco (Rovere) (100cm x 100cm x 30cm) | E108: 171241 | F108: 179900 | G108: 179900 | H108: 179900
D109: Counter Mónaco (Roble Gris) (100cm x 100cm x 30cm) | E109: 171241 | F109: 179900 | G109: 179900 | H109: 179900
B110: VITRINAS | C110: 3070535 | D110: Vitrina Isla 2E (200cm x 50cm x 50cm) | E110: 286671 | F110: 208400 | G110: 208400 | H110: 208400
C111: 3070517 | D111: Vitrina Mostrador 2E (100cm x 100cm x 40cm) | E111: 214081 | F111: 179900 | G111: 179900 | H111: 179900
C112: 3070518 | D112: Vitrina Mostrador Tipo 2 1E (92cm x 90 cm x 40cm) | E112: 214081 | F112: 179900 | G112: 179900 | H112: 179900
C113: 3071111 | D113: Vitrina Rectangular 2E (200cm x 100cm x 40cm) | E113: 286671 | F113: 240900 | G113: 240900 | H113: 240900
B114: MESAS | C114: 3071115 | D114: Mesa alta Daysa (Melaminico) (100cm x 60cm) | E114: 105553 | F114: 88700 | G114: 88700 | H114: 88700
D115: Mesa alta Daysa (Miel) (100cm x 60cm) | E115: 105553 | F115: 88700 | G115: 88700 | H115: 88700
D116: Mesa alta Daysa (Roble Gris) (100cm x 60cm) | E116: 105553 | F116: 88700 | G116: 88700 | H116: 88700
D117: Mesa alta Daysa (Rovere) (100cm x 60cm) | E117: 105553 | F117: 88700 | G117: 88700 | H117: 88700
C118: 3071093 | D118: Mesa alta Daysa vidrio (100cm x 60cm) | E118: 118643 | F118: 99700 | G118: 99700 | H118: 99700
C119: 3071104 | D119: Mesa Centro Cuadrada 2 Niveles (melaminico) (50cm x 60cm x 60) | E119: 85442 | F119: 71800 | G119: 71800 | H119: 71800
C120: 3071100 | D120: Mesa Centro Circular doble nivel (melaminico) (50cm x 110cm x 60cm) | E120: 117453 | F120: 98700 | G120: 98700 | H120: 98700
C121: 3071068 | D121: Mesa Centro Rectangular doble nivel (melaminico) (50cm x 75cm x 50cm) | E121: 85442 | F121: 71800 | G121: 71800 | H121: 71800
C122: 3071097 | D122: Mesa estandar Daysa (76cm x 60cm) | E122: 105553 | F122: 88700 | G122: 88700 | H122: 88700
C123: 3071116 | D123: Mesa estandar Lotus (70cm x 64cm x 81cm) | E123: 158151 | F123: 132900 | G123: 132900 | H123: 132900
C124: 3071098 | D124: Mesa estandar Shia Blanca (76cm x 60cm x 60cm) | E124: 105553 | F124: 88700 | G124: 88700 | H124: 88700
C125: 3071098 | D125: Mesa estandar Shia Negra (76cm x 60cm x 60cm) | E125: 105553 | F125: 88700 | G125: 88700 | H125: 88700
C126: 30713200 | D126: Mesa Oficina (78cm x 120cm x 50cm) | E126: 133042 | F126: 111800 | G126: 111800 | H126: 111800
C127: 3070936 | D127: Mesón plegable plástico (Blanco) (73cm x 182cm x 76cm) | E127: 104601 | F127: 87900 | G127: 87900 | H127: 87900
B128: SALAS | C128: 3071113 | D128: Sala Osaka (1 sofá Toronto, 2 puffs Donna, 1 mesa centro cuadrada 2 niveles) | E128: 461244 | F128: 387600 | G128: 387600 | H128: 387600
C129: 3071095 | D129: Sala VIP (1 sofá Victoria derecho, 1 sofá Victoria izquierdo, 2 poltronas, 1 mesa centro cuadrada 2 niveles) | E129: 690200 | F129: 642500 | G129: 642500 | H129: 642500
B130: PUFF | C130: 3071090 | D130: Puff estandar cuadrado (43cm x 43cm x 43cm) | E130: 55216 | F130: 111800 | G130: 111800 | H130: 111800
C131: 3071091 | D131: Puff Trunk 2 cuerpos (48cm x 81cm x 40cm) | E131: 105553 | F131: 111800 | G131: 111800 | H131: 111800
C132: 3071114 | D132: Puff Trunk 3 cuerpos (46cm x 120cm x 54cm) | E132: 105553 | F132: 111800 | G132: 111800 | H132: 111800
B133: SOFAS | C133: 3071085 | D133: Sofa Otawa 2 cuerpos (85cm x 120cm x 76cm) | E133: 210987 | F133: 177300 | G133: 177300 | H133: 177300
C134: 3071083 | D134: Sofa Toronto 3 cuerpos (88cm x 173cm x 80cm) | E134: 224077 | F134: 188300 | G134: 188300 | H134: 188300
C135: 3071031 | D135: Sofa Terranova 2 cuerpos (88cm x 173cm x 80cm) | E135: 224077 | F135: 188300 | G135: 188300 | H135: 188300
C136: 3071013 | D136: Sofa Victoria derecho (70cm x 100cm x 75cm) | E136: 182070 | F136: 153000 | G136: 153000 | H136: 153000
C137: 3071023 | D137: Sofa Victoria izquierdo (70cm x 100cm x 75cm) | E137: 182070 | F137: 153000 | G137: 153000 | H137: 153000
C138: 30713201 | D138: Poltrona Buggy (72cm x 64cm) | E138: 155176 | F138: 130400 | G138: 130400 | H138: 130400
C139: 3071059 | D139: Poltrona Levis (73cm x 86cm x 73cm) | E139: 197778 | F139: 166200 | G139: 166200 | H139: 166200
B140: ACCESORIOS | C140: 3071302 | D140: Papelera plastica negra | E140: 23443 | F140: 19700 | G140: 19700 | H140: 19700
C141: 3071325 | D141: Poste separador 120cm de alto | E141: 46291 | F141: 38900 | G141: 38900 | H141: 38900
C142: 3070521 | D142: Perchero básico 1 pedestal (120cm Ancho - Altura) graduable + 5 ganchos | E142: 89369 | F142: 65100 | G142: 65100 | H142: 65100
D143: Perchero doble 2 pedestal (120cm Ancho-Altura) graduable + 5 ganchos | E143: 155176 | F143: 75100 | G143: 75100 | H143: 75100
C144: 3070512 | D144: Locker 12 puestos | E144: 337000 | F144: 64900 | G144: 64900 | H144: 64900
C145: 3070714 | D145: Cubo de exhibición (40cm x 40cm x 25cm) | E145: 34391 | F145: 30000 | G145: 30000 | H145: 30000
C146: 3070957 | D146: Pedestal cuadrado (30cm x 30cm x 30cm) | E146: 34391 | F146: 28900 | G146: 28900 | H146: 28900
C147: 3070956 | D147: Pedestal rectangular 60cm (60cm x 30cm x 30cm) | E147: 39627 | F147: 33300 | G147: 33300 | H147: 33300
C148: 3070955 | D148: Pedestal rectangular 90cm (90cm x 30cm x 30cm) | E148: 44982 | F148: 37800 | G148: 37800 | H148: 37800
C149: 3071370 | D149: Revistero plegable (140cm x 25cm x 29cm) | E149: 78540 | F149: 66000 | G149: 66000 | H149: 66000
C150: 3071103 | D150: Nevera Minibar 121 LT (48.5cm X 85.1cm X 60cm) | E150: 203371 | F150: 170900 | G150: 170900 | H150: 170900
D151: Nevera Estandar 230LT ( 55.6cm X 157.6cm X 67cm) | E151: 299999 | F151: 252100 | G151: 252100 | H151: 252100
C152: 3070505 | D152: Tarima 120x120x60, (Previa verificación con área de montaje) | E152: 44030 | F152: 37000 | G152: 37000 | H152: 37000
C153: 3071388 | D153: Módulo de carga 20 puntos 110V | E153: 247163 | F153: 207700 | G153: 207700 | H153: 207700
B155: ELEMENTOS Y SUMINISTROS VIVERO
B156: IMPORTANTE Lo invitamos a visitar el vivero que se encuentra dentro de las instaciones de Corferias
B157: COMBOS | C157: CODIGO | D157: DESCRIPCIÓN DEL SERVICIO | E157: VALOR FERIA
C158: 3071375 | D158: Planta + matera plástica (Pequeña) | E158: =M158*1.19 -> 24514 | M158: 20600
C159: 3071376 | D159: Planta + matera plástica (Mediana) | E159: =M159*1.19 -> 55216 | M159: 46400
C160: 3071377 | D160: Planta + matera plástica (Grande) | E160: =M160*1.19 -> 70448 | M160: 59200
C161: 3071378 | D161: Jardinera en madera + 3 Plantas grandes | E161: 119357 | M161: 100300
C162: 3071379 | D162: Jardinera en madera + 3 Plantas medianas | E162: 96509 | M162: 81100
C163: 3071380 | D163: Jardinera en madera + 7 Plantas pequeñas | E163: 99365 | M163: 83500
B164: PLANTAS | C164: 3071381 | D164: Cajoneras con flores | E164: 185402 | M164: 155800
C165: 3071314 | D165: Plantas Grandes (61cm x 120cm) | E165: 37723 | M165: 31700
C166: 3071301 | D166: Plantas Medianas (31cm x 120cm) | E166: 29750 | M166: 25000
C167: 3071317 | D167: Plantas Pequeñas (10cm x 30cm) | E167: 13209 | M167: 11100
C168: 3071382 | D168: Suculentas (10cm x 15cm) | E168: 13209 | M168: 11100
C169: 3071383 | D169: Chamizos | E169: 13209 | M169: 11100
B170: MATERAS (no incluye planta) | C170: 3071355 | D170: Materas de barro grande | E170: 36533 | M170: 30700
C171: 3071356 | D171: Materas de barro mediana | E171: 28441 | M171: 23900
C172: 3071384 | D172: Materas de barro pequeña | E172: 12614 | M172: 10600
C173: 3071357 | D173: Materas Plástica grande | E173: 36533 | M173: 30700
C174: 3071358 | D174: Materas Plástica mediana | E174: 28441 | M174: 23900
C175: 3071359 | D175: Materas Plástica pequeña | E175: 12614 | M175: 10600
C176: 3071360 | D176: Jardinera en madera (35cm x 100cm x 35cm) | E176: 12614 | M176: 10600
B177: ARREGLOS FLORALES | C177: 3071352 | D177: Arreglos florales Grandes | E177: 111622 | M177: 93800
C178: 3071353 | D178: Arreglos florales Medianos | E178: 64974 | M178: 54600
C179: 3071354 | D179: Arreglos florales Pequeños | E179: 28560 | M179: 24000
B180: TOPIARIOS | C180: 3071364 | D180: Topiario en forma de animales o frutas | E180: 271915 | M180: 228500
C181: 3071365 | D181: Topiario en bolas grandes | E181: 271915 | M181: 228500
C182: 3071385 | D182: Topiario en bolas pequeñas | E182: 247163 | M182: 207700
B183: SUMINISTROS | C183: 3071363 | D183: Piedras (Por m2) | E183: 28441 | M183: 23900
C184: 3071367 | D184: Pino patula (Por bulto) | E184: 12614 | M184: 10600
C185: 3071361 | D185: Gravilla (Por m2) | E185: 12614 | M185: 10600
C186: 3071386 | D186: Muros verticales (Por m2) | E186: 390915 | M186: 328500
C187: 3071366 | D187: Cascarilla (Por bulto) | E187: 12614 | M187: 10600
C188: 3071362 | D188: Rocas (Por unidad) | E188: =M188*1.19 -> 75327 | M188: 63300
B190: EQUIPOS
B191: IMPORTANTE: Corferias cuenta con servicios técnicos adicionales para soluciones de Audio y Vídeo, contáctese con el área del PLUS de Corferias para brindarle asesoria y cotización.
C192: CODIGO | D192: DESCRIPCIÓN DEL SERVICIO | E192: VALOR EVENTO 1 DIA | F192: VALOR EVENTO 2 DIAS (VALOR DIARIO) | G192: VALOR DE 3 A 6 DIAS (VALOR DIARIO) | H192: VALOR FERIAS DE 7 A 18 DIAS (VALOR FERIA)
B193: VIDEO | C193: 3071346 | D193: Base para Tv Led - LCD adaptable (No Incluye Instalacion) | E193: 44744 | F193: 44744 | G193: 40698 | H193: 289765
C194: 3071204 | D194: Tv Smart 42" 106cms ( Incluye base para tv / cable de corriente / 1 cable HDMI) IN: HDMI, USB | E194: 149226 | F194: 149226 | G194: 136136 | H194: 971635
C195: 3071206 | D195: Tv Smart 55" 140cms ( Incluye base para tv / cable de corriente / 1 cable HDMI) IN: HDMI, USB | E195: 223839 | F195: 223839 | G195: 203966 | H195: 1455251
C196: 30713202 | D196: Tv Smart 65" 165cms ( Incluye base para tv / cable de corriente /1 cable HDMI) IN: HDMI, USB | E196: 348194 | F196: 348194 | G196: 329035 | H196: 1666595
C197: 3071279 | D197: Tv Smart 70" 177,8cms ( Incluye base para tv / cable de corriente /1 cable HDMI) IN: HDMI, USB | E197: 559657 | F197: 559657 | G197: 509320 | H197: 3637711
C198: 3071222 | D198: Tv Smart 82" 204cms ( Incluye base para tv / cable de corriente /1 cable HDMI) IN: HDMI, USB | E198: 1039584 | F198: 1039584 | G198: 945931 | H198: 6755273
C199: 3071261 | D199: Monitor tactil 65" 165cms ( Incluye base para monitor / cableado) IN: HDMI | E199: 702100 | F199: 702100 | G199: 511462 | H199: 5105100
C200: 3071284 | D200: Tablet tactil 7" RAM:1GB / Conectividad: 3G / Sistema Operativo Android 9.0 | E200: 87108 | F200: 87108 | G200: 79373 | H200: 565845
C201: 3071260 | D201: Pantalla Led Full Hd Indoor / Medida 3,20mts x 2,96mts / Pitch 3,9 / No incluye estructura para montaje | E201: 1545453 | F201: 1545453 | G201: 1390872 | H201: 13078100
C202: 3071260 | D202: Pantalla Led Full Hd Indoor / Medida 4,48mts x 3,20mts / Pitch 3,9 / No incluye estructura para montaje | E202: 1790831 | F202: 1790831 | G202: 1611736 | H202: 18857811
C203: 3071260 | D203: Pantalla Led Full Hd Indoor / Medida 6,4mts x 3,20mts /mts2: 20,48 / Pitch 3,9 / No incluye estructura para montaje | E203: 2126530 | F203: 2126530 | G203: 1926015 | H203: 13756043
C204: 3071264 | D204: Pantalla Led Full Hd Indoor / Medida 6,4mts x 4,48mts /mts2: 28,67 / Pitch 3,9 / No incluye estructura para montaje | E204: 2835294 | F204: 2835294 | G204: 2567782 | H204: 18341351
C205: 3071265 | D205: Pantalla Led Full Hd Indoor / Medida 7,4mts x 5,12mts /mts2: 36,04 / Pitch 3,9 / No incluye estructura para montaje | E205: 4134774 | F205: 4134774 | G205: 3744692 | H205: 26747749
C206: 3071266 | D206: Pantalla Led Full Hd Indoor / Medida 8,32mts x 6,40mts /mts2: 53,25 / Pitch 3,9 / No incluye estructura para montaje | E206: 5670588 | F206: 5670588 | G206: 5135802 | H206: 36682702
C207: 3071267 | D207: Pantalla Led Full Hd Outdoor / Medida 6,4mts x 4,48mts /mts2: 28,67 / Pitch 4,8 / No incluye estructura para montaje | E207: 2835294 | F207: 2835294 | G207: 2566235 | H207: 18328856
C208: 3071268 | D208: Pantalla Led Full Hd Outdoor / Medida 7,4mts x 5,12mts /mts2: 36,04/ Pitch 4,8 / No incluye estructura para montaje | E208: 4134774 | F208: 4134774 | G208: 3742193 | H208: 26729423
C209: 3071269 | D209: Pantalla Led Full Hd Outdoor / Medida 8,32mts x 6,40mts /mts2: 53,25/ Pitch 4,8 / No incluye estructura para montaje | E209: 5670588 | F209: 5670588 | G209: 5132232 | H209: 36657355
C210: 3071234 | D210: Video Proyector de 4.500 Lumens HD - El lugar de Proyeccion debe estar lo mas oscuro posible | E210: 435302 | F210: 435302 | G210: 422331 | H210: 2622046
C211: 3071244 | D211: Video Proyector de 6.000 Lumens HD - El lugar de Proyeccion debe estar lo mas oscuro posible | E211: 583100 | F211: 583100 | G211: 499800 | H211: 4033505
... 66 more rows

Sheet TERMINOS Y CONDICIONES
B2: TERMINOS Y CONDICIONES
B3: Gracias por dedicar unos minutos a leer los Términos y Condiciones, para nosotros es significativo que conozcan algunas recomendaciones importantes para la contratación de los servicios en alquiler que pone a disposición Corferias:
B4: Por favor verifique
B5: ● La cantidad de servicios según las dimensiones de su stand
B6: ● Viabilidad de la instalación de los servicios técnicos, escribiéndonos al correo serviciosplus@corferias.com
B7: ● Disponibilidad del inventario
B8: Tenga en cuenta
B9: ● Los servicios sin cancelar no serán instalados
B10: ● El servicio será entregado en la medida que se encuentre un responsable
B11: ● Si durante la feria el servicio alquilado llega a presentar algún inconveniente, usted debe informarlo al Supervisor Logístico o al Plus para brindar la solución correspondiente
B12: ● La pérdida o daño de los elementos alquilados es responsabilidad del expositor, por lo tanto, deberá asumir todos los gastos correspondientes a su reparación o reposición.
B13: ● Al finalizar la feria y durante los días de montaje el proveedor encargado de la entrega será quien retire los bienes y servicios alquilados.
B14: ● Las tarifas aquí presentadas incluyen la instalación, el soporte técnico, no incluyen el IVA del 19%.
B15: Tiempos de instalación
B16: ● Para su comodidad, le sugerimos realizar el pago mínimo 5 días antes del inicio del montaje de la feria
B17: ● Los servicios pagos hasta el último día de montaje (hasta las 4:30 p.m.), serán instalados ese día.
B18: ● Los servicios pagos a partir de las 4:30 p.m. del último día de montaje serán instalados máximo en 6 horas hábiles (8:30 a.m. – 5:30p.m.)
B19: CONSIDERACIONES ADICIONALES
B20: SERVICIOS TÉCNICOS
B21: ● Recuerde que la instalación de Agua, Desagüe, Gas, Aire Comprimido y Electricidad, se hacen según especificaciones técnicas de Corferias
B22: ● La instalación de los servicios técnicos se debe realizar antes de la disposición y/o construcción de pisos o estructuras
B23: Electricidad
B24: ● Los equipos eléctricos deben estar protegidos por un estabilizador de voltaje o supresor de picos, que el expositor debe proveer. ● El voltaje y kilovatio suministrado es de 110V/2KW en monofásica y 208V/4KW en trifásica, (con un rango de máximo 5%), las dos con una frecuencia de 60 Hz. ​ ● A partir de 3 kilovatios monofásicos y 4 kilovatios trifásicos se entrega una regleta plástica, el expositor es el encargado de distribuir la energía y llevarla hasta sus equipos. ​ ● La extensión tomacorriente no incluye electricidad. ​ ● La instalación monofásica no permite más de 3kw adicionales. ​ ● El servicio eléctrico es deshabilitado al cierre del pabellón, si requiere del servicio permanente 24 horas, para dar suministro a frigoríficos maquinas, agradecemos comunicarlo al supervisor del pabellón. ​ ● Recuerde no sobrecargar la toma corriente eléctrica superando la capacidad de kilovatios, verifique los Watts de los equipos que desea utilizar en su stand. ​
B25: Agua, desagüe y lavaplatos
B26: ● El alquiler del lavaplatos no incluye servicio de agua y desagüe. ​ ● El valor del punto de agua este incluye consumo durante la feria. ​ ● La instalación del Punto de agua y desagüe se realiza con manguera de ½ pulgada. ​
B27: Aire comprimido
B28: ● El aire comprimido está dispuesto para un punto con presión de máximo 100PSI y caudal de 35CFM​ ● Corferias hace entrega de una manguera de conexión hembra, el expositor realiza la conexión de esta a la maquinaria.
B29: Servicio de gas
B30: ● La instalación de UN (1) punto de gas propano por UN (1) Equipo (Incluye materiales y mano de obra) (No incluye consumo de gas, este será liquidado a través de un medidor una vez finalice la feria y/o evento) ● El valor de los kilogramos de Gas Propano se liquida al final de la feria a través de un medidor de consumo que se instala en cada stand. ● El valor aproximado del consumo puede ser calculado teniendo en cuenta la información de la ficha tecnica del equipo que describe el consumo de kilogramos por hora.
B31: Brazo mecánico y plataforma tijera
B32: ● El servicio de brazo mecánico aplica para primeros niveles y el servicio de plataforma eléctrica aplica para los segundos niveles de los pabellones. ​ ● El servicio de maquinaria no incluye instalador, ni elementos de instalación. ​ ● Estos servicios se rentan por fracción de minutos. ● El servicio de brazo mecánico por fracciones aplica según disponibilidad para los días y horarios oficiales de montaje y desmontaje (entre 8:00a.m. – 8:00 p.m.); para servicios fuera de estos horarios pude comunicarse con la oficina del PLUS para brindarle asesoría y cotización. El tiempo de alquiler debe ser consumido en la feria.
B33: TELECOMUNICACIONES Y REDES
B34: Internet básico​
B35: El servicio de internet básico ofrecido por Corferias permite navegación básica (consulta de correos y páginas web), cuenta con una red oscilante de 25MB en un ancho de banda compartido entre los expositores que adquieran el servicio. ​ Corferias ingresa en el equipo un PIN (Clave) valido para un equipo que permita su autenticación. ​
B36: Internet dedicado​
B37: Este servicio cuenta con una conexión simétrica y protocolo DHCP que permite una navegación compleja, servicios de streaming y aplicaciones en línea, para este servicio se destina una cantidad específica de megas como mínimo de 5MB de acuerdo a las necesidades de los expositores. ​
B38: Importante:
B39: ● El servicio de internet básico tiene cobertura dentro de los pabellones, no aplica en áreas libres. ​ ● El servicio de internet cableado aplica para equipos que cuenten con un puerto de ethernet RJ45. ​ ● El servicio de internet WIFI por su naturaleza inalámbrica puede presentar algunas intermitencias en la efectividad de su conexión. ​ ● Los servicios de internet prestados por Corferias requieren tecnologías con Tarjeta de red de 5 Ghz y sistema operativo mínimo de Windows 10.
B40: SERVICIO DE ASEO BÁSICO PARA STANDS
B41: ● El servicio debe ser confirmado y cancelado con 4 dias de antelacion al inicio del mismo ● Corferias pone a disposición las siguientes actividades: desinfección de superficies en estanterías, mesas, mesones (aprox cada 3hrs segun normas de bioseguridad), limpieza de polvo, canecas y retiro de material de desecho; aspirado de tapete y/o trapeado de piso duro. Los elementos de exhibición como obras de arte, maquinaria, entre otros, es responsabilidad del expositor su limpieza, aseo y desinfección. ● Las actividades a realizar son las que estan al alcance desde el piso; limpiezas especiales en altura no están contempladas en la presente cotización. ● El aseo de recuperación por montaje no está incluido, se entiende que el espacio se entregará en condiciones de limpieza básica, por parte de la empresa de montaje. ● El valor descrito incluye: salarios y costos de ley del operario de aseo, dotación, EPPs, elementos de aseo e insumos de aseo. ● Para procesos de desinfección se utilizará amonio cuaternario de quinta generación, la solicitud de insumos diferentes se realizará bajo responsabilidad y compra por parte del expositor. ● Elementos de bioseguridad como gel desinfectante, alcohol para expositores y visitantes o actividades de desinfección de elementos de muestra y/o venta NO están contemplados. ● El operario de aseo por razones de seguridad ingresará al stand cuando se encuentre el expositor o personal encargado. ● Previamente al inico de la feria se acordará con el expositor el horario de inicio de prestación del servicio, por lo anterior agradecemos estar puntual en el stand, ya que no se podrá reponer el tiempo en caso de retrasos. ● Servicio permanente: la limpieza es continúa cumpliendo con la norma de desinfección de superficies de alto contacto, mínimo cada tres (3) horas. El servicio se prestará en turno de nueve (9) horas, durante el turno el personal se ausentará durante 15 minutos para el break y una (1) hora para el almuerzo. De requerirse prorrogar el horario por actividades adicionales; se facturará como un adicional, pagándose por anticipado antes de realizar el servicio. ● Corferias le informa que en el diligenciamiento del "INSTRUCTIVO PROTOCOLO DE BIOSEGURIDAD PARA FERIAS Y EVENTOS", Numeral 5 "Protocolo de limpieza y desinfección" debe solo diligenciar en el espacio de "Responsable(s) de aplicar y supervisar el procedimiento" colocando CORFERIAS. ● Los registros propios del proveedor de aseo de las actividades y frecuencias serán diligenciados y de uso exclusivo del operario de aseo, en caso de requerise, solo serán entregados a entes de control (propiedad intelectual empresarial). | M41: PI-F-2091 (V.6)
B43: *Corferias se reserva el derecho de realizar cambios a este documento*
